﻿Department Family,Entity,Date,Expense Type,Expense Area,Supplier,Transaction Number,Amount,Item Description
BEIS,UKRI - AHRC,03/04/2023,Non-staff travel and subsistance,Skills Strategy,Unspecified,99934998,354.34,Non-staff travel and subsistance
BEIS,UKRI - AHRC,03/04/2023,Non-staff travel and subsistance,Skills Strategy,Unspecified,99934999,99.96,Non-staff travel and subsistance
BEIS,UKRI - AHRC,03/04/2023,Non-staff travel and subsistance,Skills Strategy,Unspecified,99935000,132.53,Non-staff travel and subsistance
BEIS,UKRI - AHRC,03/04/2023,Non-staff travel and subsistance,Skills Strategy,Unspecified,99935001,113.88,Non-staff travel and subsistance
BEIS,UKRI - AHRC,03/04/2023,Non-staff travel and subsistance,Skills Strategy,Unspecified,99935002,140.49,Non-staff travel and subsistance
BEIS,UKRI - AHRC,03/04/2023,Corporate Events,Infrastruture Roadmap,Royal Shakespeare Company,99935006,3585.36,Corporate Events
BEIS,UKRI - AHRC,03/04/2023,Research Grant Expenditure,Public Engagement,Unspecified,99936018,19999.99,Research Grant Expenditure
BEIS,UKRI - AHRC,03/04/2023,T&S UK - Public Transport,AHRC - Creative Industries,Unspecified,99936046,12.30,T&S UK - Public Transport
BEIS,UKRI - AHRC,03/04/2023,T&S UK - Subsistence,AHRC - Creative Industries,Unspecified,99936046,50.00,T&S UK - Subsistence
BEIS,UKRI - AHRC,03/04/2023,T&S UK - Subsistence,AHRC - Creative Industries,Unspecified,99936046,9.65,T&S UK - Subsistence
BEIS,UKRI - AHRC,03/04/2023,T&S UK - Public Transport,Strategy and Evidence,Unspecified,99936047,7.20,T&S UK - Public Transport
BEIS,UKRI - AHRC,03/04/2023,T&S UK - Subsistence,Strategy and Evidence,Unspecified,99936047,25.00,T&S UK - Subsistence
BEIS,UKRI - AHRC,03/04/2023,T&S UK - Subsistence,Strategy and Evidence,Unspecified,99936047,12.02,T&S UK - Subsistence
BEIS,UKRI - AHRC,03/04/2023,T&S UK - Other Charges,ISCF Creative Clusters,Unspecified,99936048,19.98,T&S UK - Other Charges
BEIS,UKRI - AHRC,03/04/2023,T&S UK - Public Transport,Public and Stakeholder Engagement,Unspecified,99936049,5.50,T&S UK - Public Transport
BEIS,UKRI - AHRC,03/04/2023,T&S UK - Subsistence,Public and Stakeholder Engagement,Unspecified,99936049,2.55,T&S UK - Subsistence
BEIS,UKRI - AHRC,03/04/2023,T&S UK - Subsistence,Infrastruture Roadmap,Unspecified,99936050,7.50,T&S UK - Subsistence
BEIS,UKRI - AHRC,03/04/2023,T&S UK - Subsistence,Infrastruture Roadmap,Unspecified,99936050,25.00,T&S UK - Subsistence
BEIS,UKRI - AHRC,03/04/2023,T&S UK - Subsistence,Infrastruture Roadmap,Unspecified,99936050,5.80,T&S UK - Subsistence
BEIS,UKRI - AHRC,04/04/2023,T&S UK - Mileage,SMT,Unspecified,99929506,26.10,T&S UK - Mileage
BEIS,UKRI - AHRC,04/04/2023,T&S UK - Other Charges,SMT,Unspecified,99929506,3.50,T&S UK - Other Charges
BEIS,UKRI - AHRC,04/04/2023,T&S UK - Subsistence,SMT,Unspecified,99929506,25.00,T&S UK - Subsistence
BEIS,UKRI - AHRC,04/04/2023,T&S UK - Subsistence,SMT,Unspecified,99929506,23.85,T&S UK - Subsistence
BEIS,UKRI - AHRC,04/04/2023,Commission Costs,Commissioned Research,Department for Education,99935539,60000.00,Commission Costs
BEIS,UKRI - AHRC,04/04/2023,Other Programme Costs,International Placement Scheme,University of Liverpool,99936186,1000.00,Other Programme Costs
BEIS,UKRI - AHRC,04/04/2023,Fees (Including College Members),Operations,Unspecified,99936470,170.00,Fees (Including College Members)
BEIS,UKRI - AHRC,04/04/2023,Fees (Including College Members),Operations,Unspecified,99936471,170.00,Fees (Including College Members)
BEIS,UKRI - AHRC,04/04/2023,Fees (Including College Members),Operations,Unspecified,99936472,170.00,Fees (Including College Members)
BEIS,UKRI - AHRC,04/04/2023,Fees (Including College Members),Operations,Unspecified,99936473,170.00,Fees (Including College Members)
BEIS,UKRI - AHRC,04/04/2023,T&S UK - Other Charges,Strategy and Evidence,Unspecified,99936769,100.00,T&S UK - Other Charges
BEIS,UKRI - AHRC,05/04/2023,Consultancy Services,Strategy and Evidence,Just Sign Ltd,99922552,816.00,Consultancy Services
BEIS,UKRI - AHRC,05/04/2023,Consultancy Services,Strategy and Evidence,Just Sign Ltd,99922557,408.00,Consultancy Services
BEIS,UKRI - AHRC,05/04/2023,Translation Services,"Heritage, Culture & Creative Arts (HCCA)",Just Sign Ltd,99922560,408.00,Translation Services
BEIS,UKRI - AHRC,05/04/2023,Consultancy Services,Public Engagement,Just Sign Ltd,99922564,408.00,Consultancy Services
BEIS,UKRI - AHRC,05/04/2023,Fees (Including College Members),Operations,Unspecified,99937004,170.00,Fees (Including College Members)
BEIS,UKRI - AHRC,05/04/2023,Fees (Including College Members),Operations,Unspecified,99937005,170.00,Fees (Including College Members)
BEIS,UKRI - AHRC,05/04/2023,Fees (Including College Members),Operations,Unspecified,99937006,170.00,Fees (Including College Members)
BEIS,UKRI - AHRC,06/04/2023,T&S UK - Public Transport,Executive Office,Unspecified,99938643,7.60,T&S UK - Public Transport
BEIS,UKRI - AHRC,06/04/2023,T&S UK - Public Transport,Executive Office,Unspecified,99938643,25.00,T&S UK - Public Transport
BEIS,UKRI - AHRC,06/04/2023,T&S UK - Subsistence,Executive Office,Unspecified,99938643,23.00,T&S UK - Subsistence
BEIS,UKRI - AHRC,06/04/2023,T&S UK - Subsistence,Executive Office,Unspecified,99938643,8.48,T&S UK - Subsistence
BEIS,UKRI - AHRC,06/04/2023,T&S UK - Subsistence,Infrastruture Roadmap,Unspecified,99938644,7.50,T&S UK - Subsistence
BEIS,UKRI - AHRC,06/04/2023,T&S UK - Subsistence,Infrastruture Roadmap,Unspecified,99938644,25.00,T&S UK - Subsistence
BEIS,UKRI - AHRC,06/04/2023,T&S UK - Subsistence,Infrastruture Roadmap,Unspecified,99938644,7.75,T&S UK - Subsistence
BEIS,UKRI - AHRC,06/04/2023,Non-staff travel and subsistance,Skills Strategy,Unspecified,99938805,170.88,Non-staff travel and subsistance
BEIS,UKRI - AHRC,06/04/2023,Non-staff travel and subsistance,Skills Strategy,Corporate Travel Management (North) Ltd,99938919,2.00,Non-staff travel and subsistance
BEIS,UKRI - AHRC,06/04/2023,Non-staff travel and subsistance,Skills Strategy,Corporate Travel Management (North) Ltd,99938919,1770.00,Non-staff travel and subsistance
BEIS,UKRI - AHRC,06/04/2023,Non-staff travel and subsistance,Skills Strategy,Corporate Travel Management (North) Ltd,99938919,0.40,Non-staff travel and subsistance
BEIS,UKRI - AHRC,06/04/2023,T&S Overseas - Accommodation,FIC- US,Corporate Travel Management (North) Ltd,99938919,0.80,T&S Overseas - Accommodation
BEIS,UKRI - AHRC,06/04/2023,T&S Overseas - Accommodation,FIC- US,Corporate Travel Management (North) Ltd,99938919,397.12,T&S Overseas - Accommodation
BEIS,UKRI - AHRC,06/04/2023,T&S Overseas - Accommodation,FIC- US,Corporate Travel Management (North) Ltd,99938919,0.16,T&S Overseas - Accommodation
BEIS,UKRI - AHRC,06/04/2023,T&S Overseas - Accommodation,HERA JRP Project,Corporate Travel Management (North) Ltd,99938919,0.80,T&S Overseas - Accommodation
BEIS,UKRI - AHRC,06/04/2023,T&S Overseas - Accommodation,HERA JRP Project,Corporate Travel Management (North) Ltd,99938919,491.29,T&S Overseas - Accommodation
BEIS,UKRI - AHRC,06/04/2023,T&S Overseas - Accommodation,HERA JRP Project,Corporate Travel Management (North) Ltd,99938919,0.16,T&S Overseas - Accommodation
BEIS,UKRI - AHRC,06/04/2023,T&S Overseas - Accommodation,"Heritage, Culture & Creative Arts (HCCA)",Corporate Travel Management (North) Ltd,99938919,2.00,T&S Overseas - Accommodation
BEIS,UKRI - AHRC,06/04/2023,T&S Overseas - Accommodation,"Heritage, Culture & Creative Arts (HCCA)",Corporate Travel Management (North) Ltd,99938919,427.82,T&S Overseas - Accommodation
BEIS,UKRI - AHRC,06/04/2023,T&S Overseas - Accommodation,"Heritage, Culture & Creative Arts (HCCA)",Corporate Travel Management (North) Ltd,99938919,0.40,T&S Overseas - Accommodation
BEIS,UKRI - AHRC,06/04/2023,T&S Overseas - Accommodation,Infrastruture Roadmap,Corporate Travel Management (North) Ltd,99938919,115.81,T&S Overseas - Accommodation
BEIS,UKRI - AHRC,06/04/2023,T&S Overseas - Accommodation,Infrastruture Roadmap,Corporate Travel Management (North) Ltd,99938919,0.80,T&S Overseas - Accommodation
BEIS,UKRI - AHRC,06/04/2023,T&S Overseas - Accommodation,Infrastruture Roadmap,Corporate Travel Management (North) Ltd,99938919,625.58,T&S Overseas - Accommodation
BEIS,UKRI - AHRC,06/04/2023,T&S Overseas - Accommodation,Infrastruture Roadmap,Corporate Travel Management (North) Ltd,99938919,0.80,T&S Overseas - Accommodation
BEIS,UKRI - AHRC,06/04/2023,T&S Overseas - Accommodation,Infrastruture Roadmap,Corporate Travel Management (North) Ltd,99938919,613.60,T&S Overseas - Accommodation
BEIS,UKRI - AHRC,06/04/2023,T&S Overseas - Accommodation,Infrastruture Roadmap,Corporate Travel Management (North) Ltd,99938919,0.32,T&S Overseas - Accommodation
BEIS,UKRI - AHRC,06/04/2023,T&S Overseas - Accommodation,International Partnership and Engagement,Corporate Travel Management (North) Ltd,99938919,0.80,T&S Overseas - Accommodation
BEIS,UKRI - AHRC,06/04/2023,T&S Overseas - Accommodation,International Partnership and Engagement,Corporate Travel Management (North) Ltd,99938919,0.16,T&S Overseas - Accommodation
BEIS,UKRI - AHRC,06/04/2023,T&S UK - Accommodation,AI&Design,Corporate Travel Management (North) Ltd,99938919,385.20,T&S UK - Accommodation
BEIS,UKRI - AHRC,06/04/2023,T&S UK - Accommodation,Board and Committee,Corporate Travel Management (North) Ltd,99938919,2.00,T&S UK - Accommodation
BEIS,UKRI - AHRC,06/04/2023,T&S UK - Accommodation,Board and Committee,Corporate Travel Management (North) Ltd,99938919,1619.50,T&S UK - Accommodation
BEIS,UKRI - AHRC,06/04/2023,T&S UK - Accommodation,Board and Committee,Corporate Travel Management (North) Ltd,99938919,0.40,T&S UK - Accommodation
BEIS,UKRI - AHRC,06/04/2023,T&S UK - Accommodation,Infrastruture Roadmap,Corporate Travel Management (North) Ltd,99938919,0.80,T&S UK - Accommodation
BEIS,UKRI - AHRC,06/04/2023,T&S UK - Accommodation,Infrastruture Roadmap,Corporate Travel Management (North) Ltd,99938919,56.05,T&S UK - Accommodation
BEIS,UKRI - AHRC,06/04/2023,T&S UK - Accommodation,Infrastruture Roadmap,Corporate Travel Management (North) Ltd,99938919,0.80,T&S UK - Accommodation
BEIS,UKRI - AHRC,06/04/2023,T&S UK - Accommodation,Infrastruture Roadmap,Corporate Travel Management (North) Ltd,99938919,66.04,T&S UK - Accommodation
BEIS,UKRI - AHRC,06/04/2023,T&S UK - Accommodation,Infrastruture Roadmap,Corporate Travel Management (North) Ltd,99938919,0.80,T&S UK - Accommodation
BEIS,UKRI - AHRC,06/04/2023,T&S UK - Accommodation,Infrastruture Roadmap,Corporate Travel Management (North) Ltd,99938919,53.50,T&S UK - Accommodation
BEIS,UKRI - AHRC,06/04/2023,T&S UK - Accommodation,Infrastruture Roadmap,Corporate Travel Management (North) Ltd,99938919,0.48,T&S UK - Accommodation
BEIS,UKRI - AHRC,06/04/2023,T&S UK - Accommodation,Operations,Corporate Travel Management (North) Ltd,99938919,0.80,T&S UK - Accommodation
BEIS,UKRI - AHRC,06/04/2023,T&S UK - Accommodation,Operations,Corporate Travel Management (North) Ltd,99938919,115.00,T&S UK - Accommodation
BEIS,UKRI - AHRC,06/04/2023,T&S UK - Accommodation,Operations,Corporate Travel Management (North) Ltd,99938919,0.80,T&S UK - Accommodation
BEIS,UKRI - AHRC,06/04/2023,T&S UK - Accommodation,Operations,Corporate Travel Management (North) Ltd,99938919,115.00,T&S UK - Accommodation
BEIS,UKRI - AHRC,06/04/2023,T&S UK - Accommodation,Operations,Corporate Travel Management (North) Ltd,99938919,0.80,T&S UK - Accommodation
BEIS,UKRI - AHRC,06/04/2023,T&S UK - Accommodation,Operations,Corporate Travel Management (North) Ltd,99938919,115.00,T&S UK - Accommodation
BEIS,UKRI - AHRC,06/04/2023,T&S UK - Accommodation,Operations,Corporate Travel Management (North) Ltd,99938919,0.48,T&S UK - Accommodation
BEIS,UKRI - AHRC,06/04/2023,T&S UK - Accommodation,SMT,Corporate Travel Management (North) Ltd,99938919,0.80,T&S UK - Accommodation
BEIS,UKRI - AHRC,06/04/2023,T&S UK - Accommodation,SMT,Corporate Travel Management (North) Ltd,99938919,66.04,T&S UK - Accommodation
BEIS,UKRI - AHRC,06/04/2023,T&S UK - Accommodation,SMT,Corporate Travel Management (North) Ltd,99938919,0.80,T&S UK - Accommodation
BEIS,UKRI - AHRC,06/04/2023,T&S UK - Accommodation,SMT,Corporate Travel Management (North) Ltd,99938919,112.00,T&S UK - Accommodation
BEIS,UKRI - AHRC,06/04/2023,T&S UK - Accommodation,SMT,Corporate Travel Management (North) Ltd,99938919,0.80,T&S UK - Accommodation
BEIS,UKRI - AHRC,06/04/2023,T&S UK - Accommodation,SMT,Corporate Travel Management (North) Ltd,99938919,160.00,T&S UK - Accommodation
BEIS,UKRI - AHRC,06/04/2023,T&S UK - Accommodation,SMT,Corporate Travel Management (North) Ltd,99938919,0.48,T&S UK - Accommodation
BEIS,UKRI - AHRC,06/04/2023,T&S UK - Accommodation,Strategy and Evidence,Corporate Travel Management (North) Ltd,99938919,0.80,T&S UK - Accommodation
BEIS,UKRI - AHRC,06/04/2023,T&S UK - Accommodation,Strategy and Evidence,Corporate Travel Management (North) Ltd,99938919,89.10,T&S UK - Accommodation
BEIS,UKRI - AHRC,06/04/2023,T&S UK - Accommodation,Strategy and Evidence,Corporate Travel Management (North) Ltd,99938919,0.16,T&S UK - Accommodation
BEIS,UKRI - AHRC,06/04/2023,T&S UK - Public Transport,Executive Office,Corporate Travel Management (North) Ltd,99938919,10.00,T&S UK - Public Transport
BEIS,UKRI - AHRC,06/04/2023,T&S UK - Public Transport,Executive Office,Corporate Travel Management (North) Ltd,99938919,-59.20,T&S UK - Public Transport
BEIS,UKRI - AHRC,06/04/2023,T&S UK - Public Transport,Infrastruture Roadmap,Corporate Travel Management (North) Ltd,99938919,10.00,T&S UK - Public Transport
BEIS,UKRI - AHRC,06/04/2023,T&S UK - Public Transport,Infrastruture Roadmap,Corporate Travel Management (North) Ltd,99938919,-82.40,T&S UK - Public Transport
BEIS,UKRI - AHRC,06/04/2023,T&S UK - Public Transport,Infrastruture Roadmap,Corporate Travel Management (North) Ltd,99938919,-153.70,T&S UK - Public Transport
BEIS,UKRI - AHRC,06/04/2023,T&S UK - Public Transport,Infrastruture Roadmap,Corporate Travel Management (North) Ltd,99938919,10.00,T&S UK - Public Transport
BEIS,UKRI - AHRC,06/04/2023,T&S UK - Public Transport,Infrastruture Roadmap,Corporate Travel Management (North) Ltd,99938919,-147.20,T&S UK - Public Transport
BEIS,UKRI - AHRC,11/04/2023,Fees (Including College Members),Operations,Unspecified,99939156,170.00,Fees (Including College Members)
BEIS,UKRI - AHRC,11/04/2023,Other Programme Costs,International Placement Scheme,University of Surrey,99939311,500.00,Other Programme Costs
BEIS,UKRI - AHRC,12/04/2023,Unspecified,Balance Sheet,HM Revenue & Customs,99935317,66016.22,NI Payable Salaries
BEIS,UKRI - AHRC,12/04/2023,Unspecified,Balance Sheet,HM Revenue & Customs,99935318,52341.04,PAYE Payable Salaries
BEIS,UKRI - AHRC,12/04/2023,Unspecified,Balance Sheet,HM Revenue & Customs,99935319,5648.00,Student Loans
BEIS,UKRI - AHRC,12/04/2023,Unspecified,Corporate Services,HM Revenue & Customs,99935320,1753.00,Apprenticeship Levy
BEIS,UKRI - AHRC,12/04/2023,Unspecified,Public Engagement,UCL Consultants Ltd,99938500,10000.00,Legal & Professional Services
BEIS,UKRI - AHRC,12/04/2023,Conferences & Seminars,AHRC - Creative Industries,Calder Conference Ltd,99939168,1235.00,Conferences & Seminars
BEIS,UKRI - AHRC,12/04/2023,Hospitality,AHRC - Creative Industries,Calder Conference Ltd,99939170,2655.00,Hospitality
BEIS,UKRI - AHRC,12/04/2023,T&S UK - Other Charges,SMT,Unspecified,99940291,2.80,T&S UK - Other Charges
BEIS,UKRI - AHRC,12/04/2023,T&S UK - Public Transport,SMT,Unspecified,99940291,155.88,T&S UK - Public Transport
BEIS,UKRI - AHRC,12/04/2023,T&S UK - Subsistence,SMT,Unspecified,99940291,12.50,T&S UK - Subsistence
BEIS,UKRI - AHRC,12/04/2023,T&S UK - Subsistence,SMT,Unspecified,99940291,16.82,T&S UK - Subsistence
BEIS,UKRI - AHRC,12/04/2023,Health & Safety (inc. Medicals & Opticians),International Partnership and Engagement,Unspecified,99940292,75.00,Health & Safety (inc. Medicals & Opticians)
BEIS,UKRI - AHRC,13/04/2023,Voluntary Deductions,Balance Sheet,Swindon Office Sports and Social Club,99935321,32.00,Voluntary Deductions
BEIS,UKRI - AHRC,13/04/2023,Union Deductions,Balance Sheet,PCS Union,99935322,59.84,Union Deductions
BEIS,UKRI - AHRC,13/04/2023,Unspecified,Balance Sheet,Unspecified,99935323,367.00,Ees Pension Deductions - JSS
BEIS,UKRI - AHRC,13/04/2023,Unspecified,Balance Sheet,Unspecified,99935324,1928.47,Ers Pension Deductions - JSS
BEIS,UKRI - AHRC,13/04/2023,Unspecified,Balance Sheet,Scottish Widows,99935325,193.37,Partnership Pension Deductions
BEIS,UKRI - AHRC,13/04/2023,Unspecified,Balance Sheet,Cabinet Office RM Shared Services,99935326,13019.62,Ees Pension Deductions - MyCSP
BEIS,UKRI - AHRC,13/04/2023,Unspecified,Balance Sheet,Cabinet Office RM Shared Services,99935327,58421.90,Ers Pension Deductions - MyCSP
BEIS,UKRI - AHRC,13/04/2023,Unspecified,Balance Sheet,Unspecified,99935328,561.77,Ees Pension Deductions - MRC
BEIS,UKRI - AHRC,13/04/2023,Unspecified,Balance Sheet,Unspecified,99935329,1382.81,Ers Pension Deductions - MRC
BEIS,UKRI - AHRC,13/04/2023,Nursery Deductions,Balance Sheet,UKRI - Engineering & Physical Sciences Research Council,99935330,985.00,Nursery Deductions
BEIS,UKRI - AHRC,13/04/2023,Voluntary Deductions,Balance Sheet,Civil Service Benevolent Fund,99935331,5.00,Voluntary Deductions
BEIS,UKRI - AHRC,13/04/2023,Fees (Including College Members),Operations,Unspecified,99940452,340.00,Fees (Including College Members)
BEIS,UKRI - AHRC,13/04/2023,Fees (Including College Members),Operations,Unspecified,99940453,340.00,Fees (Including College Members)
BEIS,UKRI - AHRC,13/04/2023,Fees (Including College Members),Operations,Unspecified,99940454,340.00,Fees (Including College Members)
BEIS,UKRI - AHRC,13/04/2023,Fees (Including College Members),Operations,Unspecified,99940455,170.00,Fees (Including College Members)
BEIS,UKRI - AHRC,13/04/2023,Fees (Including College Members),Operations,Unspecified,99940456,340.00,Fees (Including College Members)
BEIS,UKRI - AHRC,13/04/2023,Fees (Including College Members),Operations,Unspecified,99940457,170.00,Fees (Including College Members)
BEIS,UKRI - AHRC,13/04/2023,Fees (Including College Members),Operations,Unspecified,99940458,170.00,Fees (Including College Members)
BEIS,UKRI - AHRC,13/04/2023,Fees (Including College Members),Operations,Unspecified,99940459,170.00,Fees (Including College Members)
BEIS,UKRI - AHRC,13/04/2023,Fees (Including College Members),Operations,Unspecified,99940460,170.00,Fees (Including College Members)
BEIS,UKRI - AHRC,13/04/2023,Fees (Including College Members),Operations,Unspecified,99940461,170.00,Fees (Including College Members)
BEIS,UKRI - AHRC,13/04/2023,T&S UK - Public Transport,SMT,Unspecified,99941674,6.60,T&S UK - Public Transport
BEIS,UKRI - AHRC,13/04/2023,T&S UK - Subsistence,SMT,Unspecified,99941674,6.50,T&S UK - Subsistence
BEIS,UKRI - AHRC,13/04/2023,T&S UK - Subsistence,SMT,Unspecified,99941674,30.25,T&S UK - Subsistence
BEIS,UKRI - AHRC,13/04/2023,T&S UK - Subsistence,SMT,Unspecified,99941674,9.97,T&S UK - Subsistence
BEIS,UKRI - AHRC,14/04/2023,T&S UK - Other Charges,AHRC - Creative Industries,Unspecified,99942334,4.99,T&S UK - Other Charges
BEIS,UKRI - AHRC,14/04/2023,T&S UK - Public Transport,AHRC - Creative Industries,Unspecified,99942334,13.00,T&S UK - Public Transport
BEIS,UKRI - AHRC,14/04/2023,Research Grant Expenditure,Public Engagement,ARCUS STUDIOS LTD,99942948,20000.00,Research Grant Expenditure
BEIS,UKRI - AHRC,17/04/2023,Non-staff travel and subsistance,Engagement with the Innovation Scholarship programme,Unspecified,99943302,214.80,Non-staff travel and subsistance
BEIS,UKRI - AHRC,17/04/2023,Staff Training,SMT,TLA Global Ltd t/a Transform Learning Academy,99943437,3120.00,Staff Training
BEIS,UKRI - AHRC,17/04/2023,Catering Contracts,Infrastructure Fund - CoSTAR,Fooditude Ltd,99943530,1363.69,Catering Contracts
BEIS,UKRI - AHRC,18/04/2023,Unspecified,SMT,University of St Andrews,99936183,20870.48,Secondments
BEIS,UKRI - AHRC,18/04/2023,Research Grant Expenditure,Infrastructure Fund - CoSTAR,Alexander Mann Solutions Ltd,99942723,2772.24,Research Grant Expenditure
BEIS,UKRI - AHRC,18/04/2023,T&S UK - Public Transport,ISCF Creative Clusters,Unspecified,99944940,45.02,T&S UK - Public Transport
BEIS,UKRI - AHRC,18/04/2023,T&S UK - Subsistence,ISCF Creative Clusters,Unspecified,99944940,25.00,T&S UK - Subsistence
BEIS,UKRI - AHRC,18/04/2023,T&S UK - Parking Tolls Congestion Charges,Infrastructure Fund - CoSTAR,Unspecified,99944941,6.00,T&S UK - Parking Tolls Congestion Charges
BEIS,UKRI - AHRC,18/04/2023,T&S UK - Subsistence,Infrastructure Fund - CoSTAR,Unspecified,99944941,74.68,T&S UK - Subsistence
BEIS,UKRI - AHRC,18/04/2023,T&S UK - Subsistence,Infrastructure Fund - CoSTAR,Unspecified,99944941,5.90,T&S UK - Subsistence
BEIS,UKRI - AHRC,18/04/2023,T&S UK - Flights,HERA JRP Project,Unspecified,99944942,18.00,T&S UK - Flights
BEIS,UKRI - AHRC,19/04/2023,Non-staff travel and subsistance,Engagement with the Innovation Scholarship programme,Unspecified,99944227,75.50,Non-staff travel and subsistance
BEIS,UKRI - AHRC,20/04/2023,Translation Services,Cultural Value EDI,Just Sign Ltd,99943001,192.00,Translation Services
BEIS,UKRI - AHRC,20/04/2023,T&S UK - Accommodation,Governance,Clarity Travel Ltd t/a Clarity,99944576,54.17,T&S UK - Accommodation
BEIS,UKRI - AHRC,20/04/2023,T&S UK - Accommodation,Governance,Clarity Travel Ltd t/a Clarity,99944576,54.17,T&S UK - Accommodation
BEIS,UKRI - AHRC,20/04/2023,T&S UK - Accommodation,Governance,Clarity Travel Ltd t/a Clarity,99944576,21.66,T&S UK - Accommodation
BEIS,UKRI - AHRC,20/04/2023,T&S UK - Accommodation,Infrastructure Fund - RICHeS,Clarity Travel Ltd t/a Clarity,99944576,54.17,T&S UK - Accommodation
BEIS,UKRI - AHRC,20/04/2023,T&S UK - Accommodation,Infrastructure Fund - RICHeS,Clarity Travel Ltd t/a Clarity,99944576,10.83,T&S UK - Accommodation
BEIS,UKRI - AHRC,20/04/2023,T&S UK - Accommodation,Infrastruture Roadmap,Clarity Travel Ltd t/a Clarity,99944576,60.83,T&S UK - Accommodation
BEIS,UKRI - AHRC,20/04/2023,T&S UK - Accommodation,Infrastruture Roadmap,Clarity Travel Ltd t/a Clarity,99944576,88.15,T&S UK - Accommodation
BEIS,UKRI - AHRC,20/04/2023,T&S UK - Accommodation,Infrastruture Roadmap,Clarity Travel Ltd t/a Clarity,99944576,29.79,T&S UK - Accommodation
BEIS,UKRI - AHRC,20/04/2023,T&S UK - Accommodation,Strategy and Evidence,Clarity Travel Ltd t/a Clarity,99944576,117.50,T&S UK - Accommodation
BEIS,UKRI - AHRC,20/04/2023,T&S UK - Accommodation,Strategy and Evidence,Clarity Travel Ltd t/a Clarity,99944576,23.51,T&S UK - Accommodation
BEIS,UKRI - AHRC,20/04/2023,T&S UK - Flights,Executive Office,Clarity Travel Ltd t/a Clarity,99944576,1.00,T&S UK - Flights
BEIS,UKRI - AHRC,20/04/2023,T&S UK - Flights,Executive Office,Clarity Travel Ltd t/a Clarity,99944576,89.84,T&S UK - Flights
BEIS,UKRI - AHRC,20/04/2023,T&S UK - Flights,SMT,Clarity Travel Ltd t/a Clarity,99944576,1.00,T&S UK - Flights
BEIS,UKRI - AHRC,20/04/2023,T&S UK - Flights,SMT,Clarity Travel Ltd t/a Clarity,99944576,83.99,T&S UK - Flights
BEIS,UKRI - AHRC,20/04/2023,T&S UK - Public Transport,AI&Design,Clarity Travel Ltd t/a Clarity,99944576,0.50,T&S UK - Public Transport
BEIS,UKRI - AHRC,20/04/2023,T&S UK - Public Transport,AI&Design,Clarity Travel Ltd t/a Clarity,99944576,38.50,T&S UK - Public Transport
BEIS,UKRI - AHRC,20/04/2023,T&S UK - Public Transport,AI&Design,Clarity Travel Ltd t/a Clarity,99944576,0.50,T&S UK - Public Transport
BEIS,UKRI - AHRC,20/04/2023,T&S UK - Public Transport,AI&Design,Clarity Travel Ltd t/a Clarity,99944576,49.30,T&S UK - Public Transport
BEIS,UKRI - AHRC,20/04/2023,T&S UK - Public Transport,AI&Design,Clarity Travel Ltd t/a Clarity,99944576,0.50,T&S UK - Public Transport
BEIS,UKRI - AHRC,20/04/2023,T&S UK - Public Transport,AI&Design,Clarity Travel Ltd t/a Clarity,99944576,68.90,T&S UK - Public Transport
BEIS,UKRI - AHRC,20/04/2023,T&S UK - Public Transport,Governance,Clarity Travel Ltd t/a Clarity,99944576,0.50,T&S UK - Public Transport
BEIS,UKRI - AHRC,20/04/2023,T&S UK - Public Transport,Governance,Clarity Travel Ltd t/a Clarity,99944576,33.50,T&S UK - Public Transport
BEIS,UKRI - AHRC,20/04/2023,T&S UK - Public Transport,Governance,Clarity Travel Ltd t/a Clarity,99944576,0.50,T&S UK - Public Transport
BEIS,UKRI - AHRC,20/04/2023,T&S UK - Public Transport,Governance,Clarity Travel Ltd t/a Clarity,99944576,33.50,T&S UK - Public Transport
BEIS,UKRI - AHRC,20/04/2023,T&S UK - Public Transport,HERA JRP Project,Clarity Travel Ltd t/a Clarity,99944576,1.00,T&S UK - Public Transport
BEIS,UKRI - AHRC,20/04/2023,T&S UK - Public Transport,HERA JRP Project,Clarity Travel Ltd t/a Clarity,99944576,20.00,T&S UK - Public Transport
BEIS,UKRI - AHRC,20/04/2023,T&S UK - Public Transport,HERA JRP Project,Clarity Travel Ltd t/a Clarity,99944576,13.20,T&S UK - Public Transport
BEIS,UKRI - AHRC,20/04/2023,T&S UK - Public Transport,HERA JRP Project,Clarity Travel Ltd t/a Clarity,99944576,0.50,T&S UK - Public Transport
BEIS,UKRI - AHRC,20/04/2023,T&S UK - Public Transport,HERA JRP Project,Clarity Travel Ltd t/a Clarity,99944576,42.00,T&S UK - Public Transport
BEIS,UKRI - AHRC,20/04/2023,T&S UK - Public Transport,Industrial Strategy Challenge Fund (ISCF) - Creative Clusters,Clarity Travel Ltd t/a Clarity,99944576,0.50,T&S UK - Public Transport
BEIS,UKRI - AHRC,20/04/2023,T&S UK - Public Transport,Industrial Strategy Challenge Fund (ISCF) - Creative Clusters,Clarity Travel Ltd t/a Clarity,99944576,59.30,T&S UK - Public Transport
BEIS,UKRI - AHRC,20/04/2023,T&S UK - Public Transport,Industrial Strategy Challenge Fund (ISCF) - Creative Clusters,Clarity Travel Ltd t/a Clarity,99944576,0.50,T&S UK - Public Transport
BEIS,UKRI - AHRC,20/04/2023,T&S UK - Public Transport,Industrial Strategy Challenge Fund (ISCF) - Creative Clusters,Clarity Travel Ltd t/a Clarity,99944576,27.50,T&S UK - Public Transport
BEIS,UKRI - AHRC,20/04/2023,T&S UK - Public Transport,Industrial Strategy Challenge Fund (ISCF) - Creative Clusters,Clarity Travel Ltd t/a Clarity,99944576,0.50,T&S UK - Public Transport
BEIS,UKRI - AHRC,20/04/2023,T&S UK - Public Transport,Industrial Strategy Challenge Fund (ISCF) - Creative Clusters,Clarity Travel Ltd t/a Clarity,99944576,62.80,T&S UK - Public Transport
BEIS,UKRI - AHRC,20/04/2023,T&S UK - Public Transport,Infrastructure Fund - CoSTAR,Clarity Travel Ltd t/a Clarity,99944576,1.00,T&S UK - Public Transport
BEIS,UKRI - AHRC,20/04/2023,T&S UK - Public Transport,Infrastructure Fund - CoSTAR,Clarity Travel Ltd t/a Clarity,99944576,12.30,T&S UK - Public Transport
BEIS,UKRI - AHRC,20/04/2023,T&S UK - Public Transport,Infrastructure Fund - CoSTAR,Clarity Travel Ltd t/a Clarity,99944576,25.00,T&S UK - Public Transport
BEIS,UKRI - AHRC,20/04/2023,T&S UK - Public Transport,Infrastruture Roadmap,Clarity Travel Ltd t/a Clarity,99944576,0.50,T&S UK - Public Transport
BEIS,UKRI - AHRC,20/04/2023,T&S UK - Public Transport,Infrastruture Roadmap,Clarity Travel Ltd t/a Clarity,99944576,105.80,T&S UK - Public Transport
BEIS,UKRI - AHRC,20/04/2023,T&S UK - Public Transport,Infrastruture Roadmap,Clarity Travel Ltd t/a Clarity,99944576,1.00,T&S UK - Public Transport
BEIS,UKRI - AHRC,20/04/2023,T&S UK - Public Transport,Infrastruture Roadmap,Clarity Travel Ltd t/a Clarity,99944576,34.70,T&S UK - Public Transport
BEIS,UKRI - AHRC,20/04/2023,T&S UK - Public Transport,Infrastruture Roadmap,Clarity Travel Ltd t/a Clarity,99944576,80.50,T&S UK - Public Transport
BEIS,UKRI - AHRC,20/04/2023,T&S UK - Public Transport,Infrastruture Roadmap,Clarity Travel Ltd t/a Clarity,99944576,1.00,T&S UK - Public Transport
BEIS,UKRI - AHRC,20/04/2023,T&S UK - Public Transport,Infrastruture Roadmap,Clarity Travel Ltd t/a Clarity,99944576,66.20,T&S UK - Public Transport
BEIS,UKRI - AHRC,20/04/2023,T&S UK - Public Transport,Infrastruture Roadmap,Clarity Travel Ltd t/a Clarity,99944576,42.20,T&S UK - Public Transport
BEIS,UKRI - AHRC,20/04/2023,T&S UK - Public Transport,Infrastruture Roadmap,Clarity Travel Ltd t/a Clarity,99944576,0.50,T&S UK - Public Transport
BEIS,UKRI - AHRC,20/04/2023,T&S UK - Public Transport,Infrastruture Roadmap,Clarity Travel Ltd t/a Clarity,99944576,25.00,T&S UK - Public Transport
BEIS,UKRI - AHRC,20/04/2023,T&S UK - Public Transport,Infrastruture Roadmap,Clarity Travel Ltd t/a Clarity,99944576,0.50,T&S UK - Public Transport
BEIS,UKRI - AHRC,20/04/2023,T&S UK - Public Transport,Infrastruture Roadmap,Clarity Travel Ltd t/a Clarity,99944576,57.60,T&S UK - Public Transport
BEIS,UKRI - AHRC,20/04/2023,T&S UK - Public Transport,Infrastruture Roadmap,Clarity Travel Ltd t/a Clarity,99944576,1.50,T&S UK - Public Transport
BEIS,UKRI - AHRC,20/04/2023,T&S UK - Public Transport,Infrastruture Roadmap,Clarity Travel Ltd t/a Clarity,99944576,38.50,T&S UK - Public Transport
BEIS,UKRI - AHRC,20/04/2023,T&S UK - Public Transport,Infrastruture Roadmap,Clarity Travel Ltd t/a Clarity,99944576,15.20,T&S UK - Public Transport
BEIS,UKRI - AHRC,20/04/2023,T&S UK - Public Transport,Infrastruture Roadmap,Clarity Travel Ltd t/a Clarity,99944576,40.00,T&S UK - Public Transport
BEIS,UKRI - AHRC,20/04/2023,T&S UK - Public Transport,International Development and Area Studies,Clarity Travel Ltd t/a Clarity,99944576,1.00,T&S UK - Public Transport
BEIS,UKRI - AHRC,20/04/2023,T&S UK - Public Transport,International Development and Area Studies,Clarity Travel Ltd t/a Clarity,99944576,72.50,T&S UK - Public Transport
BEIS,UKRI - AHRC,20/04/2023,T&S UK - Public Transport,International Development and Area Studies,Clarity Travel Ltd t/a Clarity,99944576,36.00,T&S UK - Public Transport
BEIS,UKRI - AHRC,20/04/2023,T&S UK - Public Transport,Public Engagement,Clarity Travel Ltd t/a Clarity,99944576,1.00,T&S UK - Public Transport
BEIS,UKRI - AHRC,20/04/2023,T&S UK - Public Transport,Public Engagement,Clarity Travel Ltd t/a Clarity,99944576,58.00,T&S UK - Public Transport
BEIS,UKRI - AHRC,20/04/2023,T&S UK - Public Transport,Public Engagement,Clarity Travel Ltd t/a Clarity,99944576,65.00,T&S UK - Public Transport
BEIS,UKRI - AHRC,20/04/2023,T&S UK - Public Transport,SMT,Clarity Travel Ltd t/a Clarity,99944576,1.50,T&S UK - Public Transport
BEIS,UKRI - AHRC,20/04/2023,T&S UK - Public Transport,SMT,Clarity Travel Ltd t/a Clarity,99944576,53.90,T&S UK - Public Transport
BEIS,UKRI - AHRC,20/04/2023,T&S UK - Public Transport,SMT,Clarity Travel Ltd t/a Clarity,99944576,28.90,T&S UK - Public Transport
BEIS,UKRI - AHRC,20/04/2023,T&S UK - Public Transport,SMT,Clarity Travel Ltd t/a Clarity,99944576,37.00,T&S UK - Public Transport
BEIS,UKRI - AHRC,20/04/2023,T&S UK - Public Transport,SMT,Clarity Travel Ltd t/a Clarity,99944576,1.00,T&S UK - Public Transport
BEIS,UKRI - AHRC,20/04/2023,T&S UK - Public Transport,SMT,Clarity Travel Ltd t/a Clarity,99944576,71.20,T&S UK - Public Transport
BEIS,UKRI - AHRC,20/04/2023,T&S UK - Public Transport,SMT,Clarity Travel Ltd t/a Clarity,99944576,15.20,T&S UK - Public Transport
BEIS,UKRI - AHRC,20/04/2023,T&S UK - Public Transport,SMT,Clarity Travel Ltd t/a Clarity,99944576,1.50,T&S UK - Public Transport
BEIS,UKRI - AHRC,20/04/2023,T&S UK - Public Transport,SMT,Clarity Travel Ltd t/a Clarity,99944576,60.90,T&S UK - Public Transport
BEIS,UKRI - AHRC,20/04/2023,T&S UK - Public Transport,SMT,Clarity Travel Ltd t/a Clarity,99944576,16.00,T&S UK - Public Transport
BEIS,UKRI - AHRC,20/04/2023,T&S UK - Public Transport,SMT,Clarity Travel Ltd t/a Clarity,99944576,18.20,T&S UK - Public Transport
BEIS,UKRI - AHRC,20/04/2023,T&S UK - Public Transport,SMT,Clarity Travel Ltd t/a Clarity,99944576,0.50,T&S UK - Public Transport
BEIS,UKRI - AHRC,20/04/2023,T&S UK - Public Transport,SMT,Clarity Travel Ltd t/a Clarity,99944576,30.00,T&S UK - Public Transport
BEIS,UKRI - AHRC,20/04/2023,T&S UK - Public Transport,SMT,Clarity Travel Ltd t/a Clarity,99944576,0.50,T&S UK - Public Transport
BEIS,UKRI - AHRC,20/04/2023,T&S UK - Public Transport,SMT,Clarity Travel Ltd t/a Clarity,99944576,18.20,T&S UK - Public Transport
BEIS,UKRI - AHRC,20/04/2023,T&S UK - Public Transport,SMT,Clarity Travel Ltd t/a Clarity,99944576,1.00,T&S UK - Public Transport
BEIS,UKRI - AHRC,20/04/2023,T&S UK - Public Transport,SMT,Clarity Travel Ltd t/a Clarity,99944576,31.10,T&S UK - Public Transport
BEIS,UKRI - AHRC,20/04/2023,T&S UK - Public Transport,SMT,Clarity Travel Ltd t/a Clarity,99944576,31.10,T&S UK - Public Transport
BEIS,UKRI - AHRC,20/04/2023,T&S UK - Public Transport,SMT,Clarity Travel Ltd t/a Clarity,99944576,1.50,T&S UK - Public Transport
BEIS,UKRI - AHRC,20/04/2023,T&S UK - Public Transport,SMT,Clarity Travel Ltd t/a Clarity,99944576,106.60,T&S UK - Public Transport
BEIS,UKRI - AHRC,20/04/2023,T&S UK - Public Transport,SMT,Clarity Travel Ltd t/a Clarity,99944576,15.20,T&S UK - Public Transport
BEIS,UKRI - AHRC,20/04/2023,T&S UK - Public Transport,SMT,Clarity Travel Ltd t/a Clarity,99944576,123.10,T&S UK - Public Transport
BEIS,UKRI - AHRC,20/04/2023,T&S UK - Public Transport,Strategy and Evidence,Clarity Travel Ltd t/a Clarity,99944576,0.50,T&S UK - Public Transport
BEIS,UKRI - AHRC,20/04/2023,T&S UK - Public Transport,Strategy and Evidence,Clarity Travel Ltd t/a Clarity,99944576,111.60,T&S UK - Public Transport
BEIS,UKRI - AHRC,20/04/2023,Fees (Including College Members),Operations,Unspecified,99944606,230.00,Fees (Including College Members)
BEIS,UKRI - AHRC,20/04/2023,Fees (Including College Members),Operations,Unspecified,99944640,340.00,Fees (Including College Members)
BEIS,UKRI - AHRC,20/04/2023,Fees (Including College Members),Operations,Unspecified,99944641,340.00,Fees (Including College Members)
BEIS,UKRI - AHRC,20/04/2023,Fees (Including College Members),Operations,Unspecified,99944643,170.00,Fees (Including College Members)
BEIS,UKRI - AHRC,20/04/2023,Fees (Including College Members),Operations,Unspecified,99944644,460.00,Fees (Including College Members)
BEIS,UKRI - AHRC,20/04/2023,Fees (Including College Members),Operations,Unspecified,99944645,340.00,Fees (Including College Members)
BEIS,UKRI - AHRC,20/04/2023,Fees (Including College Members),Operations,Unspecified,99944646,340.00,Fees (Including College Members)
BEIS,UKRI - AHRC,20/04/2023,T&S UK - Other Charges,"Health, Environmental & Urban Humanities (HEUH)",Unspecified,99944668,1.20,T&S UK - Other Charges
BEIS,UKRI - AHRC,20/04/2023,T&S UK - Subsistence,"Health, Environmental & Urban Humanities (HEUH)",Unspecified,99944668,28.79,T&S UK - Subsistence
BEIS,UKRI - AHRC,20/04/2023,T&S UK - Subsistence,"Health, Environmental & Urban Humanities (HEUH)",Unspecified,99944668,4.00,T&S UK - Subsistence
BEIS,UKRI - AHRC,20/04/2023,T&S Overseas - Accommodation,HERA JRP Project,Clarity Travel Ltd t/a Clarity,99945518,287.22,T&S Overseas - Accommodation
BEIS,UKRI - AHRC,20/04/2023,T&S Overseas - Accommodation,"Heritage, Culture & Creative Arts (HCCA)",Clarity Travel Ltd t/a Clarity,99945518,353.36,T&S Overseas - Accommodation
BEIS,UKRI - AHRC,20/04/2023,T&S Overseas - Accommodation,International Partnership and Engagement,Clarity Travel Ltd t/a Clarity,99945518,356.64,T&S Overseas - Accommodation
BEIS,UKRI - AHRC,20/04/2023,T&S Overseas - Flights,HERA JRP Project,Clarity Travel Ltd t/a Clarity,99945518,1.00,T&S Overseas - Flights
BEIS,UKRI - AHRC,20/04/2023,T&S Overseas - Flights,HERA JRP Project,Clarity Travel Ltd t/a Clarity,99945518,306.94,T&S Overseas - Flights
BEIS,UKRI - AHRC,20/04/2023,T&S Overseas - Flights,Infrastruture Roadmap,Clarity Travel Ltd t/a Clarity,99945518,1.00,T&S Overseas - Flights
BEIS,UKRI - AHRC,20/04/2023,T&S Overseas - Flights,Infrastruture Roadmap,Clarity Travel Ltd t/a Clarity,99945518,195.74,T&S Overseas - Flights
BEIS,UKRI - AHRC,20/04/2023,T&S Overseas - Flights,SMT,Clarity Travel Ltd t/a Clarity,99945518,1.00,T&S Overseas - Flights
BEIS,UKRI - AHRC,20/04/2023,T&S Overseas - Flights,SMT,Clarity Travel Ltd t/a Clarity,99945518,262.66,T&S Overseas - Flights
BEIS,UKRI - AHRC,20/04/2023,T&S UK - Accommodation,Industrial Strategy Challenge Fund (ISCF),Clarity Travel Ltd t/a Clarity,99945518,105.83,T&S UK - Accommodation
BEIS,UKRI - AHRC,20/04/2023,T&S UK - Accommodation,Industrial Strategy Challenge Fund (ISCF),Clarity Travel Ltd t/a Clarity,99945518,21.17,T&S UK - Accommodation
BEIS,UKRI - AHRC,20/04/2023,T&S UK - Accommodation,Industrial Strategy Challenge Fund (ISCF) - Creative Clusters,Clarity Travel Ltd t/a Clarity,99945518,278.33,T&S UK - Accommodation
BEIS,UKRI - AHRC,20/04/2023,T&S UK - Accommodation,Industrial Strategy Challenge Fund (ISCF) - Creative Clusters,Clarity Travel Ltd t/a Clarity,99945518,55.68,T&S UK - Accommodation
BEIS,UKRI - AHRC,20/04/2023,T&S UK - Accommodation,Infrastruture Roadmap,Clarity Travel Ltd t/a Clarity,99945518,74.17,T&S UK - Accommodation
BEIS,UKRI - AHRC,20/04/2023,T&S UK - Accommodation,Infrastruture Roadmap,Clarity Travel Ltd t/a Clarity,99945518,121.12,T&S UK - Accommodation
BEIS,UKRI - AHRC,20/04/2023,T&S UK - Accommodation,Infrastruture Roadmap,Clarity Travel Ltd t/a Clarity,99945518,54.17,T&S UK - Accommodation
BEIS,UKRI - AHRC,20/04/2023,T&S UK - Accommodation,Infrastruture Roadmap,Clarity Travel Ltd t/a Clarity,99945518,54.17,T&S UK - Accommodation
BEIS,UKRI - AHRC,20/04/2023,T&S UK - Accommodation,Infrastruture Roadmap,Clarity Travel Ltd t/a Clarity,99945518,60.71,T&S UK - Accommodation
BEIS,UKRI - AHRC,20/04/2023,T&S UK - Accommodation,SMT,Clarity Travel Ltd t/a Clarity,99945518,60.00,T&S UK - Accommodation
BEIS,UKRI - AHRC,20/04/2023,T&S UK - Accommodation,SMT,Clarity Travel Ltd t/a Clarity,99945518,12.00,T&S UK - Accommodation
BEIS,UKRI - AHRC,20/04/2023,T&S UK - Accommodation,Strategy and Evidence,Clarity Travel Ltd t/a Clarity,99945518,60.00,T&S UK - Accommodation
BEIS,UKRI - AHRC,20/04/2023,T&S UK - Accommodation,Strategy and Evidence,Clarity Travel Ltd t/a Clarity,99945518,60.00,T&S UK - Accommodation
BEIS,UKRI - AHRC,20/04/2023,T&S UK - Accommodation,Strategy and Evidence,Clarity Travel Ltd t/a Clarity,99945518,24.00,T&S UK - Accommodation
BEIS,UKRI - AHRC,20/04/2023,T&S UK - Flights,SMT,Clarity Travel Ltd t/a Clarity,99945518,1.00,T&S UK - Flights
BEIS,UKRI - AHRC,20/04/2023,T&S UK - Flights,SMT,Clarity Travel Ltd t/a Clarity,99945518,435.62,T&S UK - Flights
BEIS,UKRI - AHRC,20/04/2023,T&S UK - Public Transport,AHRC - Creative Industries,Clarity Travel Ltd t/a Clarity,99945518,0.50,T&S UK - Public Transport
BEIS,UKRI - AHRC,20/04/2023,T&S UK - Public Transport,AHRC - Creative Industries,Clarity Travel Ltd t/a Clarity,99945518,63.20,T&S UK - Public Transport
BEIS,UKRI - AHRC,20/04/2023,T&S UK - Public Transport,AHRC - Creative Industries,Clarity Travel Ltd t/a Clarity,99945518,0.50,T&S UK - Public Transport
BEIS,UKRI - AHRC,20/04/2023,T&S UK - Public Transport,AHRC - Creative Industries,Clarity Travel Ltd t/a Clarity,99945518,214.60,T&S UK - Public Transport
BEIS,UKRI - AHRC,20/04/2023,T&S UK - Public Transport,Executive Office,Clarity Travel Ltd t/a Clarity,99945518,1.00,T&S UK - Public Transport
BEIS,UKRI - AHRC,20/04/2023,T&S UK - Public Transport,Executive Office,Clarity Travel Ltd t/a Clarity,99945518,43.00,T&S UK - Public Transport
BEIS,UKRI - AHRC,20/04/2023,T&S UK - Public Transport,Executive Office,Clarity Travel Ltd t/a Clarity,99945518,32.50,T&S UK - Public Transport
BEIS,UKRI - AHRC,20/04/2023,T&S UK - Public Transport,Executive Office,Clarity Travel Ltd t/a Clarity,99945518,0.50,T&S UK - Public Transport
BEIS,UKRI - AHRC,20/04/2023,T&S UK - Public Transport,Executive Office,Clarity Travel Ltd t/a Clarity,99945518,168.20,T&S UK - Public Transport
BEIS,UKRI - AHRC,20/04/2023,T&S UK - Public Transport,Executive Office,Clarity Travel Ltd t/a Clarity,99945518,1.00,T&S UK - Public Transport
BEIS,UKRI - AHRC,20/04/2023,T&S UK - Public Transport,Executive Office,Clarity Travel Ltd t/a Clarity,99945518,252.80,T&S UK - Public Transport
BEIS,UKRI - AHRC,20/04/2023,T&S UK - Public Transport,Executive Office,Clarity Travel Ltd t/a Clarity,99945518,15.20,T&S UK - Public Transport
BEIS,UKRI - AHRC,20/04/2023,T&S UK - Public Transport,HERA JRP Project,Clarity Travel Ltd t/a Clarity,99945518,0.50,T&S UK - Public Transport
BEIS,UKRI - AHRC,20/04/2023,T&S UK - Public Transport,HERA JRP Project,Clarity Travel Ltd t/a Clarity,99945518,75.20,T&S UK - Public Transport
BEIS,UKRI - AHRC,20/04/2023,T&S UK - Public Transport,"Health, Environmental & Urban Humanities (HEUH)",Clarity Travel Ltd t/a Clarity,99945518,0.50,T&S UK - Public Transport
BEIS,UKRI - AHRC,20/04/2023,T&S UK - Public Transport,"Health, Environmental & Urban Humanities (HEUH)",Clarity Travel Ltd t/a Clarity,99945518,111.00,T&S UK - Public Transport
BEIS,UKRI - AHRC,20/04/2023,T&S UK - Public Transport,ISCF Creative Clusters,Clarity Travel Ltd t/a Clarity,99945518,1.00,T&S UK - Public Transport
BEIS,UKRI - AHRC,20/04/2023,T&S UK - Public Transport,ISCF Creative Clusters,Clarity Travel Ltd t/a Clarity,99945518,15.20,T&S UK - Public Transport
BEIS,UKRI - AHRC,20/04/2023,T&S UK - Public Transport,ISCF Creative Clusters,Clarity Travel Ltd t/a Clarity,99945518,57.20,T&S UK - Public Transport
BEIS,UKRI - AHRC,20/04/2023,T&S UK - Public Transport,ISCF Creative Clusters,Clarity Travel Ltd t/a Clarity,99945518,1.50,T&S UK - Public Transport
BEIS,UKRI - AHRC,20/04/2023,T&S UK - Public Transport,ISCF Creative Clusters,Clarity Travel Ltd t/a Clarity,99945518,33.50,T&S UK - Public Transport
BEIS,UKRI - AHRC,20/04/2023,T&S UK - Public Transport,ISCF Creative Clusters,Clarity Travel Ltd t/a Clarity,99945518,15.20,T&S UK - Public Transport
BEIS,UKRI - AHRC,20/04/2023,T&S UK - Public Transport,ISCF Creative Clusters,Clarity Travel Ltd t/a Clarity,99945518,64.00,T&S UK - Public Transport
BEIS,UKRI - AHRC,20/04/2023,T&S UK - Public Transport,ISCF Creative Clusters,Clarity Travel Ltd t/a Clarity,99945518,1.00,T&S UK - Public Transport
BEIS,UKRI - AHRC,20/04/2023,T&S UK - Public Transport,ISCF Creative Clusters,Clarity Travel Ltd t/a Clarity,99945518,206.60,T&S UK - Public Transport
BEIS,UKRI - AHRC,20/04/2023,T&S UK - Public Transport,ISCF Creative Clusters,Clarity Travel Ltd t/a Clarity,99945518,15.20,T&S UK - Public Transport
BEIS,UKRI - AHRC,20/04/2023,T&S UK - Public Transport,Industrial Strategy Challenge Fund (ISCF),Clarity Travel Ltd t/a Clarity,99945518,0.50,T&S UK - Public Transport
BEIS,UKRI - AHRC,20/04/2023,T&S UK - Public Transport,Industrial Strategy Challenge Fund (ISCF),Clarity Travel Ltd t/a Clarity,99945518,99.60,T&S UK - Public Transport
BEIS,UKRI - AHRC,20/04/2023,T&S UK - Public Transport,Industrial Strategy Challenge Fund (ISCF) - Creative Clusters,Clarity Travel Ltd t/a Clarity,99945518,0.50,T&S UK - Public Transport
BEIS,UKRI - AHRC,20/04/2023,T&S UK - Public Transport,Industrial Strategy Challenge Fund (ISCF) - Creative Clusters,Clarity Travel Ltd t/a Clarity,99945518,34.00,T&S UK - Public Transport
BEIS,UKRI - AHRC,20/04/2023,T&S UK - Public Transport,Industrial Strategy Challenge Fund (ISCF) - Creative Clusters,Clarity Travel Ltd t/a Clarity,99945518,1.00,T&S UK - Public Transport
BEIS,UKRI - AHRC,20/04/2023,T&S UK - Public Transport,Industrial Strategy Challenge Fund (ISCF) - Creative Clusters,Clarity Travel Ltd t/a Clarity,99945518,33.50,T&S UK - Public Transport
BEIS,UKRI - AHRC,20/04/2023,T&S UK - Public Transport,Industrial Strategy Challenge Fund (ISCF) - Creative Clusters,Clarity Travel Ltd t/a Clarity,99945518,15.20,T&S UK - Public Transport
BEIS,UKRI - AHRC,20/04/2023,T&S UK - Public Transport,Infrastructure Fund - CoSTAR,Clarity Travel Ltd t/a Clarity,99945518,0.50,T&S UK - Public Transport
BEIS,UKRI - AHRC,20/04/2023,T&S UK - Public Transport,Infrastructure Fund - CoSTAR,Clarity Travel Ltd t/a Clarity,99945518,37.40,T&S UK - Public Transport
BEIS,UKRI - AHRC,20/04/2023,T&S UK - Public Transport,Infrastructure Fund - CoSTAR,Clarity Travel Ltd t/a Clarity,99945518,1.00,T&S UK - Public Transport
BEIS,UKRI - AHRC,20/04/2023,T&S UK - Public Transport,Infrastructure Fund - CoSTAR,Clarity Travel Ltd t/a Clarity,99945518,192.80,T&S UK - Public Transport
BEIS,UKRI - AHRC,20/04/2023,T&S UK - Public Transport,Infrastructure Fund - CoSTAR,Clarity Travel Ltd t/a Clarity,99945518,80.50,T&S UK - Public Transport
BEIS,UKRI - AHRC,20/04/2023,T&S UK - Public Transport,Infrastructure Fund - CoSTAR,Clarity Travel Ltd t/a Clarity,99945518,1.00,T&S UK - Public Transport
BEIS,UKRI - AHRC,20/04/2023,T&S UK - Public Transport,Infrastructure Fund - CoSTAR,Clarity Travel Ltd t/a Clarity,99945518,7.70,T&S UK - Public Transport
BEIS,UKRI - AHRC,20/04/2023,T&S UK - Public Transport,Infrastructure Fund - CoSTAR,Clarity Travel Ltd t/a Clarity,99945518,76.30,T&S UK - Public Transport
BEIS,UKRI - AHRC,20/04/2023,T&S UK - Public Transport,Infrastructure Fund - CoSTAR,Clarity Travel Ltd t/a Clarity,99945518,0.50,T&S UK - Public Transport
BEIS,UKRI - AHRC,20/04/2023,T&S UK - Public Transport,Infrastructure Fund - CoSTAR,Clarity Travel Ltd t/a Clarity,99945518,86.50,T&S UK - Public Transport
BEIS,UKRI - AHRC,20/04/2023,T&S UK - Public Transport,Infrastructure Fund - CoSTAR,Clarity Travel Ltd t/a Clarity,99945518,0.50,T&S UK - Public Transport
BEIS,UKRI - AHRC,20/04/2023,T&S UK - Public Transport,Infrastructure Fund - CoSTAR,Clarity Travel Ltd t/a Clarity,99945518,192.80,T&S UK - Public Transport
BEIS,UKRI - AHRC,20/04/2023,T&S UK - Public Transport,Infrastructure Fund - RICHeS,Clarity Travel Ltd t/a Clarity,99945518,1.00,T&S UK - Public Transport
BEIS,UKRI - AHRC,20/04/2023,T&S UK - Public Transport,Infrastructure Fund - RICHeS,Clarity Travel Ltd t/a Clarity,99945518,13.80,T&S UK - Public Transport
BEIS,UKRI - AHRC,20/04/2023,T&S UK - Public Transport,Infrastructure Fund - RICHeS,Clarity Travel Ltd t/a Clarity,99945518,20.30,T&S UK - Public Transport
BEIS,UKRI - AHRC,20/04/2023,T&S UK - Public Transport,Infrastructure Fund - RICHeS,Clarity Travel Ltd t/a Clarity,99945518,0.50,T&S UK - Public Transport
BEIS,UKRI - AHRC,20/04/2023,T&S UK - Public Transport,Infrastructure Fund - RICHeS,Clarity Travel Ltd t/a Clarity,99945518,6.80,T&S UK - Public Transport
BEIS,UKRI - AHRC,20/04/2023,T&S UK - Public Transport,Infrastruture Roadmap,Clarity Travel Ltd t/a Clarity,99945518,-100.80,T&S UK - Public Transport
BEIS,UKRI - AHRC,20/04/2023,T&S UK - Public Transport,Infrastruture Roadmap,Clarity Travel Ltd t/a Clarity,99945518,0.50,T&S UK - Public Transport
BEIS,UKRI - AHRC,20/04/2023,T&S UK - Public Transport,Infrastruture Roadmap,Clarity Travel Ltd t/a Clarity,99945518,22.60,T&S UK - Public Transport
BEIS,UKRI - AHRC,20/04/2023,T&S UK - Public Transport,Infrastruture Roadmap,Clarity Travel Ltd t/a Clarity,99945518,0.50,T&S UK - Public Transport
BEIS,UKRI - AHRC,20/04/2023,T&S UK - Public Transport,Infrastruture Roadmap,Clarity Travel Ltd t/a Clarity,99945518,59.40,T&S UK - Public Transport
BEIS,UKRI - AHRC,20/04/2023,T&S UK - Public Transport,Infrastruture Roadmap,Clarity Travel Ltd t/a Clarity,99945518,0.50,T&S UK - Public Transport
BEIS,UKRI - AHRC,20/04/2023,T&S UK - Public Transport,Infrastruture Roadmap,Clarity Travel Ltd t/a Clarity,99945518,77.30,T&S UK - Public Transport
BEIS,UKRI - AHRC,20/04/2023,T&S UK - Public Transport,Infrastruture Roadmap,Clarity Travel Ltd t/a Clarity,99945518,0.50,T&S UK - Public Transport
BEIS,UKRI - AHRC,20/04/2023,T&S UK - Public Transport,Infrastruture Roadmap,Clarity Travel Ltd t/a Clarity,99945518,86.50,T&S UK - Public Transport
BEIS,UKRI - AHRC,20/04/2023,T&S UK - Public Transport,Infrastruture Roadmap,Clarity Travel Ltd t/a Clarity,99945518,1.50,T&S UK - Public Transport
BEIS,UKRI - AHRC,20/04/2023,T&S UK - Public Transport,Infrastruture Roadmap,Clarity Travel Ltd t/a Clarity,99945518,44.50,T&S UK - Public Transport
BEIS,UKRI - AHRC,20/04/2023,T&S UK - Public Transport,Infrastruture Roadmap,Clarity Travel Ltd t/a Clarity,99945518,21.50,T&S UK - Public Transport
BEIS,UKRI - AHRC,20/04/2023,T&S UK - Public Transport,Infrastruture Roadmap,Clarity Travel Ltd t/a Clarity,99945518,44.50,T&S UK - Public Transport
BEIS,UKRI - AHRC,20/04/2023,T&S UK - Public Transport,Infrastruture Roadmap,Clarity Travel Ltd t/a Clarity,99945518,1.00,T&S UK - Public Transport
BEIS,UKRI - AHRC,20/04/2023,T&S UK - Public Transport,Infrastruture Roadmap,Clarity Travel Ltd t/a Clarity,99945518,98.60,T&S UK - Public Transport
BEIS,UKRI - AHRC,20/04/2023,T&S UK - Public Transport,Infrastruture Roadmap,Clarity Travel Ltd t/a Clarity,99945518,6.80,T&S UK - Public Transport
BEIS,UKRI - AHRC,20/04/2023,T&S UK - Public Transport,Infrastruture Roadmap,Clarity Travel Ltd t/a Clarity,99945518,0.50,T&S UK - Public Transport
BEIS,UKRI - AHRC,20/04/2023,T&S UK - Public Transport,Infrastruture Roadmap,Clarity Travel Ltd t/a Clarity,99945518,101.60,T&S UK - Public Transport
BEIS,UKRI - AHRC,20/04/2023,T&S UK - Public Transport,Infrastruture Roadmap,Clarity Travel Ltd t/a Clarity,99945518,1.00,T&S UK - Public Transport
BEIS,UKRI - AHRC,20/04/2023,T&S UK - Public Transport,Infrastruture Roadmap,Clarity Travel Ltd t/a Clarity,99945518,98.60,T&S UK - Public Transport
BEIS,UKRI - AHRC,20/04/2023,T&S UK - Public Transport,Infrastruture Roadmap,Clarity Travel Ltd t/a Clarity,99945518,6.80,T&S UK - Public Transport
BEIS,UKRI - AHRC,20/04/2023,T&S UK - Public Transport,Infrastruture Roadmap,Clarity Travel Ltd t/a Clarity,99945518,1.00,T&S UK - Public Transport
BEIS,UKRI - AHRC,20/04/2023,T&S UK - Public Transport,Infrastruture Roadmap,Clarity Travel Ltd t/a Clarity,99945518,17.60,T&S UK - Public Transport
BEIS,UKRI - AHRC,20/04/2023,T&S UK - Public Transport,Infrastruture Roadmap,Clarity Travel Ltd t/a Clarity,99945518,107.10,T&S UK - Public Transport
BEIS,UKRI - AHRC,20/04/2023,T&S UK - Public Transport,Infrastruture Roadmap,Clarity Travel Ltd t/a Clarity,99945518,1.00,T&S UK - Public Transport
BEIS,UKRI - AHRC,20/04/2023,T&S UK - Public Transport,Infrastruture Roadmap,Clarity Travel Ltd t/a Clarity,99945518,138.00,T&S UK - Public Transport
BEIS,UKRI - AHRC,20/04/2023,T&S UK - Public Transport,Infrastruture Roadmap,Clarity Travel Ltd t/a Clarity,99945518,31.70,T&S UK - Public Transport
BEIS,UKRI - AHRC,20/04/2023,T&S UK - Public Transport,Infrastruture Roadmap,Clarity Travel Ltd t/a Clarity,99945518,0.50,T&S UK - Public Transport
BEIS,UKRI - AHRC,20/04/2023,T&S UK - Public Transport,Infrastruture Roadmap,Clarity Travel Ltd t/a Clarity,99945518,107.10,T&S UK - Public Transport
BEIS,UKRI - AHRC,20/04/2023,T&S UK - Public Transport,Infrastruture Roadmap,Clarity Travel Ltd t/a Clarity,99945518,0.50,T&S UK - Public Transport
BEIS,UKRI - AHRC,20/04/2023,T&S UK - Public Transport,Infrastruture Roadmap,Clarity Travel Ltd t/a Clarity,99945518,77.30,T&S UK - Public Transport
BEIS,UKRI - AHRC,20/04/2023,T&S UK - Public Transport,Infrastruture Roadmap,Clarity Travel Ltd t/a Clarity,99945518,0.50,T&S UK - Public Transport
BEIS,UKRI - AHRC,20/04/2023,T&S UK - Public Transport,Infrastruture Roadmap,Clarity Travel Ltd t/a Clarity,99945518,166.20,T&S UK - Public Transport
BEIS,UKRI - AHRC,20/04/2023,T&S UK - Public Transport,Public and Stakeholder Engagement,Clarity Travel Ltd t/a Clarity,99945518,0.50,T&S UK - Public Transport
BEIS,UKRI - AHRC,20/04/2023,T&S UK - Public Transport,Public and Stakeholder Engagement,Clarity Travel Ltd t/a Clarity,99945518,9.30,T&S UK - Public Transport
BEIS,UKRI - AHRC,20/04/2023,T&S UK - Public Transport,Public and Stakeholder Engagement,Clarity Travel Ltd t/a Clarity,99945518,1.00,T&S UK - Public Transport
BEIS,UKRI - AHRC,20/04/2023,T&S UK - Public Transport,Public and Stakeholder Engagement,Clarity Travel Ltd t/a Clarity,99945518,69.20,T&S UK - Public Transport
BEIS,UKRI - AHRC,20/04/2023,T&S UK - Public Transport,Public and Stakeholder Engagement,Clarity Travel Ltd t/a Clarity,99945518,15.20,T&S UK - Public Transport
BEIS,UKRI - AHRC,20/04/2023,T&S UK - Public Transport,SMT,Clarity Travel Ltd t/a Clarity,99945518,-5.60,T&S UK - Public Transport
BEIS,UKRI - AHRC,20/04/2023,T&S UK - Public Transport,SMT,Clarity Travel Ltd t/a Clarity,99945518,-5.60,T&S UK - Public Transport
BEIS,UKRI - AHRC,20/04/2023,T&S UK - Public Transport,SMT,Clarity Travel Ltd t/a Clarity,99945518,0.50,T&S UK - Public Transport
BEIS,UKRI - AHRC,20/04/2023,T&S UK - Public Transport,SMT,Clarity Travel Ltd t/a Clarity,99945518,160.20,T&S UK - Public Transport
BEIS,UKRI - AHRC,20/04/2023,T&S UK - Public Transport,SMT,Clarity Travel Ltd t/a Clarity,99945518,1.00,T&S UK - Public Transport
BEIS,UKRI - AHRC,20/04/2023,T&S UK - Public Transport,SMT,Clarity Travel Ltd t/a Clarity,99945518,17.10,T&S UK - Public Transport
BEIS,UKRI - AHRC,20/04/2023,T&S UK - Public Transport,SMT,Clarity Travel Ltd t/a Clarity,99945518,27.70,T&S UK - Public Transport
BEIS,UKRI - AHRC,20/04/2023,T&S UK - Public Transport,SMT,Clarity Travel Ltd t/a Clarity,99945518,1.00,T&S UK - Public Transport
BEIS,UKRI - AHRC,20/04/2023,T&S UK - Public Transport,SMT,Clarity Travel Ltd t/a Clarity,99945518,28.50,T&S UK - Public Transport
BEIS,UKRI - AHRC,20/04/2023,T&S UK - Public Transport,SMT,Clarity Travel Ltd t/a Clarity,99945518,17.10,T&S UK - Public Transport
BEIS,UKRI - AHRC,20/04/2023,T&S UK - Public Transport,SMT,Clarity Travel Ltd t/a Clarity,99945518,0.50,T&S UK - Public Transport
BEIS,UKRI - AHRC,20/04/2023,T&S UK - Public Transport,SMT,Clarity Travel Ltd t/a Clarity,99945518,32.20,T&S UK - Public Transport
BEIS,UKRI - AHRC,20/04/2023,T&S UK - Public Transport,SMT,Clarity Travel Ltd t/a Clarity,99945518,0.50,T&S UK - Public Transport
BEIS,UKRI - AHRC,20/04/2023,T&S UK - Public Transport,SMT,Clarity Travel Ltd t/a Clarity,99945518,260.80,T&S UK - Public Transport
BEIS,UKRI - AHRC,20/04/2023,T&S UK - Public Transport,SMT,Clarity Travel Ltd t/a Clarity,99945518,1.50,T&S UK - Public Transport
BEIS,UKRI - AHRC,20/04/2023,T&S UK - Public Transport,SMT,Clarity Travel Ltd t/a Clarity,99945518,80.10,T&S UK - Public Transport
BEIS,UKRI - AHRC,20/04/2023,T&S UK - Public Transport,SMT,Clarity Travel Ltd t/a Clarity,99945518,15.20,T&S UK - Public Transport
BEIS,UKRI - AHRC,20/04/2023,T&S UK - Public Transport,SMT,Clarity Travel Ltd t/a Clarity,99945518,59.00,T&S UK - Public Transport
BEIS,UKRI - AHRC,20/04/2023,T&S UK - Public Transport,SMT,Clarity Travel Ltd t/a Clarity,99945518,0.50,T&S UK - Public Transport
BEIS,UKRI - AHRC,20/04/2023,T&S UK - Public Transport,SMT,Clarity Travel Ltd t/a Clarity,99945518,53.90,T&S UK - Public Transport
BEIS,UKRI - AHRC,20/04/2023,T&S UK - Public Transport,SMT,Clarity Travel Ltd t/a Clarity,99945518,0.50,T&S UK - Public Transport
BEIS,UKRI - AHRC,20/04/2023,T&S UK - Public Transport,SMT,Clarity Travel Ltd t/a Clarity,99945518,27.10,T&S UK - Public Transport
BEIS,UKRI - AHRC,20/04/2023,T&S UK - Public Transport,SMT,Clarity Travel Ltd t/a Clarity,99945518,1.50,T&S UK - Public Transport
BEIS,UKRI - AHRC,20/04/2023,T&S UK - Public Transport,SMT,Clarity Travel Ltd t/a Clarity,99945518,45.00,T&S UK - Public Transport
BEIS,UKRI - AHRC,20/04/2023,T&S UK - Public Transport,SMT,Clarity Travel Ltd t/a Clarity,99945518,45.00,T&S UK - Public Transport
BEIS,UKRI - AHRC,20/04/2023,T&S UK - Public Transport,SMT,Clarity Travel Ltd t/a Clarity,99945518,15.20,T&S UK - Public Transport
BEIS,UKRI - AHRC,20/04/2023,T&S UK - Public Transport,SMT,Clarity Travel Ltd t/a Clarity,99945518,0.50,T&S UK - Public Transport
BEIS,UKRI - AHRC,20/04/2023,T&S UK - Public Transport,SMT,Clarity Travel Ltd t/a Clarity,99945518,53.90,T&S UK - Public Transport
BEIS,UKRI - AHRC,20/04/2023,T&S UK - Public Transport,SMT,Clarity Travel Ltd t/a Clarity,99945518,1.00,T&S UK - Public Transport
BEIS,UKRI - AHRC,20/04/2023,T&S UK - Public Transport,SMT,Clarity Travel Ltd t/a Clarity,99945518,71.20,T&S UK - Public Transport
BEIS,UKRI - AHRC,20/04/2023,T&S UK - Public Transport,SMT,Clarity Travel Ltd t/a Clarity,99945518,15.20,T&S UK - Public Transport
BEIS,UKRI - AHRC,20/04/2023,T&S UK - Public Transport,SMT,Clarity Travel Ltd t/a Clarity,99945518,1.00,T&S UK - Public Transport
BEIS,UKRI - AHRC,20/04/2023,T&S UK - Public Transport,SMT,Clarity Travel Ltd t/a Clarity,99945518,16.80,T&S UK - Public Transport
BEIS,UKRI - AHRC,20/04/2023,T&S UK - Public Transport,SMT,Clarity Travel Ltd t/a Clarity,99945518,92.00,T&S UK - Public Transport
BEIS,UKRI - AHRC,20/04/2023,T&S UK - Public Transport,SMT,Clarity Travel Ltd t/a Clarity,99945518,0.50,T&S UK - Public Transport
BEIS,UKRI - AHRC,20/04/2023,T&S UK - Public Transport,SMT,Clarity Travel Ltd t/a Clarity,99945518,55.00,T&S UK - Public Transport
BEIS,UKRI - AHRC,20/04/2023,T&S UK - Public Transport,SMT,Clarity Travel Ltd t/a Clarity,99945518,0.50,T&S UK - Public Transport
BEIS,UKRI - AHRC,20/04/2023,T&S UK - Public Transport,SMT,Clarity Travel Ltd t/a Clarity,99945518,53.90,T&S UK - Public Transport
BEIS,UKRI - AHRC,20/04/2023,T&S UK - Public Transport,SMT,Clarity Travel Ltd t/a Clarity,99945518,1.00,T&S UK - Public Transport
BEIS,UKRI - AHRC,20/04/2023,T&S UK - Public Transport,SMT,Clarity Travel Ltd t/a Clarity,99945518,126.40,T&S UK - Public Transport
BEIS,UKRI - AHRC,20/04/2023,T&S UK - Public Transport,SMT,Clarity Travel Ltd t/a Clarity,99945518,15.20,T&S UK - Public Transport
BEIS,UKRI - AHRC,20/04/2023,T&S UK - Public Transport,SMT,Clarity Travel Ltd t/a Clarity,99945518,0.50,T&S UK - Public Transport
BEIS,UKRI - AHRC,20/04/2023,T&S UK - Public Transport,SMT,Clarity Travel Ltd t/a Clarity,99945518,112.90,T&S UK - Public Transport
BEIS,UKRI - AHRC,20/04/2023,T&S UK - Public Transport,SMT,Clarity Travel Ltd t/a Clarity,99945518,0.50,T&S UK - Public Transport
BEIS,UKRI - AHRC,20/04/2023,T&S UK - Public Transport,SMT,Clarity Travel Ltd t/a Clarity,99945518,30.30,T&S UK - Public Transport
BEIS,UKRI - AHRC,20/04/2023,T&S UK - Public Transport,SMT,Clarity Travel Ltd t/a Clarity,99945518,0.50,T&S UK - Public Transport
BEIS,UKRI - AHRC,20/04/2023,T&S UK - Public Transport,SMT,Clarity Travel Ltd t/a Clarity,99945518,40.00,T&S UK - Public Transport
BEIS,UKRI - AHRC,20/04/2023,T&S UK - Public Transport,SMT,Clarity Travel Ltd t/a Clarity,99945518,1.00,T&S UK - Public Transport
BEIS,UKRI - AHRC,20/04/2023,T&S UK - Public Transport,SMT,Clarity Travel Ltd t/a Clarity,99945518,165.30,T&S UK - Public Transport
BEIS,UKRI - AHRC,20/04/2023,T&S UK - Public Transport,SMT,Clarity Travel Ltd t/a Clarity,99945518,165.30,T&S UK - Public Transport
BEIS,UKRI - AHRC,20/04/2023,T&S UK - Public Transport,SMT,Clarity Travel Ltd t/a Clarity,99945518,0.50,T&S UK - Public Transport
BEIS,UKRI - AHRC,20/04/2023,T&S UK - Public Transport,SMT,Clarity Travel Ltd t/a Clarity,99945518,16.80,T&S UK - Public Transport
BEIS,UKRI - AHRC,20/04/2023,T&S UK - Public Transport,SMT,Clarity Travel Ltd t/a Clarity,99945518,0.50,T&S UK - Public Transport
BEIS,UKRI - AHRC,20/04/2023,T&S UK - Public Transport,SMT,Clarity Travel Ltd t/a Clarity,99945518,17.20,T&S UK - Public Transport
BEIS,UKRI - AHRC,20/04/2023,T&S UK - Public Transport,SMT,Clarity Travel Ltd t/a Clarity,99945518,1.00,T&S UK - Public Transport
BEIS,UKRI - AHRC,20/04/2023,T&S UK - Public Transport,SMT,Clarity Travel Ltd t/a Clarity,99945518,16.80,T&S UK - Public Transport
BEIS,UKRI - AHRC,20/04/2023,T&S UK - Public Transport,SMT,Clarity Travel Ltd t/a Clarity,99945518,17.20,T&S UK - Public Transport
BEIS,UKRI - AHRC,20/04/2023,T&S UK - Public Transport,SMT,Clarity Travel Ltd t/a Clarity,99945518,1.50,T&S UK - Public Transport
BEIS,UKRI - AHRC,20/04/2023,T&S UK - Public Transport,SMT,Clarity Travel Ltd t/a Clarity,99945518,28.50,T&S UK - Public Transport
BEIS,UKRI - AHRC,20/04/2023,T&S UK - Public Transport,SMT,Clarity Travel Ltd t/a Clarity,99945518,15.20,T&S UK - Public Transport
BEIS,UKRI - AHRC,20/04/2023,T&S UK - Public Transport,SMT,Clarity Travel Ltd t/a Clarity,99945518,32.50,T&S UK - Public Transport
BEIS,UKRI - AHRC,20/04/2023,T&S UK - Public Transport,Strategy and Evidence,Clarity Travel Ltd t/a Clarity,99945518,0.50,T&S UK - Public Transport
BEIS,UKRI - AHRC,20/04/2023,T&S UK - Public Transport,Strategy and Evidence,Clarity Travel Ltd t/a Clarity,99945518,49.60,T&S UK - Public Transport
BEIS,UKRI - AHRC,20/04/2023,T&S UK - Public Transport,Strategy and Evidence,Clarity Travel Ltd t/a Clarity,99945518,0.50,T&S UK - Public Transport
BEIS,UKRI - AHRC,20/04/2023,T&S UK - Public Transport,Strategy and Evidence,Clarity Travel Ltd t/a Clarity,99945518,118.20,T&S UK - Public Transport
BEIS,UKRI - AHRC,20/04/2023,T&S UK - Public Transport,Strategy and Evidence,Clarity Travel Ltd t/a Clarity,99945518,0.50,T&S UK - Public Transport
BEIS,UKRI - AHRC,20/04/2023,T&S UK - Public Transport,Strategy and Evidence,Clarity Travel Ltd t/a Clarity,99945518,118.20,T&S UK - Public Transport
BEIS,UKRI - AHRC,20/04/2023,T&S UK - Public Transport,Strategy and Evidence,Clarity Travel Ltd t/a Clarity,99945518,1.00,T&S UK - Public Transport
BEIS,UKRI - AHRC,20/04/2023,T&S UK - Public Transport,Strategy and Evidence,Clarity Travel Ltd t/a Clarity,99945518,46.50,T&S UK - Public Transport
BEIS,UKRI - AHRC,20/04/2023,T&S UK - Public Transport,Strategy and Evidence,Clarity Travel Ltd t/a Clarity,99945518,46.50,T&S UK - Public Transport
BEIS,UKRI - AHRC,20/04/2023,T&S UK - Public Transport,Strategy and Evidence,Clarity Travel Ltd t/a Clarity,99945518,1.00,T&S UK - Public Transport
BEIS,UKRI - AHRC,20/04/2023,T&S UK - Public Transport,Strategy and Evidence,Clarity Travel Ltd t/a Clarity,99945518,48.00,T&S UK - Public Transport
BEIS,UKRI - AHRC,20/04/2023,T&S UK - Public Transport,Strategy and Evidence,Clarity Travel Ltd t/a Clarity,99945518,48.00,T&S UK - Public Transport
BEIS,UKRI - AHRC,20/04/2023,T&S UK - Public Transport,Strategy and Evidence,Clarity Travel Ltd t/a Clarity,99945518,0.50,T&S UK - Public Transport
BEIS,UKRI - AHRC,20/04/2023,T&S UK - Public Transport,Strategy and Evidence,Clarity Travel Ltd t/a Clarity,99945518,48.00,T&S UK - Public Transport
BEIS,UKRI - AHRC,20/04/2023,T&S UK - Public Transport,Strategy and Evidence,Clarity Travel Ltd t/a Clarity,99945518,0.50,T&S UK - Public Transport
BEIS,UKRI - AHRC,20/04/2023,T&S UK - Public Transport,Strategy and Evidence,Clarity Travel Ltd t/a Clarity,99945518,36.00,T&S UK - Public Transport
BEIS,UKRI - AHRC,20/04/2023,Fees (Including College Members),Operations,Unspecified,99945569,230.00,Fees (Including College Members)
BEIS,UKRI - AHRC,21/04/2023,Research Grant Expenditure,Public Engagement,British Film Institute,99934274,6000.00,Research Grant Expenditure
BEIS,UKRI - AHRC,21/04/2023,Unspecified,Public Engagement,British Film Institute,99934354,3542.40,Legal & Professional Services
BEIS,UKRI - AHRC,21/04/2023,T&S Overseas - Accommodation,Infrastruture Roadmap,Clarity Travel Ltd t/a Clarity,99944705,285.20,T&S Overseas - Accommodation
BEIS,UKRI - AHRC,21/04/2023,T&S Overseas - Accommodation,International Partnership and Engagement,Clarity Travel Ltd t/a Clarity,99944705,356.60,T&S Overseas - Accommodation
BEIS,UKRI - AHRC,21/04/2023,T&S Overseas - Accommodation,Operations,Clarity Travel Ltd t/a Clarity,99944705,357.16,T&S Overseas - Accommodation
BEIS,UKRI - AHRC,21/04/2023,T&S UK - Accommodation,Infrastruture Roadmap,Clarity Travel Ltd t/a Clarity,99944705,71.06,T&S UK - Accommodation
BEIS,UKRI - AHRC,21/04/2023,T&S UK - Accommodation,Infrastruture Roadmap,Clarity Travel Ltd t/a Clarity,99944705,54.17,T&S UK - Accommodation
BEIS,UKRI - AHRC,21/04/2023,T&S UK - Accommodation,Infrastruture Roadmap,Clarity Travel Ltd t/a Clarity,99944705,25.04,T&S UK - Accommodation
BEIS,UKRI - AHRC,21/04/2023,T&S UK - Accommodation,International Partnership and Engagement,Clarity Travel Ltd t/a Clarity,99944705,85.00,T&S UK - Accommodation
BEIS,UKRI - AHRC,21/04/2023,T&S UK - Accommodation,International Partnership and Engagement,Clarity Travel Ltd t/a Clarity,99944705,17.00,T&S UK - Accommodation
BEIS,UKRI - AHRC,21/04/2023,T&S UK - Accommodation,Operations,Clarity Travel Ltd t/a Clarity,99944705,111.22,T&S UK - Accommodation
BEIS,UKRI - AHRC,21/04/2023,T&S UK - Accommodation,SMT,Clarity Travel Ltd t/a Clarity,99944705,112.50,T&S UK - Accommodation
BEIS,UKRI - AHRC,21/04/2023,T&S UK - Accommodation,SMT,Clarity Travel Ltd t/a Clarity,99944705,108.33,T&S UK - Accommodation
BEIS,UKRI - AHRC,21/04/2023,T&S UK - Accommodation,SMT,Clarity Travel Ltd t/a Clarity,99944705,44.17,T&S UK - Accommodation
BEIS,UKRI - AHRC,21/04/2023,T&S UK - Accommodation,Strategy and Evidence,Clarity Travel Ltd t/a Clarity,99944705,108.75,T&S UK - Accommodation
BEIS,UKRI - AHRC,21/04/2023,T&S UK - Accommodation,Strategy and Evidence,Clarity Travel Ltd t/a Clarity,99944705,21.75,T&S UK - Accommodation
BEIS,UKRI - AHRC,21/04/2023,T&S UK - Flights,Infrastruture Roadmap,Clarity Travel Ltd t/a Clarity,99944705,1.00,T&S UK - Flights
BEIS,UKRI - AHRC,21/04/2023,T&S UK - Flights,Infrastruture Roadmap,Clarity Travel Ltd t/a Clarity,99944705,165.35,T&S UK - Flights
BEIS,UKRI - AHRC,21/04/2023,T&S UK - Other Charges,SMT,Clarity Travel Ltd t/a Clarity,99944705,2.50,T&S UK - Other Charges
BEIS,UKRI - AHRC,21/04/2023,T&S UK - Other Charges,SMT,Clarity Travel Ltd t/a Clarity,99944705,79.99,T&S UK - Other Charges
BEIS,UKRI - AHRC,21/04/2023,T&S UK - Other Charges,SMT,Clarity Travel Ltd t/a Clarity,99944705,0.50,T&S UK - Other Charges
BEIS,UKRI - AHRC,21/04/2023,T&S UK - Public Transport,"Health, Environmental & Urban Humanities (HEUH)",Clarity Travel Ltd t/a Clarity,99944705,0.50,T&S UK - Public Transport
BEIS,UKRI - AHRC,21/04/2023,T&S UK - Public Transport,"Health, Environmental & Urban Humanities (HEUH)",Clarity Travel Ltd t/a Clarity,99944705,107.60,T&S UK - Public Transport
BEIS,UKRI - AHRC,21/04/2023,T&S UK - Public Transport,"Health, Environmental & Urban Humanities (HEUH)",Clarity Travel Ltd t/a Clarity,99944705,0.50,T&S UK - Public Transport
BEIS,UKRI - AHRC,21/04/2023,T&S UK - Public Transport,"Health, Environmental & Urban Humanities (HEUH)",Clarity Travel Ltd t/a Clarity,99944705,225.90,T&S UK - Public Transport
BEIS,UKRI - AHRC,21/04/2023,T&S UK - Public Transport,"Health, Environmental & Urban Humanities (HEUH)",Clarity Travel Ltd t/a Clarity,99944705,0.50,T&S UK - Public Transport
BEIS,UKRI - AHRC,21/04/2023,T&S UK - Public Transport,"Health, Environmental & Urban Humanities (HEUH)",Clarity Travel Ltd t/a Clarity,99944705,149.05,T&S UK - Public Transport
BEIS,UKRI - AHRC,21/04/2023,T&S UK - Public Transport,"Health, Environmental & Urban Humanities (HEUH)",Clarity Travel Ltd t/a Clarity,99944705,0.50,T&S UK - Public Transport
BEIS,UKRI - AHRC,21/04/2023,T&S UK - Public Transport,"Health, Environmental & Urban Humanities (HEUH)",Clarity Travel Ltd t/a Clarity,99944705,105.40,T&S UK - Public Transport
BEIS,UKRI - AHRC,21/04/2023,T&S UK - Public Transport,"Health, Environmental & Urban Humanities (HEUH)",Clarity Travel Ltd t/a Clarity,99944705,0.50,T&S UK - Public Transport
BEIS,UKRI - AHRC,21/04/2023,T&S UK - Public Transport,"Health, Environmental & Urban Humanities (HEUH)",Clarity Travel Ltd t/a Clarity,99944705,27.45,T&S UK - Public Transport
BEIS,UKRI - AHRC,21/04/2023,T&S UK - Public Transport,"Health, Environmental & Urban Humanities (HEUH)",Clarity Travel Ltd t/a Clarity,99944705,1.00,T&S UK - Public Transport
BEIS,UKRI - AHRC,21/04/2023,T&S UK - Public Transport,"Health, Environmental & Urban Humanities (HEUH)",Clarity Travel Ltd t/a Clarity,99944705,37.00,T&S UK - Public Transport
BEIS,UKRI - AHRC,21/04/2023,T&S UK - Public Transport,"Health, Environmental & Urban Humanities (HEUH)",Clarity Travel Ltd t/a Clarity,99944705,35.10,T&S UK - Public Transport
BEIS,UKRI - AHRC,21/04/2023,T&S UK - Public Transport,"Health, Environmental & Urban Humanities (HEUH)",Clarity Travel Ltd t/a Clarity,99944705,1.00,T&S UK - Public Transport
BEIS,UKRI - AHRC,21/04/2023,T&S UK - Public Transport,"Health, Environmental & Urban Humanities (HEUH)",Clarity Travel Ltd t/a Clarity,99944705,77.20,T&S UK - Public Transport
BEIS,UKRI - AHRC,21/04/2023,T&S UK - Public Transport,"Health, Environmental & Urban Humanities (HEUH)",Clarity Travel Ltd t/a Clarity,99944705,35.40,T&S UK - Public Transport
BEIS,UKRI - AHRC,21/04/2023,T&S UK - Public Transport,Infrastructure Fund - CoSTAR,Clarity Travel Ltd t/a Clarity,99944705,-7.30,T&S UK - Public Transport
BEIS,UKRI - AHRC,21/04/2023,T&S UK - Public Transport,Infrastructure Fund - CoSTAR,Clarity Travel Ltd t/a Clarity,99944705,-20.00,T&S UK - Public Transport
BEIS,UKRI - AHRC,21/04/2023,T&S UK - Public Transport,Infrastruture Roadmap,Clarity Travel Ltd t/a Clarity,99944705,0.50,T&S UK - Public Transport
BEIS,UKRI - AHRC,21/04/2023,T&S UK - Public Transport,Infrastruture Roadmap,Clarity Travel Ltd t/a Clarity,99944705,111.50,T&S UK - Public Transport
BEIS,UKRI - AHRC,21/04/2023,T&S UK - Public Transport,Infrastruture Roadmap,Clarity Travel Ltd t/a Clarity,99944705,0.50,T&S UK - Public Transport
BEIS,UKRI - AHRC,21/04/2023,T&S UK - Public Transport,Infrastruture Roadmap,Clarity Travel Ltd t/a Clarity,99944705,208.30,T&S UK - Public Transport
BEIS,UKRI - AHRC,21/04/2023,T&S UK - Public Transport,Infrastruture Roadmap,Clarity Travel Ltd t/a Clarity,99944705,0.50,T&S UK - Public Transport
BEIS,UKRI - AHRC,21/04/2023,T&S UK - Public Transport,Infrastruture Roadmap,Clarity Travel Ltd t/a Clarity,99944705,9.10,T&S UK - Public Transport
BEIS,UKRI - AHRC,21/04/2023,T&S UK - Public Transport,International Partnership and Engagement,Clarity Travel Ltd t/a Clarity,99944705,0.50,T&S UK - Public Transport
BEIS,UKRI - AHRC,21/04/2023,T&S UK - Public Transport,International Partnership and Engagement,Clarity Travel Ltd t/a Clarity,99944705,14.50,T&S UK - Public Transport
BEIS,UKRI - AHRC,21/04/2023,T&S UK - Public Transport,International Partnership and Engagement,Clarity Travel Ltd t/a Clarity,99944705,0.50,T&S UK - Public Transport
BEIS,UKRI - AHRC,21/04/2023,T&S UK - Public Transport,International Partnership and Engagement,Clarity Travel Ltd t/a Clarity,99944705,33.95,T&S UK - Public Transport
BEIS,UKRI - AHRC,21/04/2023,T&S UK - Public Transport,International Partnership and Engagement,Clarity Travel Ltd t/a Clarity,99944705,1.00,T&S UK - Public Transport
BEIS,UKRI - AHRC,21/04/2023,T&S UK - Public Transport,International Partnership and Engagement,Clarity Travel Ltd t/a Clarity,99944705,14.50,T&S UK - Public Transport
BEIS,UKRI - AHRC,21/04/2023,T&S UK - Public Transport,International Partnership and Engagement,Clarity Travel Ltd t/a Clarity,99944705,14.50,T&S UK - Public Transport
BEIS,UKRI - AHRC,21/04/2023,T&S UK - Public Transport,Operations,Clarity Travel Ltd t/a Clarity,99944705,0.50,T&S UK - Public Transport
BEIS,UKRI - AHRC,21/04/2023,T&S UK - Public Transport,Operations,Clarity Travel Ltd t/a Clarity,99944705,107.60,T&S UK - Public Transport
BEIS,UKRI - AHRC,21/04/2023,T&S UK - Public Transport,Operations,Clarity Travel Ltd t/a Clarity,99944705,0.50,T&S UK - Public Transport
BEIS,UKRI - AHRC,21/04/2023,T&S UK - Public Transport,Operations,Clarity Travel Ltd t/a Clarity,99944705,33.70,T&S UK - Public Transport
BEIS,UKRI - AHRC,21/04/2023,T&S UK - Public Transport,Operations,Clarity Travel Ltd t/a Clarity,99944705,0.50,T&S UK - Public Transport
BEIS,UKRI - AHRC,21/04/2023,T&S UK - Public Transport,Operations,Clarity Travel Ltd t/a Clarity,99944705,72.70,T&S UK - Public Transport
BEIS,UKRI - AHRC,21/04/2023,T&S UK - Public Transport,Operations,Clarity Travel Ltd t/a Clarity,99944705,0.50,T&S UK - Public Transport
BEIS,UKRI - AHRC,21/04/2023,T&S UK - Public Transport,Operations,Clarity Travel Ltd t/a Clarity,99944705,225.90,T&S UK - Public Transport
BEIS,UKRI - AHRC,21/04/2023,T&S UK - Public Transport,Operations,Clarity Travel Ltd t/a Clarity,99944705,0.50,T&S UK - Public Transport
BEIS,UKRI - AHRC,21/04/2023,T&S UK - Public Transport,Operations,Clarity Travel Ltd t/a Clarity,99944705,40.30,T&S UK - Public Transport
BEIS,UKRI - AHRC,21/04/2023,T&S UK - Public Transport,Public and Stakeholder Engagement,Clarity Travel Ltd t/a Clarity,99944705,0.50,T&S UK - Public Transport
BEIS,UKRI - AHRC,21/04/2023,T&S UK - Public Transport,Public and Stakeholder Engagement,Clarity Travel Ltd t/a Clarity,99944705,21.20,T&S UK - Public Transport
BEIS,UKRI - AHRC,21/04/2023,T&S UK - Public Transport,SMT,Clarity Travel Ltd t/a Clarity,99944705,1.50,T&S UK - Public Transport
BEIS,UKRI - AHRC,21/04/2023,T&S UK - Public Transport,SMT,Clarity Travel Ltd t/a Clarity,99944705,83.70,T&S UK - Public Transport
BEIS,UKRI - AHRC,21/04/2023,T&S UK - Public Transport,SMT,Clarity Travel Ltd t/a Clarity,99944705,15.20,T&S UK - Public Transport
BEIS,UKRI - AHRC,21/04/2023,T&S UK - Public Transport,SMT,Clarity Travel Ltd t/a Clarity,99944705,123.10,T&S UK - Public Transport
BEIS,UKRI - AHRC,21/04/2023,T&S UK - Public Transport,SMT,Clarity Travel Ltd t/a Clarity,99944705,-23.90,T&S UK - Public Transport
BEIS,UKRI - AHRC,21/04/2023,T&S UK - Public Transport,SMT,Clarity Travel Ltd t/a Clarity,99944705,-32.00,T&S UK - Public Transport
BEIS,UKRI - AHRC,21/04/2023,T&S UK - Public Transport,SMT,Clarity Travel Ltd t/a Clarity,99944705,-55.90,T&S UK - Public Transport
BEIS,UKRI - AHRC,21/04/2023,T&S UK - Public Transport,SMT,Clarity Travel Ltd t/a Clarity,99944705,-25.00,T&S UK - Public Transport
BEIS,UKRI - AHRC,21/04/2023,T&S UK - Public Transport,SMT,Clarity Travel Ltd t/a Clarity,99944705,1.50,T&S UK - Public Transport
BEIS,UKRI - AHRC,21/04/2023,T&S UK - Public Transport,SMT,Clarity Travel Ltd t/a Clarity,99944705,165.30,T&S UK - Public Transport
BEIS,UKRI - AHRC,21/04/2023,T&S UK - Public Transport,SMT,Clarity Travel Ltd t/a Clarity,99944705,15.20,T&S UK - Public Transport
BEIS,UKRI - AHRC,21/04/2023,T&S UK - Public Transport,SMT,Clarity Travel Ltd t/a Clarity,99944705,143.00,T&S UK - Public Transport
BEIS,UKRI - AHRC,21/04/2023,T&S UK - Public Transport,SMT,Clarity Travel Ltd t/a Clarity,99944705,0.50,T&S UK - Public Transport
BEIS,UKRI - AHRC,21/04/2023,T&S UK - Public Transport,SMT,Clarity Travel Ltd t/a Clarity,99944705,32.20,T&S UK - Public Transport
BEIS,UKRI - AHRC,21/04/2023,T&S UK - Public Transport,Strategy and Evidence,Clarity Travel Ltd t/a Clarity,99944705,0.50,T&S UK - Public Transport
BEIS,UKRI - AHRC,21/04/2023,T&S UK - Public Transport,Strategy and Evidence,Clarity Travel Ltd t/a Clarity,99944705,71.00,T&S UK - Public Transport
BEIS,UKRI - AHRC,21/04/2023,T&S UK - Public Transport,Strategy and Evidence,Clarity Travel Ltd t/a Clarity,99944705,0.50,T&S UK - Public Transport
BEIS,UKRI - AHRC,21/04/2023,T&S UK - Public Transport,Strategy and Evidence,Clarity Travel Ltd t/a Clarity,99944705,160.20,T&S UK - Public Transport
BEIS,UKRI - AHRC,21/04/2023,Non-staff travel and subsistance,Engagement with the Innovation Scholarship programme,Unspecified,99945882,236.17,Non-staff travel and subsistance
BEIS,UKRI - AHRC,21/04/2023,T&S UK - Subsistence,"Health, Environmental & Urban Humanities (HEUH)",Unspecified,99946788,4.99,T&S UK - Subsistence
BEIS,UKRI - AHRC,24/04/2023,Training Awards - Postgraduates,International Placement Scheme,"Royal Holloway, University of London",99942343,6250.00,Training Awards - Postgraduates
BEIS,UKRI - AHRC,24/04/2023,Training Awards - Postgraduates,International Placement Scheme,University of York,99942344,6250.00,Training Awards - Postgraduates
BEIS,UKRI - AHRC,24/04/2023,Training Awards - Postgraduates,International Placement Scheme,Oxford Brookes University,99942345,6050.00,Training Awards - Postgraduates
BEIS,UKRI - AHRC,24/04/2023,Training Awards - Postgraduates,International Placement Scheme,University of York,99942346,4470.00,Training Awards - Postgraduates
BEIS,UKRI - AHRC,24/04/2023,Training Awards - Postgraduates,Collabrative Doctoral Grants - Block Payment,University of Southampton GRANT,99942347,-1968.95,Training Awards - Postgraduates
BEIS,UKRI - AHRC,24/04/2023,Training Awards - Postgraduates,Collabrative Doctoral Grants - Block Payment,University of Edinburgh,99942348,-2072.50,Training Awards - Postgraduates
BEIS,UKRI - AHRC,24/04/2023,Training Awards - Postgraduates,Collabrative Doctoral Grants - Block Payment,University of Stirling,99942349,-2917.50,Training Awards - Postgraduates
BEIS,UKRI - AHRC,24/04/2023,Training Awards - Postgraduates,Collabrative Doctoral Grants - Block Payment,Royal College of Art,99942350,69819.84,Training Awards - Postgraduates
BEIS,UKRI - AHRC,24/04/2023,Training Awards - Postgraduates,Collabrative Doctoral Grants - Block Payment,University of Newcastle Upon Tyne,99942351,-16138.75,Training Awards - Postgraduates
BEIS,UKRI - AHRC,24/04/2023,Training Awards - Postgraduates,Collabrative Doctoral Grants - Block Payment,Royal College of Art,99942352,-57461.55,Training Awards - Postgraduates
BEIS,UKRI - AHRC,24/04/2023,Training Awards - Postgraduates,Collabrative Doctoral Grants - Block Payment,University of Oxford,99943058,5677.00,Training Awards - Postgraduates
BEIS,UKRI - AHRC,24/04/2023,Training Awards - Postgraduates,Collabrative Doctoral Grants - Block Payment,University of Oxford,99943058,6078.50,Training Awards - Postgraduates
BEIS,UKRI - AHRC,24/04/2023,Training Awards - Postgraduates,Collabrative Doctoral Grants - Block Payment,University of Sheffield,99943059,5677.00,Training Awards - Postgraduates
BEIS,UKRI - AHRC,24/04/2023,Training Awards - Postgraduates,Collabrative Doctoral Grants - Block Payment,University of Durham,99943060,5677.00,Training Awards - Postgraduates
BEIS,UKRI - AHRC,24/04/2023,Training Awards - Postgraduates,Collabrative Doctoral Grants - Block Payment,The University of Manchester,99943061,5677.00,Training Awards - Postgraduates
BEIS,UKRI - AHRC,24/04/2023,Training Awards - Postgraduates,Collabrative Doctoral Grants - Block Payment,King's College London,99943062,5927.00,Training Awards - Postgraduates
BEIS,UKRI - AHRC,24/04/2023,Training Awards - Postgraduates,Collabrative Doctoral Grants - Block Payment,University of the Highlands and Islands,99943063,5427.00,Training Awards - Postgraduates
BEIS,UKRI - AHRC,24/04/2023,Training Awards - Postgraduates,Collabrative Doctoral Grants - Block Payment,University of Kent,99943064,5427.00,Training Awards - Postgraduates
BEIS,UKRI - AHRC,24/04/2023,Training Awards - Postgraduates,Collabrative Doctoral Grants - Block Payment,University of East Anglia,99943065,5677.00,Training Awards - Postgraduates
BEIS,UKRI - AHRC,24/04/2023,Training Awards - Postgraduates,Collabrative Doctoral Grants - Block Payment,"Royal Holloway, University of London",99943066,5927.00,Training Awards - Postgraduates
BEIS,UKRI - AHRC,24/04/2023,Training Awards - Postgraduates,Collabrative Doctoral Grants - Block Payment,University of Exeter,99943067,5677.00,Training Awards - Postgraduates
BEIS,UKRI - AHRC,24/04/2023,Training Awards - Postgraduates,Collabrative Doctoral Grants - Block Payment,University of Exeter,99943067,401.50,Training Awards - Postgraduates
BEIS,UKRI - AHRC,24/04/2023,Training Awards - Postgraduates,Collabrative Doctoral Grants - Block Payment,Cardiff University,99943068,5427.00,Training Awards - Postgraduates
BEIS,UKRI - AHRC,24/04/2023,Training Awards - Postgraduates,Collabrative Doctoral Grants - Block Payment,University of Edinburgh,99943069,5427.00,Training Awards - Postgraduates
BEIS,UKRI - AHRC,24/04/2023,Training Awards - Postgraduates,Collabrative Doctoral Grants - Block Payment,University of Oxford,99943070,5427.00,Training Awards - Postgraduates
BEIS,UKRI - AHRC,24/04/2023,Training Awards - Postgraduates,Collabrative Doctoral Grants - Block Payment,Queen Mary University of London,99943071,5927.00,Training Awards - Postgraduates
BEIS,UKRI - AHRC,24/04/2023,Training Awards - Postgraduates,Collabrative Doctoral Grants - Block Payment,University of York,99943072,5677.00,Training Awards - Postgraduates
BEIS,UKRI - AHRC,24/04/2023,Training Awards - Postgraduates,Collabrative Doctoral Grants - Block Payment,University of Westminster,99943073,5927.00,Training Awards - Postgraduates
BEIS,UKRI - AHRC,24/04/2023,Training Awards - Postgraduates,Collabrative Doctoral Grants - Block Payment,University College London,99943074,5927.00,Training Awards - Postgraduates
BEIS,UKRI - AHRC,24/04/2023,Training Awards - Postgraduates,Collabrative Doctoral Grants - Block Payment,Teesside University,99943075,5838.38,Training Awards - Postgraduates
BEIS,UKRI - AHRC,24/04/2023,Training Awards - Postgraduates,Collabrative Doctoral Grants - Block Payment,University College London,99943076,5677.00,Training Awards - Postgraduates
BEIS,UKRI - AHRC,24/04/2023,Training Awards - Postgraduates,Collabrative Doctoral Grants - Block Payment,University of Leeds,99943077,5677.00,Training Awards - Postgraduates
BEIS,UKRI - AHRC,24/04/2023,Training Awards - Postgraduates,Collabrative Doctoral Grants - Block Payment,University of Edinburgh,99943078,5427.00,Training Awards - Postgraduates
BEIS,UKRI - AHRC,24/04/2023,Training Awards - Postgraduates,Collabrative Doctoral Grants - Block Payment,University of Durham,99943079,5677.00,Training Awards - Postgraduates
BEIS,UKRI - AHRC,24/04/2023,Training Awards - Postgraduates,Collabrative Doctoral Grants - Block Payment,University of Stirling,99943080,5427.00,Training Awards - Postgraduates
BEIS,UKRI - AHRC,24/04/2023,Training Awards - Postgraduates,Collabrative Doctoral Grants - Block Payment,University of Liverpool,99943081,5677.00,Training Awards - Postgraduates
BEIS,UKRI - AHRC,24/04/2023,Training Awards - Postgraduates,Collabrative Doctoral Grants - Block Payment,University of Liverpool,99943081,401.50,Training Awards - Postgraduates
BEIS,UKRI - AHRC,24/04/2023,Training Awards - Postgraduates,Collabrative Doctoral Grants - Block Payment,University of Kent,99943082,5677.00,Training Awards - Postgraduates
BEIS,UKRI - AHRC,24/04/2023,Training Awards - Postgraduates,Collabrative Doctoral Grants - Block Payment,Birkbeck College,99943083,5927.00,Training Awards - Postgraduates
BEIS,UKRI - AHRC,24/04/2023,Training Awards - Postgraduates,Collabrative Doctoral Grants - Block Payment,University College London,99943084,5927.00,Training Awards - Postgraduates
BEIS,UKRI - AHRC,24/04/2023,Training Awards - Postgraduates,Collabrative Doctoral Grants - Block Payment,King's College London,99943085,5927.00,Training Awards - Postgraduates
BEIS,UKRI - AHRC,24/04/2023,Training Awards - Postgraduates,Collabrative Doctoral Grants - Block Payment,University of Bristol GRANT,99943086,5427.00,Training Awards - Postgraduates
BEIS,UKRI - AHRC,24/04/2023,Training Awards - Postgraduates,Collabrative Doctoral Grants - Block Payment,University of Leeds,99943087,5677.00,Training Awards - Postgraduates
BEIS,UKRI - AHRC,24/04/2023,Training Awards - Postgraduates,Collabrative Doctoral Grants - Block Payment,University of Warwick,99943088,5677.00,Training Awards - Postgraduates
BEIS,UKRI - AHRC,24/04/2023,Training Awards - Postgraduates,Collabrative Doctoral Grants - Block Payment,University of Durham,99943089,5677.00,Training Awards - Postgraduates
BEIS,UKRI - AHRC,24/04/2023,Training Awards - Postgraduates,Collabrative Doctoral Grants - Block Payment,University of Bristol GRANT,99943090,5427.00,Training Awards - Postgraduates
BEIS,UKRI - AHRC,24/04/2023,Training Awards - Postgraduates,Collabrative Doctoral Grants - Block Payment,University of Reading,99943091,5677.00,Training Awards - Postgraduates
BEIS,UKRI - AHRC,24/04/2023,Training Awards - Postgraduates,International Placement Scheme,University of Leeds,99943092,8000.00,Training Awards - Postgraduates
BEIS,UKRI - AHRC,24/04/2023,Training Awards - Postgraduates,International Placement Scheme,De Montfort University,99943093,6250.00,Training Awards - Postgraduates
BEIS,UKRI - AHRC,24/04/2023,Training Awards - Postgraduates,International Placement Scheme,University of Reading,99943094,5750.01,Training Awards - Postgraduates
BEIS,UKRI - AHRC,24/04/2023,Training Awards - Postgraduates,International Placement Scheme,University of Reading,99943094,5749.99,Training Awards - Postgraduates
BEIS,UKRI - AHRC,24/04/2023,Training Awards - Postgraduates,Collabrative Doctoral Grants - Block Payment,University of Sussex,99943095,5646.50,Training Awards - Postgraduates
BEIS,UKRI - AHRC,24/04/2023,Training Awards - Postgraduates,Collabrative Doctoral Grants - Block Payment,University of Southampton GRANT,99943096,5646.50,Training Awards - Postgraduates
BEIS,UKRI - AHRC,24/04/2023,Training Awards - Postgraduates,Collabrative Doctoral Grants - Block Payment,Bournemouth University,99943097,5646.50,Training Awards - Postgraduates
BEIS,UKRI - AHRC,24/04/2023,Training Awards - Postgraduates,Collabrative Doctoral Grants - Block Payment,Bournemouth University,99943098,5646.50,Training Awards - Postgraduates
BEIS,UKRI - AHRC,24/04/2023,Training Awards - Postgraduates,Collabrative Doctoral Grants - Block Payment,Birkbeck College,99943099,5896.50,Training Awards - Postgraduates
BEIS,UKRI - AHRC,24/04/2023,Training Awards - Postgraduates,Collabrative Doctoral Grants - Block Payment,King's College London,99943100,5896.50,Training Awards - Postgraduates
BEIS,UKRI - AHRC,24/04/2023,Training Awards - Postgraduates,Collabrative Doctoral Grants - Block Payment,University of Warwick,99943101,5646.50,Training Awards - Postgraduates
BEIS,UKRI - AHRC,24/04/2023,Training Awards - Postgraduates,Collabrative Doctoral Grants - Block Payment,University of York,99943102,5396.50,Training Awards - Postgraduates
BEIS,UKRI - AHRC,24/04/2023,Training Awards - Postgraduates,Collabrative Doctoral Grants - Block Payment,University of Oxford,99943103,5646.50,Training Awards - Postgraduates
BEIS,UKRI - AHRC,24/04/2023,Training Awards - Postgraduates,Collabrative Doctoral Grants - Block Payment,Birkbeck College,99943104,5896.50,Training Awards - Postgraduates
BEIS,UKRI - AHRC,24/04/2023,Training Awards - Postgraduates,Collabrative Doctoral Grants - Block Payment,University of Leicester,99943105,5646.50,Training Awards - Postgraduates
BEIS,UKRI - AHRC,24/04/2023,Training Awards - Postgraduates,Collabrative Doctoral Grants - Block Payment,University of Durham,99943106,5646.50,Training Awards - Postgraduates
BEIS,UKRI - AHRC,24/04/2023,Training Awards - Postgraduates,Collabrative Doctoral Grants - Block Payment,University of Edinburgh,99943107,5396.50,Training Awards - Postgraduates
BEIS,UKRI - AHRC,24/04/2023,Training Awards - Postgraduates,Collabrative Doctoral Grants - Block Payment,University College London,99943108,5896.50,Training Awards - Postgraduates
BEIS,UKRI - AHRC,24/04/2023,Training Awards - Postgraduates,Collabrative Doctoral Grants - Block Payment,Birkbeck College,99943109,5896.50,Training Awards - Postgraduates
BEIS,UKRI - AHRC,24/04/2023,Training Awards - Postgraduates,Collabrative Doctoral Grants - Block Payment,University of Southampton GRANT,99943110,5646.50,Training Awards - Postgraduates
BEIS,UKRI - AHRC,24/04/2023,Training Awards - Postgraduates,Collabrative Doctoral Grants - Block Payment,University of Leeds,99943111,5646.50,Training Awards - Postgraduates
BEIS,UKRI - AHRC,24/04/2023,Training Awards - Postgraduates,Collabrative Doctoral Grants - Block Payment,University College London,99943112,5896.50,Training Awards - Postgraduates
BEIS,UKRI - AHRC,24/04/2023,Training Awards - Postgraduates,Collabrative Doctoral Grants - Block Payment,University College London,99943113,5896.50,Training Awards - Postgraduates
BEIS,UKRI - AHRC,24/04/2023,Training Awards - Postgraduates,Collabrative Doctoral Grants - Block Payment,University of Edinburgh,99943114,5396.50,Training Awards - Postgraduates
BEIS,UKRI - AHRC,24/04/2023,Training Awards - Postgraduates,Collabrative Doctoral Grants - Block Payment,Courtauld Institute of Art,99943115,5896.50,Training Awards - Postgraduates
BEIS,UKRI - AHRC,24/04/2023,Training Awards - Postgraduates,Collabrative Doctoral Grants - Block Payment,University of Southampton GRANT,99943116,5646.50,Training Awards - Postgraduates
BEIS,UKRI - AHRC,24/04/2023,Training Awards - Postgraduates,Collabrative Doctoral Grants - Block Payment,University of Leeds,99943117,5396.50,Training Awards - Postgraduates
BEIS,UKRI - AHRC,24/04/2023,Training Awards - Postgraduates,Collabrative Doctoral Grants - Block Payment,University of Exeter,99943118,5646.50,Training Awards - Postgraduates
BEIS,UKRI - AHRC,24/04/2023,Training Awards - Postgraduates,Collabrative Doctoral Grants - Block Payment,University of Exeter,99943119,5646.50,Training Awards - Postgraduates
BEIS,UKRI - AHRC,24/04/2023,Training Awards - Postgraduates,Collabrative Doctoral Grants - Block Payment,University of Newcastle Upon Tyne,99943120,5646.50,Training Awards - Postgraduates
BEIS,UKRI - AHRC,24/04/2023,Training Awards - Postgraduates,Collabrative Doctoral Grants - Block Payment,"Royal Holloway, University of London",99943121,5896.50,Training Awards - Postgraduates
BEIS,UKRI - AHRC,24/04/2023,Training Awards - Postgraduates,Collabrative Doctoral Grants - Block Payment,University of Hull,99943122,5646.50,Training Awards - Postgraduates
BEIS,UKRI - AHRC,24/04/2023,Training Awards - Postgraduates,Collabrative Doctoral Grants - Block Payment,University of Exeter,99943123,5396.50,Training Awards - Postgraduates
BEIS,UKRI - AHRC,24/04/2023,Training Awards - Postgraduates,Collabrative Doctoral Grants - Block Payment,University of Essex,99943124,5646.50,Training Awards - Postgraduates
BEIS,UKRI - AHRC,24/04/2023,Training Awards - Postgraduates,Collabrative Doctoral Grants - Block Payment,Edge Hill University College,99943125,5646.50,Training Awards - Postgraduates
BEIS,UKRI - AHRC,24/04/2023,Training Awards - Postgraduates,Collabrative Doctoral Grants - Block Payment,Royal Northern College of Music,99943126,5646.50,Training Awards - Postgraduates
BEIS,UKRI - AHRC,24/04/2023,Training Awards - Postgraduates,Collabrative Doctoral Grants - Block Payment,University of Liverpool,99943127,5646.50,Training Awards - Postgraduates
BEIS,UKRI - AHRC,24/04/2023,Training Awards - Postgraduates,Collabrative Doctoral Grants - Block Payment,University of East Anglia,99943128,5646.50,Training Awards - Postgraduates
BEIS,UKRI - AHRC,24/04/2023,Training Awards - Postgraduates,Collabrative Doctoral Grants - Block Payment,University of Edinburgh,99943129,5145.45,Training Awards - Postgraduates
BEIS,UKRI - AHRC,24/04/2023,Training Awards - Postgraduates,Collabrative Doctoral Grants - Block Payment,University of Edinburgh,99943130,5396.50,Training Awards - Postgraduates
BEIS,UKRI - AHRC,24/04/2023,Training Awards - Postgraduates,Collabrative Doctoral Grants - Block Payment,University of Leeds,99943131,5706.81,Training Awards - Postgraduates
BEIS,UKRI - AHRC,24/04/2023,Training Awards - Postgraduates,Collabrative Doctoral Grants - Block Payment,University of Brighton,99943132,5396.50,Training Awards - Postgraduates
BEIS,UKRI - AHRC,24/04/2023,Training Awards - Postgraduates,Collabrative Doctoral Grants - Block Payment,The University of Manchester,99943133,5646.50,Training Awards - Postgraduates
BEIS,UKRI - AHRC,24/04/2023,Training Awards - Postgraduates,Collabrative Doctoral Grants - Block Payment,University of York,99943134,5629.00,Training Awards - Postgraduates
BEIS,UKRI - AHRC,24/04/2023,Training Awards - Postgraduates,Collabrative Doctoral Grants - Block Payment,Cardiff University,99943135,5379.00,Training Awards - Postgraduates
BEIS,UKRI - AHRC,24/04/2023,Training Awards - Postgraduates,Collabrative Doctoral Grants - Block Payment,University of Sheffield,99943136,5629.00,Training Awards - Postgraduates
BEIS,UKRI - AHRC,24/04/2023,Training Awards - Postgraduates,Collabrative Doctoral Grants - Block Payment,Heriot Watt University,99943137,5379.00,Training Awards - Postgraduates
BEIS,UKRI - AHRC,24/04/2023,Training Awards - Postgraduates,Collabrative Doctoral Grants - Block Payment,University of Stirling,99943138,5379.00,Training Awards - Postgraduates
BEIS,UKRI - AHRC,24/04/2023,Training Awards - Postgraduates,Collabrative Doctoral Grants - Block Payment,University of Stirling,99943138,803.00,Training Awards - Postgraduates
BEIS,UKRI - AHRC,24/04/2023,Training Awards - Postgraduates,Collabrative Doctoral Grants - Block Payment,University of Durham,99943139,5629.00,Training Awards - Postgraduates
BEIS,UKRI - AHRC,24/04/2023,Training Awards - Postgraduates,Collabrative Doctoral Grants - Block Payment,University of East Anglia,99943140,5379.00,Training Awards - Postgraduates
BEIS,UKRI - AHRC,24/04/2023,Training Awards - Postgraduates,Collabrative Doctoral Grants - Block Payment,University of East Anglia,99943141,5629.00,Training Awards - Postgraduates
BEIS,UKRI - AHRC,24/04/2023,Training Awards - Postgraduates,Collabrative Doctoral Grants - Block Payment,University of Reading,99943142,5379.00,Training Awards - Postgraduates
BEIS,UKRI - AHRC,24/04/2023,Training Awards - Postgraduates,Collabrative Doctoral Grants - Block Payment,University of Bristol GRANT,99943143,5629.00,Training Awards - Postgraduates
BEIS,UKRI - AHRC,24/04/2023,Training Awards - Postgraduates,Collabrative Doctoral Grants - Block Payment,Birkbeck College,99943144,5879.00,Training Awards - Postgraduates
BEIS,UKRI - AHRC,24/04/2023,Training Awards - Postgraduates,Collabrative Doctoral Grants - Block Payment,University of Lincoln,99943145,5629.00,Training Awards - Postgraduates
BEIS,UKRI - AHRC,24/04/2023,Training Awards - Postgraduates,Collabrative Doctoral Grants - Block Payment,"Royal Holloway, University of London",99943146,5879.00,Training Awards - Postgraduates
BEIS,UKRI - AHRC,24/04/2023,Training Awards - Postgraduates,Collabrative Doctoral Grants - Block Payment,University of Sheffield,99943147,5379.00,Training Awards - Postgraduates
BEIS,UKRI - AHRC,24/04/2023,Training Awards - Postgraduates,Collabrative Doctoral Grants - Block Payment,Queen Mary University of London,99943148,5879.00,Training Awards - Postgraduates
BEIS,UKRI - AHRC,24/04/2023,Training Awards - Postgraduates,Collabrative Doctoral Grants - Block Payment,Birkbeck College,99943149,5879.00,Training Awards - Postgraduates
BEIS,UKRI - AHRC,24/04/2023,Training Awards - Postgraduates,Collabrative Doctoral Grants - Block Payment,University of Reading,99943150,5629.00,Training Awards - Postgraduates
BEIS,UKRI - AHRC,24/04/2023,Training Awards - Postgraduates,Collabrative Doctoral Grants - Block Payment,Birkbeck College,99943151,5879.00,Training Awards - Postgraduates
BEIS,UKRI - AHRC,24/04/2023,Training Awards - Postgraduates,Collabrative Doctoral Grants - Block Payment,University of Bath,99943152,5379.00,Training Awards - Postgraduates
BEIS,UKRI - AHRC,24/04/2023,Training Awards - Postgraduates,Collabrative Doctoral Grants - Block Payment,Queen Mary University of London,99943153,5879.00,Training Awards - Postgraduates
BEIS,UKRI - AHRC,24/04/2023,Training Awards - Postgraduates,Collabrative Doctoral Grants - Block Payment,University of Leeds,99943154,5629.00,Training Awards - Postgraduates
BEIS,UKRI - AHRC,24/04/2023,Training Awards - Postgraduates,Collabrative Doctoral Grants - Block Payment,University of Durham,99943155,5629.00,Training Awards - Postgraduates
BEIS,UKRI - AHRC,24/04/2023,Training Awards - Postgraduates,Collabrative Doctoral Grants - Block Payment,Manchester Metropolitan University,99943156,5379.00,Training Awards - Postgraduates
BEIS,UKRI - AHRC,24/04/2023,Training Awards - Postgraduates,Collabrative Doctoral Grants - Block Payment,Birkbeck College,99943157,5879.00,Training Awards - Postgraduates
BEIS,UKRI - AHRC,24/04/2023,Training Awards - Postgraduates,Collabrative Doctoral Grants - Block Payment,Birkbeck College,99943158,5879.00,Training Awards - Postgraduates
BEIS,UKRI - AHRC,24/04/2023,Training Awards - Postgraduates,Collabrative Doctoral Grants - Block Payment,University of London,99943159,5879.00,Training Awards - Postgraduates
BEIS,UKRI - AHRC,24/04/2023,Training Awards - Postgraduates,Collabrative Doctoral Grants - Block Payment,University of London,99943160,5879.00,Training Awards - Postgraduates
BEIS,UKRI - AHRC,24/04/2023,Training Awards - Postgraduates,Collabrative Doctoral Grants - Block Payment,University of Portsmouth,99943161,5629.00,Training Awards - Postgraduates
BEIS,UKRI - AHRC,24/04/2023,Training Awards - Postgraduates,Collabrative Doctoral Grants - Block Payment,Northumbria University,99943162,5379.00,Training Awards - Postgraduates
BEIS,UKRI - AHRC,24/04/2023,Training Awards - Postgraduates,Collabrative Doctoral Grants - Block Payment,University of Winchester,99943163,5629.00,Training Awards - Postgraduates
BEIS,UKRI - AHRC,24/04/2023,Training Awards - Postgraduates,Collabrative Doctoral Grants - Block Payment,Birkbeck College,99943164,5879.00,Training Awards - Postgraduates
BEIS,UKRI - AHRC,24/04/2023,Training Awards - Postgraduates,Collabrative Doctoral Grants - Block Payment,Cardiff University,99943165,5629.00,Training Awards - Postgraduates
BEIS,UKRI - AHRC,24/04/2023,Training Awards - Postgraduates,Collabrative Doctoral Grants - Block Payment,Manchester Metropolitan University,99943166,5629.00,Training Awards - Postgraduates
BEIS,UKRI - AHRC,24/04/2023,Training Awards - Postgraduates,Collabrative Doctoral Grants - Block Payment,University of Reading,99943167,5629.00,Training Awards - Postgraduates
BEIS,UKRI - AHRC,24/04/2023,Training Awards - Postgraduates,Collabrative Doctoral Grants - Block Payment,Northumbria University,99943168,5531.00,Training Awards - Postgraduates
BEIS,UKRI - AHRC,24/04/2023,Training Awards - Postgraduates,Collabrative Doctoral Grants - Block Payment,London School of Economics and Political Science,99943169,5879.00,Training Awards - Postgraduates
BEIS,UKRI - AHRC,24/04/2023,Training Awards - Postgraduates,Collabrative Doctoral Grants - Block Payment,University of Exeter,99943170,10035.12,Training Awards - Postgraduates
BEIS,UKRI - AHRC,24/04/2023,Training Awards - Postgraduates,Collabrative Doctoral Grants - Block Payment,University of Warwick,99943171,5379.00,Training Awards - Postgraduates
BEIS,UKRI - AHRC,24/04/2023,Training Awards - Postgraduates,Collabrative Doctoral Grants - Block Payment,Canterbury Christ Church University GRANT,99943172,5629.00,Training Awards - Postgraduates
BEIS,UKRI - AHRC,24/04/2023,Training Awards - Postgraduates,Collabrative Doctoral Grants - Block Payment,University College London,99943173,5879.00,Training Awards - Postgraduates
BEIS,UKRI - AHRC,24/04/2023,Training Awards - Postgraduates,Collabrative Doctoral Grants - Block Payment,University of Glasgow,99943174,5379.00,Training Awards - Postgraduates
BEIS,UKRI - AHRC,24/04/2023,Training Awards - Postgraduates,Collabrative Doctoral Grants - Block Payment,University of York,99943175,5629.00,Training Awards - Postgraduates
BEIS,UKRI - AHRC,24/04/2023,Training Awards - Postgraduates,Collabrative Doctoral Grants - Block Payment,University of Exeter,99943176,5629.00,Training Awards - Postgraduates
BEIS,UKRI - AHRC,24/04/2023,Training Awards - Postgraduates,Collabrative Doctoral Grants - Block Payment,University of Edinburgh,99943177,5379.00,Training Awards - Postgraduates
BEIS,UKRI - AHRC,24/04/2023,Training Awards - Postgraduates,Collabrative Doctoral Grants - Block Payment,University of Glasgow,99943178,5379.00,Training Awards - Postgraduates
BEIS,UKRI - AHRC,24/04/2023,Training Awards - Postgraduates,Collabrative Doctoral Grants - Block Payment,University of Edinburgh,99943179,5379.00,Training Awards - Postgraduates
BEIS,UKRI - AHRC,24/04/2023,Training Awards - Postgraduates,Collabrative Doctoral Grants - Block Payment,"Royal Holloway, University of London",99943180,5879.00,Training Awards - Postgraduates
BEIS,UKRI - AHRC,24/04/2023,Training Awards - Postgraduates,Collabrative Doctoral Grants - Block Payment,University of Brighton,99943181,2639.68,Training Awards - Postgraduates
BEIS,UKRI - AHRC,24/04/2023,Training Awards - Postgraduates,Collabrative Doctoral Grants - Block Payment,Cardiff University,99943182,4487.55,Training Awards - Postgraduates
BEIS,UKRI - AHRC,24/04/2023,Training Awards - Postgraduates,Collabrative Doctoral Grants - Block Payment,University College London,99943183,3139.62,Training Awards - Postgraduates
BEIS,UKRI - AHRC,24/04/2023,Training Awards - Postgraduates,Collabrative Doctoral Grants - Block Payment,University of Leicester,99943184,2639.68,Training Awards - Postgraduates
BEIS,UKRI - AHRC,24/04/2023,Training Awards - Postgraduates,Collabrative Doctoral Grants - Block Payment,University of Leeds,99943185,2639.68,Training Awards - Postgraduates
BEIS,UKRI - AHRC,24/04/2023,Training Awards - Postgraduates,Collabrative Doctoral Grants - Block Payment,Birkbeck College,99943186,3139.62,Training Awards - Postgraduates
BEIS,UKRI - AHRC,24/04/2023,Training Awards - Postgraduates,Collabrative Doctoral Grants - Block Payment,University of Hertfordshire,99943187,4487.55,Training Awards - Postgraduates
BEIS,UKRI - AHRC,24/04/2023,Training Awards - Postgraduates,Collabrative Doctoral Grants - Block Payment,Goldsmiths College University of London,99943188,3139.62,Training Awards - Postgraduates
BEIS,UKRI - AHRC,24/04/2023,Training Awards - Postgraduates,Collabrative Doctoral Grants - Block Payment,University of Brighton,99943189,2639.68,Training Awards - Postgraduates
BEIS,UKRI - AHRC,24/04/2023,Training Awards - Postgraduates,Collabrative Doctoral Grants - Block Payment,The Open University,99943190,2639.68,Training Awards - Postgraduates
BEIS,UKRI - AHRC,24/04/2023,Training Awards - Postgraduates,Collabrative Doctoral Grants - Block Payment,University of Bristol GRANT,99943191,2639.68,Training Awards - Postgraduates
BEIS,UKRI - AHRC,24/04/2023,Training Awards - Postgraduates,Collabrative Doctoral Grants - Block Payment,University of Bristol GRANT,99943192,2639.68,Training Awards - Postgraduates
BEIS,UKRI - AHRC,24/04/2023,Training Awards - Postgraduates,Collabrative Doctoral Grants - Block Payment,University of Oxford,99943193,2639.68,Training Awards - Postgraduates
BEIS,UKRI - AHRC,24/04/2023,Training Awards - Postgraduates,Collabrative Doctoral Grants - Block Payment,De Montfort University,99943194,4487.52,Training Awards - Postgraduates
BEIS,UKRI - AHRC,24/04/2023,Training Awards - Postgraduates,Collabrative Doctoral Grants - Block Payment,University of Kent,99943195,2639.68,Training Awards - Postgraduates
BEIS,UKRI - AHRC,24/04/2023,Training Awards - Postgraduates,Collabrative Doctoral Grants - Block Payment,University of East Anglia,99943196,2639.68,Training Awards - Postgraduates
BEIS,UKRI - AHRC,24/04/2023,Training Awards - Postgraduates,Collabrative Doctoral Grants - Block Payment,University of East Anglia,99943197,2639.68,Training Awards - Postgraduates
BEIS,UKRI - AHRC,24/04/2023,Training Awards - Postgraduates,Collabrative Doctoral Grants - Block Payment,University of East Anglia,99943198,2639.68,Training Awards - Postgraduates
BEIS,UKRI - AHRC,24/04/2023,Training Awards - Postgraduates,Collabrative Doctoral Grants - Block Payment,University of Edinburgh,99943199,2639.68,Training Awards - Postgraduates
BEIS,UKRI - AHRC,24/04/2023,Training Awards - Postgraduates,Collabrative Doctoral Grants - Block Payment,University of Southampton GRANT,99943200,2639.68,Training Awards - Postgraduates
BEIS,UKRI - AHRC,24/04/2023,Training Awards - Postgraduates,Collabrative Doctoral Grants - Block Payment,University of London,99943201,3139.62,Training Awards - Postgraduates
BEIS,UKRI - AHRC,24/04/2023,Training Awards - Postgraduates,Collabrative Doctoral Grants - Block Payment,University of Glasgow,99943202,4467.43,Training Awards - Postgraduates
BEIS,UKRI - AHRC,24/04/2023,Training Awards - Postgraduates,Collabrative Doctoral Grants - Block Payment,University of Nottingham,99943203,2639.68,Training Awards - Postgraduates
BEIS,UKRI - AHRC,24/04/2023,Training Awards - Postgraduates,Collabrative Doctoral Grants - Block Payment,University of Brighton,99943204,2639.68,Training Awards - Postgraduates
BEIS,UKRI - AHRC,24/04/2023,Training Awards - Postgraduates,Collabrative Doctoral Grants - Block Payment,Imperial College London,99943205,3139.62,Training Awards - Postgraduates
BEIS,UKRI - AHRC,24/04/2023,Training Awards - Postgraduates,Collabrative Doctoral Grants - Block Payment,Sheffield Hallam University,99943206,2639.68,Training Awards - Postgraduates
BEIS,UKRI - AHRC,24/04/2023,Training Awards - Postgraduates,Collabrative Doctoral Grants - Block Payment,University of Glasgow,99943207,2639.68,Training Awards - Postgraduates
BEIS,UKRI - AHRC,24/04/2023,Training Awards - Postgraduates,Collabrative Doctoral Grants - Block Payment,University College London,99943208,3139.62,Training Awards - Postgraduates
BEIS,UKRI - AHRC,24/04/2023,Training Awards - Postgraduates,Collabrative Doctoral Grants - Block Payment,University of Leeds,99943209,2639.68,Training Awards - Postgraduates
BEIS,UKRI - AHRC,24/04/2023,Training Awards - Postgraduates,Collabrative Doctoral Grants - Block Payment,King's College London,99943210,3139.62,Training Awards - Postgraduates
BEIS,UKRI - AHRC,24/04/2023,Training Awards - Postgraduates,Collabrative Doctoral Grants - Block Payment,King's College London,99943211,3139.62,Training Awards - Postgraduates
BEIS,UKRI - AHRC,24/04/2023,Training Awards - Postgraduates,Collabrative Doctoral Grants - Block Payment,University of Edinburgh,99943212,2639.68,Training Awards - Postgraduates
BEIS,UKRI - AHRC,24/04/2023,Training Awards - Postgraduates,Collabrative Doctoral Grants - Block Payment,University of Leeds,99943213,2639.68,Training Awards - Postgraduates
BEIS,UKRI - AHRC,24/04/2023,Training Awards - Postgraduates,Collabrative Doctoral Grants - Block Payment,University of York,99943214,2639.68,Training Awards - Postgraduates
BEIS,UKRI - AHRC,24/04/2023,Training Awards - Postgraduates,Collabrative Doctoral Grants - Block Payment,University of Durham,99943215,2639.68,Training Awards - Postgraduates
BEIS,UKRI - AHRC,24/04/2023,Training Awards - Postgraduates,Collabrative Doctoral Grants - Block Payment,University College London,99943216,4987.53,Training Awards - Postgraduates
BEIS,UKRI - AHRC,24/04/2023,Training Awards - Postgraduates,Collabrative Doctoral Grants - Block Payment,University of the Arts London,99943217,3139.62,Training Awards - Postgraduates
BEIS,UKRI - AHRC,24/04/2023,Training Awards - Postgraduates,Collabrative Doctoral Grants - Block Payment,University of the Arts London,99943218,3139.62,Training Awards - Postgraduates
BEIS,UKRI - AHRC,24/04/2023,Training Awards - Postgraduates,Collabrative Doctoral Grants - Block Payment,University of Warwick,99943219,2639.68,Training Awards - Postgraduates
BEIS,UKRI - AHRC,24/04/2023,Training Awards - Postgraduates,Collabrative Doctoral Grants - Block Payment,University of Strathclyde,99943220,2639.68,Training Awards - Postgraduates
BEIS,UKRI - AHRC,24/04/2023,Training Awards - Postgraduates,Collabrative Doctoral Grants - Block Payment,Goldsmiths College University of London,99943221,2889.62,Training Awards - Postgraduates
BEIS,UKRI - AHRC,24/04/2023,Training Awards - Postgraduates,Collabrative Doctoral Grants - Block Payment,University of St Andrews,99943222,2639.68,Training Awards - Postgraduates
BEIS,UKRI - AHRC,24/04/2023,Training Awards - Postgraduates,Collabrative Doctoral Grants - Block Payment,University College London,99943223,3139.62,Training Awards - Postgraduates
BEIS,UKRI - AHRC,24/04/2023,Training Awards - Postgraduates,Collabrative Doctoral Grants - Block Payment,University College London,99943224,3139.62,Training Awards - Postgraduates
BEIS,UKRI - AHRC,24/04/2023,Training Awards - Postgraduates,Collabrative Doctoral Grants - Block Payment,University of Hull,99943225,2639.68,Training Awards - Postgraduates
BEIS,UKRI - AHRC,24/04/2023,Training Awards - Postgraduates,Collabrative Doctoral Grants - Block Payment,"City, University of London",99943226,3139.62,Training Awards - Postgraduates
BEIS,UKRI - AHRC,24/04/2023,Training Awards - Postgraduates,Collabrative Doctoral Grants - Block Payment,Glasgow Caledonian University,99943227,2639.68,Training Awards - Postgraduates
BEIS,UKRI - AHRC,24/04/2023,Training Awards - Postgraduates,Collabrative Doctoral Grants - Block Payment,University of Leicester,99943228,2639.68,Training Awards - Postgraduates
BEIS,UKRI - AHRC,24/04/2023,Training Awards - Postgraduates,Collabrative Doctoral Grants - Block Payment,University of York,99943229,2639.68,Training Awards - Postgraduates
BEIS,UKRI - AHRC,24/04/2023,Training Awards - Postgraduates,Collabrative Doctoral Grants - Block Payment,Loughborough University,99943230,2639.68,Training Awards - Postgraduates
BEIS,UKRI - AHRC,24/04/2023,Training Awards - Postgraduates,Collabrative Doctoral Grants - Block Payment,University of Edinburgh,99943231,2639.68,Training Awards - Postgraduates
BEIS,UKRI - AHRC,24/04/2023,Training Awards - Postgraduates,Collabrative Doctoral Grants - Block Payment,The British Museum,99943232,18762.50,Training Awards - Postgraduates
BEIS,UKRI - AHRC,24/04/2023,Training Awards - Postgraduates,BGP Award,University of Sussex,99943234,860731.38,Training Awards - Postgraduates
BEIS,UKRI - AHRC,24/04/2023,Training Awards - Postgraduates,BGP Award,The University of Manchester,99943235,670223.61,Training Awards - Postgraduates
BEIS,UKRI - AHRC,24/04/2023,Training Awards - Postgraduates,BGP Award,University of Bristol GRANT,99943236,447844.99,Training Awards - Postgraduates
BEIS,UKRI - AHRC,24/04/2023,Training Awards - Postgraduates,BGP Award,"Royal Holloway, University of London",99943237,910292.15,Training Awards - Postgraduates
BEIS,UKRI - AHRC,24/04/2023,Training Awards - Postgraduates,BGP Award,University of York,99943238,713245.68,Training Awards - Postgraduates
BEIS,UKRI - AHRC,24/04/2023,Training Awards - Postgraduates,BGP Award,University of York,99943238,19041.14,Training Awards - Postgraduates
BEIS,UKRI - AHRC,24/04/2023,Training Awards - Postgraduates,BGP Award,University of Nottingham,99943239,1020329.02,Training Awards - Postgraduates
BEIS,UKRI - AHRC,24/04/2023,Training Awards - Postgraduates,BGP Award,University of Glasgow,99943240,846949.90,Training Awards - Postgraduates
BEIS,UKRI - AHRC,24/04/2023,Training Awards - Postgraduates,BGP Award,University of Oxford,99943241,1130882.53,Training Awards - Postgraduates
BEIS,UKRI - AHRC,24/04/2023,Training Awards - Postgraduates,BGP Award,University of Oxford,99943241,26783.98,Training Awards - Postgraduates
BEIS,UKRI - AHRC,24/04/2023,Training Awards - Postgraduates,BGP Award,University College London,99943242,1085986.67,Training Awards - Postgraduates
BEIS,UKRI - AHRC,24/04/2023,Training Awards - Postgraduates,BGP Award,University of Newcastle Upon Tyne,99943243,846949.90,Training Awards - Postgraduates
BEIS,UKRI - AHRC,24/04/2023,Training Awards - Postgraduates,Collabrative Doctoral Grants - Block Payment,Royal College of Art,99943244,803.00,Training Awards - Postgraduates
BEIS,UKRI - AHRC,24/04/2023,Training Awards - Postgraduates,Collabrative Doctoral Grants - Block Payment,The University of Manchester,99943245,401.49,Training Awards - Postgraduates
BEIS,UKRI - AHRC,24/04/2023,Training Awards - Postgraduates,Collabrative Doctoral Grants - Block Payment,The University of Manchester,99943245,401.51,Training Awards - Postgraduates
BEIS,UKRI - AHRC,24/04/2023,Training Awards - Postgraduates,Collabrative Doctoral Grants - Block Payment,University of York,99943246,401.51,Training Awards - Postgraduates
BEIS,UKRI - AHRC,24/04/2023,Training Awards - Postgraduates,Collabrative Doctoral Grants - Block Payment,University of York,99943246,401.49,Training Awards - Postgraduates
BEIS,UKRI - AHRC,24/04/2023,Training Awards - Postgraduates,BGP Award,University of Nottingham,99943247,4292.81,Training Awards - Postgraduates
BEIS,UKRI - AHRC,24/04/2023,Training Awards - Postgraduates,BGP Award,University of the West of England,99943248,1005.75,Training Awards - Postgraduates
BEIS,UKRI - AHRC,24/04/2023,Training Awards - Postgraduates,BGP Award,Royal College of Art,99943249,4050.40,Training Awards - Postgraduates
BEIS,UKRI - AHRC,24/04/2023,Training Awards - Postgraduates,Collabrative Doctoral Grants - Block Payment,Royal College of Art,99943250,65851.00,Training Awards - Postgraduates
BEIS,UKRI - AHRC,24/04/2023,Non-staff travel and subsistance,Engagement with the Innovation Scholarship programme,Unspecified,99946123,78.99,Non-staff travel and subsistance
BEIS,UKRI - AHRC,24/04/2023,Non-staff travel and subsistance,Skills Strategy,Unspecified,99946124,71.50,Non-staff travel and subsistance
BEIS,UKRI - AHRC,24/04/2023,T&S UK - Subsistence,"Health, Environmental & Urban Humanities (HEUH)",Unspecified,99947094,9.95,T&S UK - Subsistence
BEIS,UKRI - AHRC,25/04/2023,Training Awards - Postgraduates,Collabrative Doctoral Grants - Block Payment,The National Archives,99943233,0.06,Training Awards - Postgraduates
BEIS,UKRI - AHRC,25/04/2023,Non-staff travel and subsistance,AHRC - Creative Industries,Unspecified,99947968,192.54,Non-staff travel and subsistance
BEIS,UKRI - AHRC,25/04/2023,T&S UK - Public Transport,AHRC - Creative Industries,Unspecified,99948131,39.80,T&S UK - Public Transport
BEIS,UKRI - AHRC,25/04/2023,T&S UK - Public Transport,AHRC - Creative Industries,Unspecified,99948131,9.20,T&S UK - Public Transport
BEIS,UKRI - AHRC,25/04/2023,T&S UK - Subsistence,AHRC - Creative Industries,Unspecified,99948131,6.19,T&S UK - Subsistence
BEIS,UKRI - AHRC,25/04/2023,T&S UK - Subsistence,AHRC - Creative Industries,Unspecified,99948131,25.00,T&S UK - Subsistence
BEIS,UKRI - AHRC,25/04/2023,T&S UK - Subsistence,Public and Stakeholder Engagement,Unspecified,99948132,15.00,T&S UK - Subsistence
BEIS,UKRI - AHRC,25/04/2023,T&S Overseas - Public Transport,HERA JRP Project,Unspecified,99948133,46.82,T&S Overseas - Public Transport
BEIS,UKRI - AHRC,25/04/2023,T&S Overseas - Subsistence,HERA JRP Project,Unspecified,99948133,34.68,T&S Overseas - Subsistence
BEIS,UKRI - AHRC,25/04/2023,T&S Overseas - Subsistence,HERA JRP Project,Unspecified,99948133,8.19,T&S Overseas - Subsistence
BEIS,UKRI - AHRC,26/04/2023,Research Grant Expenditure,Infrastructure Fund - CoSTAR,Alexander Mann Solutions Ltd,99946072,2772.24,Research Grant Expenditure
BEIS,UKRI - AHRC,26/04/2023,Non-staff travel and subsistance,AHRC - Creative Industries,Unspecified,99948196,226.60,Non-staff travel and subsistance
BEIS,UKRI - AHRC,26/04/2023,Non-staff travel and subsistance,AHRC - Creative Industries,Unspecified,99948197,58.70,Non-staff travel and subsistance
BEIS,UKRI - AHRC,26/04/2023,Non-staff travel and subsistance,AHRC - Creative Industries,Unspecified,99948198,321.84,Non-staff travel and subsistance
BEIS,UKRI - AHRC,26/04/2023,Non-staff travel and subsistance,AHRC - Creative Industries,Unspecified,99948199,165.88,Non-staff travel and subsistance
BEIS,UKRI - AHRC,26/04/2023,Non-staff travel and subsistance,AHRC - Creative Industries,Unspecified,99948200,43.15,Non-staff travel and subsistance
BEIS,UKRI - AHRC,26/04/2023,Non-staff travel and subsistance,AHRC - Creative Industries,Unspecified,99948201,97.20,Non-staff travel and subsistance
BEIS,UKRI - AHRC,26/04/2023,Non-staff travel and subsistance,AHRC - Creative Industries,Unspecified,99948202,280.49,Non-staff travel and subsistance
BEIS,UKRI - AHRC,26/04/2023,Non-staff travel and subsistance,AHRC - Creative Industries,Unspecified,99948203,238.34,Non-staff travel and subsistance
BEIS,UKRI - AHRC,26/04/2023,Non-staff travel and subsistance,AHRC - Creative Industries,Unspecified,99948204,126.25,Non-staff travel and subsistance
BEIS,UKRI - AHRC,26/04/2023,Non-staff travel and subsistance,AHRC - Creative Industries,Unspecified,99948205,100.50,Non-staff travel and subsistance
BEIS,UKRI - AHRC,26/04/2023,Non-staff travel and subsistance,AHRC - Creative Industries,Unspecified,99948206,214.40,Non-staff travel and subsistance
BEIS,UKRI - AHRC,26/04/2023,Non-staff travel and subsistance,AHRC - Creative Industries,Unspecified,99948207,131.14,Non-staff travel and subsistance
BEIS,UKRI - AHRC,26/04/2023,T&S UK - Public Transport,Strategy and Evidence,Unspecified,99948380,39.80,T&S UK - Public Transport
BEIS,UKRI - AHRC,26/04/2023,T&S Overseas - Public Transport,SMT,Unspecified,99948382,18.11,T&S Overseas - Public Transport
BEIS,UKRI - AHRC,26/04/2023,T&S Overseas - Subsistence,SMT,Unspecified,99948382,16.02,T&S Overseas - Subsistence
BEIS,UKRI - AHRC,26/04/2023,T&S UK - Public Transport,Operations,Unspecified,99948383,80.10,T&S UK - Public Transport
BEIS,UKRI - AHRC,26/04/2023,T&S UK - Public Transport,International Partnership and Engagement,Unspecified,99948384,30.00,T&S UK - Public Transport
BEIS,UKRI - AHRC,26/04/2023,Non-staff travel and subsistance,Engagement with the Innovation Scholarship programme,Unspecified,99949267,152.10,Non-staff travel and subsistance
BEIS,UKRI - AHRC,26/04/2023,Non-staff travel and subsistance,Engagement with the Innovation Scholarship programme,Unspecified,99949268,121.39,Non-staff travel and subsistance
BEIS,UKRI - AHRC,26/04/2023,Non-staff travel and subsistance,Engagement with the Innovation Scholarship programme,Unspecified,99949269,48.45,Non-staff travel and subsistance
BEIS,UKRI - AHRC,27/04/2023,Unspecified,Infrastruture Roadmap,Alexander Mann Solutions Ltd,99908134,6930.60,Legal & Professional Services
BEIS,UKRI - AHRC,27/04/2023,Non-staff travel and subsistance,Skills Strategy,Robert Gordon University,99941200,642.60,Non-staff travel and subsistance
BEIS,UKRI - AHRC,27/04/2023,T&S UK - Other Charges,Infrastruture Roadmap,Unspecified,99948716,8.86,T&S UK - Other Charges
BEIS,UKRI - AHRC,27/04/2023,T&S UK - Public Transport,Infrastruture Roadmap,Unspecified,99948716,1.46,T&S UK - Public Transport
BEIS,UKRI - AHRC,27/04/2023,T&S UK - Subsistence,Infrastruture Roadmap,Unspecified,99948716,18.53,T&S UK - Subsistence
BEIS,UKRI - AHRC,27/04/2023,T&S UK - Public Transport,"Health, Environmental & Urban Humanities (HEUH)",Unspecified,99948717,24.86,T&S UK - Public Transport
BEIS,UKRI - AHRC,27/04/2023,T&S UK - Subsistence,"Health, Environmental & Urban Humanities (HEUH)",Unspecified,99948717,4.05,T&S UK - Subsistence
BEIS,UKRI - AHRC,27/04/2023,Non-staff travel and subsistance,Skills Strategy,Unspecified,99949360,114.00,Non-staff travel and subsistance
BEIS,UKRI - AHRC,27/04/2023,Non-staff travel and subsistance,Engagement with the Innovation Scholarship programme,Unspecified,99949361,94.29,Non-staff travel and subsistance
BEIS,UKRI - AHRC,28/04/2023,Unspecified,Infrastructure Fund - CoSTAR,Alexander Mann Solutions Ltd,99936495,3465.30,Legal & Professional Services
BEIS,UKRI - AHRC,28/04/2023,Unspecified,Infrastructure Fund - CoSTAR,Alexander Mann Solutions Ltd,99940091,2079.18,Legal & Professional Services
BEIS,UKRI - AHRC,28/04/2023,Unspecified,Infrastruture Roadmap,Alexander Mann Solutions Ltd,99940091,1386.12,Legal & Professional Services
BEIS,UKRI - AHRC,28/04/2023,T&S UK - Subsistence,"Health, Environmental & Urban Humanities (HEUH)",Unspecified,99949975,20.66,T&S UK - Subsistence
BEIS,UKRI - BBSRC,03/04/2023,Unspecified,Science Group - Delivery Function,Unspecified,99934981,170.00,Council & Committee Honoraria
BEIS,UKRI - BBSRC,03/04/2023,Unspecified,Science Group – Admin Function,Unspecified,99934982,170.00,Council & Committee Honoraria
BEIS,UKRI - BBSRC,03/04/2023,Unspecified,Science Group – Admin Function,Unspecified,99934983,170.00,Council & Committee Honoraria
BEIS,UKRI - BBSRC,03/04/2023,Unspecified,Science Group – Admin Function,Unspecified,99934984,170.00,Council & Committee Honoraria
BEIS,UKRI - BBSRC,03/04/2023,Non-staff travel and subsistance,Science Group – Admin Function,Unspecified,99934985,63.45,Non-staff travel and subsistance
BEIS,UKRI - BBSRC,03/04/2023,Unspecified,Science Group – Admin Function,Unspecified,99934986,230.00,Council & Committee Honoraria
BEIS,UKRI - BBSRC,03/04/2023,Unspecified,Science Group – Admin Function,Unspecified,99934987,170.00,Council & Committee Honoraria
BEIS,UKRI - BBSRC,03/04/2023,Non-staff travel and subsistance,Science Group - Delivery Function,Unspecified,99934988,176.00,Non-staff travel and subsistance
BEIS,UKRI - BBSRC,03/04/2023,Non-staff travel and subsistance,Science Group – Admin Function,Unspecified,99934989,33.10,Non-staff travel and subsistance
BEIS,UKRI - BBSRC,03/04/2023,Unspecified,Science Group – Admin Function,Unspecified,99934990,170.00,Council & Committee Honoraria
BEIS,UKRI - BBSRC,03/04/2023,Non-staff travel and subsistance,Science Group - Delivery Function,Unspecified,99934991,132.70,Non-staff travel and subsistance
BEIS,UKRI - BBSRC,03/04/2023,Research Institutes - Capital Grants: Minor Works,Mid-Range Equipment,The Pirbright Institute,99935105,2370.00,Research Institutes - Capital Grants: Minor Works
BEIS,UKRI - BBSRC,03/04/2023,Non-staff travel and subsistance,Science Group,Robert Gordon University,99935819,907.74,Non-staff travel and subsistance
BEIS,UKRI - BBSRC,03/04/2023,Non-staff travel and subsistance,Science Group – Admin Function,Unspecified,99935872,578.20,Non-staff travel and subsistance
BEIS,UKRI - BBSRC,04/04/2023,Research Institutes - Capital Grants: Minor Works,World Class Labs,Earlham Institute,99935341,644756.29,Research Institutes - Capital Grants: Minor Works
BEIS,UKRI - BBSRC,04/04/2023,Research Institutes - Capital Grants: Minor Works,World Class Labs,The Pirbright Institute,99935475,20.00,Research Institutes - Capital Grants: Minor Works
BEIS,UKRI - BBSRC,04/04/2023,Research Institutes - Capital Grants: Minor Works,Mid-Range Equipment,The Pirbright Institute,99935558,34871.83,Research Institutes - Capital Grants: Minor Works
BEIS,UKRI - BBSRC,04/04/2023,Research Institutes - Capital Grants: Minor Works,Mid-Range Equipment,The Pirbright Institute,99935559,27841.65,Research Institutes - Capital Grants: Minor Works
BEIS,UKRI - BBSRC,04/04/2023,Research Institutes - Capital Grants: Minor Works,World Class Labs,The Pirbright Institute,99935560,2640.25,Research Institutes - Capital Grants: Minor Works
BEIS,UKRI - BBSRC,04/04/2023,Research Grant Expenditure,Research: Strategic,UKRI - Engineering & Physical Sciences Research Council,99936351,484311.00,Research Grant Expenditure
BEIS,UKRI - BBSRC,04/04/2023,Research Grant Expenditure,Research: Strategic,UKRI - Engineering & Physical Sciences Research Council,99936353,135000.00,Research Grant Expenditure
BEIS,UKRI - BBSRC,04/04/2023,Research Institutes - Capital Grants: Minor Works,World Class Labs,The Pirbright Institute,99936388,72493.66,Research Institutes - Capital Grants: Minor Works
BEIS,UKRI - BBSRC,04/04/2023,Unspecified,Science Group - Delivery Function,Unspecified,99936477,340.00,Council & Committee Honoraria
BEIS,UKRI - BBSRC,04/04/2023,Unspecified,Science Group – Admin Function,Unspecified,99936478,340.00,Council & Committee Honoraria
BEIS,UKRI - BBSRC,04/04/2023,Unspecified,Science Group – Admin Function,Unspecified,99936479,340.00,Council & Committee Honoraria
BEIS,UKRI - BBSRC,04/04/2023,T&S UK - Public Transport,Science Group,Unspecified,99936551,80.10,T&S UK - Public Transport
BEIS,UKRI - BBSRC,05/04/2023,Non-staff travel and subsistance,Science Group – Admin Function,Unspecified,99935860,180.17,Non-staff travel and subsistance
BEIS,UKRI - BBSRC,05/04/2023,Research Grant Expenditure,Impact & Knowledge Exchange,University of Oxford,99936536,98951.69,Research Grant Expenditure
BEIS,UKRI - BBSRC,05/04/2023,Unspecified,Science Group – Admin Function,Unspecified,99937021,340.00,Council & Committee Honoraria
BEIS,UKRI - BBSRC,05/04/2023,Unspecified,Science Group – Admin Function,Unspecified,99937022,340.00,Council & Committee Honoraria
BEIS,UKRI - BBSRC,05/04/2023,Unspecified,Science Group – Admin Function,Unspecified,99937023,340.00,Council & Committee Honoraria
BEIS,UKRI - BBSRC,05/04/2023,Non-staff travel and subsistance,Science Group – Admin Function,Unspecified,99937024,31.50,Non-staff travel and subsistance
BEIS,UKRI - BBSRC,05/04/2023,Unspecified,Science Group – Admin Function,Unspecified,99937025,170.00,Council & Committee Honoraria
BEIS,UKRI - BBSRC,05/04/2023,Non-staff travel and subsistance,Science Group – Admin Function,Unspecified,99937026,75.50,Non-staff travel and subsistance
BEIS,UKRI - BBSRC,05/04/2023,Unspecified,Science Group – Admin Function,Unspecified,99937027,170.00,Council & Committee Honoraria
BEIS,UKRI - BBSRC,05/04/2023,T&S Overseas - Flights,OpEx FIC2 EEID2,University of Edinburgh,99937099,1077.45,T&S Overseas - Flights
BEIS,UKRI - BBSRC,05/04/2023,Conferences & Seminars,Science Group,Calder Conference Ltd,99937194,8065.01,Conferences & Seminars
BEIS,UKRI - BBSRC,05/04/2023,Meetings & Catering,CE - Chief Executive,Department for Business Energy & Industrial Strategy,99938050,350.00,Meetings & Catering
BEIS,UKRI - BBSRC,05/04/2023,T&S UK - Public Transport,CE - Chief Executive,Unspecified,99938161,19.00,T&S UK - Public Transport
BEIS,UKRI - BBSRC,05/04/2023,T&S UK - Subsistence,CE - Chief Executive,Unspecified,99938161,15.35,T&S UK - Subsistence
BEIS,UKRI - BBSRC,05/04/2023,T&S UK - Other Charges,Science Group,Unspecified,99938163,21.48,T&S UK - Other Charges
BEIS,UKRI - BBSRC,05/04/2023,T&S UK - Parking Tolls Congestion Charges,Science Group,Unspecified,99938163,66.60,T&S UK - Parking Tolls Congestion Charges
BEIS,UKRI - BBSRC,05/04/2023,T&S UK - Subsistence,Science Group,Unspecified,99938163,8.65,T&S UK - Subsistence
BEIS,UKRI - BBSRC,05/04/2023,T&S UK - Subsistence,Science Group,Unspecified,99938163,5.49,T&S UK - Subsistence
BEIS,UKRI - BBSRC,06/04/2023,Unspecified,Science Group – Admin Function,Unspecified,99938347,340.00,Council & Committee Honoraria
BEIS,UKRI - BBSRC,06/04/2023,Non-staff travel and subsistance,Innovation and Skills Group,Corporate Travel Management (North) Ltd,99938508,0.25,Non-staff travel and subsistance
BEIS,UKRI - BBSRC,06/04/2023,Non-staff travel and subsistance,Innovation and Skills Group,Corporate Travel Management (North) Ltd,99938508,137.40,Non-staff travel and subsistance
BEIS,UKRI - BBSRC,06/04/2023,T&S Overseas - Accommodation,CE - Chief Executive,Corporate Travel Management (North) Ltd,99938508,0.80,T&S Overseas - Accommodation
BEIS,UKRI - BBSRC,06/04/2023,T&S Overseas - Accommodation,CE - Chief Executive,Corporate Travel Management (North) Ltd,99938508,236.19,T&S Overseas - Accommodation
BEIS,UKRI - BBSRC,06/04/2023,T&S Overseas - Accommodation,CE - Chief Executive,Corporate Travel Management (North) Ltd,99938508,0.80,T&S Overseas - Accommodation
BEIS,UKRI - BBSRC,06/04/2023,T&S Overseas - Accommodation,CE - Chief Executive,Corporate Travel Management (North) Ltd,99938508,172.40,T&S Overseas - Accommodation
BEIS,UKRI - BBSRC,06/04/2023,T&S Overseas - Accommodation,CE - Chief Executive,Corporate Travel Management (North) Ltd,99938508,0.32,T&S Overseas - Accommodation
BEIS,UKRI - BBSRC,06/04/2023,T&S Overseas - Accommodation,European Initiatives,Corporate Travel Management (North) Ltd,99938508,0.80,T&S Overseas - Accommodation
BEIS,UKRI - BBSRC,06/04/2023,T&S Overseas - Accommodation,European Initiatives,Corporate Travel Management (North) Ltd,99938508,214.59,T&S Overseas - Accommodation
BEIS,UKRI - BBSRC,06/04/2023,T&S Overseas - Accommodation,European Initiatives,Corporate Travel Management (North) Ltd,99938508,0.16,T&S Overseas - Accommodation
BEIS,UKRI - BBSRC,06/04/2023,T&S Overseas - Accommodation,Science Group,Corporate Travel Management (North) Ltd,99938508,0.80,T&S Overseas - Accommodation
BEIS,UKRI - BBSRC,06/04/2023,T&S Overseas - Accommodation,Science Group,Corporate Travel Management (North) Ltd,99938508,847.18,T&S Overseas - Accommodation
BEIS,UKRI - BBSRC,06/04/2023,T&S Overseas - Accommodation,Science Group,Corporate Travel Management (North) Ltd,99938508,2.00,T&S Overseas - Accommodation
BEIS,UKRI - BBSRC,06/04/2023,T&S Overseas - Accommodation,Science Group,Corporate Travel Management (North) Ltd,99938508,220.18,T&S Overseas - Accommodation
BEIS,UKRI - BBSRC,06/04/2023,T&S Overseas - Accommodation,Science Group,Corporate Travel Management (North) Ltd,99938508,0.80,T&S Overseas - Accommodation
BEIS,UKRI - BBSRC,06/04/2023,T&S Overseas - Accommodation,Science Group,Corporate Travel Management (North) Ltd,99938508,117.21,T&S Overseas - Accommodation
BEIS,UKRI - BBSRC,06/04/2023,T&S Overseas - Accommodation,Science Group,Corporate Travel Management (North) Ltd,99938508,0.72,T&S Overseas - Accommodation
BEIS,UKRI - BBSRC,06/04/2023,T&S Overseas - Accommodation,Science Group – Admin Function,Corporate Travel Management (North) Ltd,99938508,2.00,T&S Overseas - Accommodation
BEIS,UKRI - BBSRC,06/04/2023,T&S Overseas - Accommodation,Science Group – Admin Function,Corporate Travel Management (North) Ltd,99938508,94.93,T&S Overseas - Accommodation
BEIS,UKRI - BBSRC,06/04/2023,T&S Overseas - Accommodation,Science Group – Admin Function,Corporate Travel Management (North) Ltd,99938508,0.80,T&S Overseas - Accommodation
BEIS,UKRI - BBSRC,06/04/2023,T&S Overseas - Accommodation,Science Group – Admin Function,Corporate Travel Management (North) Ltd,99938508,779.11,T&S Overseas - Accommodation
BEIS,UKRI - BBSRC,06/04/2023,T&S Overseas - Accommodation,Science Group – Admin Function,Corporate Travel Management (North) Ltd,99938508,0.56,T&S Overseas - Accommodation
BEIS,UKRI - BBSRC,06/04/2023,T&S UK - Accommodation,CE - CPS,Corporate Travel Management (North) Ltd,99938508,0.80,T&S UK - Accommodation
BEIS,UKRI - BBSRC,06/04/2023,T&S UK - Accommodation,CE - CPS,Corporate Travel Management (North) Ltd,99938508,0.16,T&S UK - Accommodation
BEIS,UKRI - BBSRC,06/04/2023,T&S UK - Accommodation,CE - Chief Executive,Corporate Travel Management (North) Ltd,99938508,0.80,T&S UK - Accommodation
BEIS,UKRI - BBSRC,06/04/2023,T&S UK - Accommodation,CE - Chief Executive,Corporate Travel Management (North) Ltd,99938508,148.25,T&S UK - Accommodation
BEIS,UKRI - BBSRC,06/04/2023,T&S UK - Accommodation,CE - Chief Executive,Corporate Travel Management (North) Ltd,99938508,0.80,T&S UK - Accommodation
BEIS,UKRI - BBSRC,06/04/2023,T&S UK - Accommodation,CE - Chief Executive,Corporate Travel Management (North) Ltd,99938508,0.80,T&S UK - Accommodation
BEIS,UKRI - BBSRC,06/04/2023,T&S UK - Accommodation,CE - Chief Executive,Corporate Travel Management (North) Ltd,99938508,0.48,T&S UK - Accommodation
BEIS,UKRI - BBSRC,06/04/2023,T&S UK - Accommodation,CIMG - Director,Corporate Travel Management (North) Ltd,99938508,0.80,T&S UK - Accommodation
BEIS,UKRI - BBSRC,06/04/2023,T&S UK - Accommodation,CIMG - Director,Corporate Travel Management (North) Ltd,99938508,115.00,T&S UK - Accommodation
BEIS,UKRI - BBSRC,06/04/2023,T&S UK - Accommodation,CIMG - Director,Corporate Travel Management (North) Ltd,99938508,0.80,T&S UK - Accommodation
BEIS,UKRI - BBSRC,06/04/2023,T&S UK - Accommodation,CIMG - Director,Corporate Travel Management (North) Ltd,99938508,151.00,T&S UK - Accommodation
BEIS,UKRI - BBSRC,06/04/2023,T&S UK - Accommodation,CIMG - Director,Corporate Travel Management (North) Ltd,99938508,0.80,T&S UK - Accommodation
BEIS,UKRI - BBSRC,06/04/2023,T&S UK - Accommodation,CIMG - Director,Corporate Travel Management (North) Ltd,99938508,0.80,T&S UK - Accommodation
BEIS,UKRI - BBSRC,06/04/2023,T&S UK - Accommodation,CIMG - Director,Corporate Travel Management (North) Ltd,99938508,0.64,T&S UK - Accommodation
BEIS,UKRI - BBSRC,06/04/2023,T&S UK - Accommodation,FG - Estates,Corporate Travel Management (North) Ltd,99938508,1.60,T&S UK - Accommodation
BEIS,UKRI - BBSRC,06/04/2023,T&S UK - Accommodation,FG - Estates,Corporate Travel Management (North) Ltd,99938508,120.60,T&S UK - Accommodation
BEIS,UKRI - BBSRC,06/04/2023,T&S UK - Accommodation,FG - Estates,Corporate Travel Management (North) Ltd,99938508,0.80,T&S UK - Accommodation
BEIS,UKRI - BBSRC,06/04/2023,T&S UK - Accommodation,FG - Estates,Corporate Travel Management (North) Ltd,99938508,88.00,T&S UK - Accommodation
BEIS,UKRI - BBSRC,06/04/2023,T&S UK - Accommodation,FG - Estates,Corporate Travel Management (North) Ltd,99938508,111.60,T&S UK - Accommodation
BEIS,UKRI - BBSRC,06/04/2023,T&S UK - Accommodation,FG - Estates,Corporate Travel Management (North) Ltd,99938508,0.80,T&S UK - Accommodation
BEIS,UKRI - BBSRC,06/04/2023,T&S UK - Accommodation,FG - Estates,Corporate Travel Management (North) Ltd,99938508,102.60,T&S UK - Accommodation
BEIS,UKRI - BBSRC,06/04/2023,T&S UK - Accommodation,FG - Estates,Corporate Travel Management (North) Ltd,99938508,0.64,T&S UK - Accommodation
BEIS,UKRI - BBSRC,06/04/2023,T&S UK - Accommodation,Innovation and Skills Group,Corporate Travel Management (North) Ltd,99938508,0.80,T&S UK - Accommodation
BEIS,UKRI - BBSRC,06/04/2023,T&S UK - Accommodation,Innovation and Skills Group,Corporate Travel Management (North) Ltd,99938508,85.50,T&S UK - Accommodation
BEIS,UKRI - BBSRC,06/04/2023,T&S UK - Accommodation,Innovation and Skills Group,Corporate Travel Management (North) Ltd,99938508,0.80,T&S UK - Accommodation
BEIS,UKRI - BBSRC,06/04/2023,T&S UK - Accommodation,Innovation and Skills Group,Corporate Travel Management (North) Ltd,99938508,92.64,T&S UK - Accommodation
BEIS,UKRI - BBSRC,06/04/2023,T&S UK - Accommodation,Innovation and Skills Group,Corporate Travel Management (North) Ltd,99938508,0.80,T&S UK - Accommodation
BEIS,UKRI - BBSRC,06/04/2023,T&S UK - Accommodation,Innovation and Skills Group,Corporate Travel Management (North) Ltd,99938508,99.00,T&S UK - Accommodation
BEIS,UKRI - BBSRC,06/04/2023,T&S UK - Accommodation,Innovation and Skills Group,Corporate Travel Management (North) Ltd,99938508,0.80,T&S UK - Accommodation
BEIS,UKRI - BBSRC,06/04/2023,T&S UK - Accommodation,Innovation and Skills Group,Corporate Travel Management (North) Ltd,99938508,0.32,T&S UK - Accommodation
BEIS,UKRI - BBSRC,06/04/2023,T&S UK - Accommodation,Innovation and Skills Group,Corporate Travel Management (North) Ltd,99938508,0.32,T&S UK - Accommodation
BEIS,UKRI - BBSRC,06/04/2023,T&S UK - Accommodation,Science Group,Corporate Travel Management (North) Ltd,99938508,0.80,T&S UK - Accommodation
BEIS,UKRI - BBSRC,06/04/2023,T&S UK - Accommodation,Science Group,Corporate Travel Management (North) Ltd,99938508,110.00,T&S UK - Accommodation
BEIS,UKRI - BBSRC,06/04/2023,T&S UK - Accommodation,Science Group,Corporate Travel Management (North) Ltd,99938508,0.80,T&S UK - Accommodation
BEIS,UKRI - BBSRC,06/04/2023,T&S UK - Accommodation,Science Group,Corporate Travel Management (North) Ltd,99938508,204.00,T&S UK - Accommodation
BEIS,UKRI - BBSRC,06/04/2023,T&S UK - Accommodation,Science Group,Corporate Travel Management (North) Ltd,99938508,0.80,T&S UK - Accommodation
BEIS,UKRI - BBSRC,06/04/2023,T&S UK - Accommodation,Science Group,Corporate Travel Management (North) Ltd,99938508,103.55,T&S UK - Accommodation
BEIS,UKRI - BBSRC,06/04/2023,T&S UK - Accommodation,Science Group,Corporate Travel Management (North) Ltd,99938508,0.80,T&S UK - Accommodation
BEIS,UKRI - BBSRC,06/04/2023,T&S UK - Accommodation,Science Group,Corporate Travel Management (North) Ltd,99938508,103.55,T&S UK - Accommodation
BEIS,UKRI - BBSRC,06/04/2023,T&S UK - Accommodation,Science Group,Corporate Travel Management (North) Ltd,99938508,0.80,T&S UK - Accommodation
BEIS,UKRI - BBSRC,06/04/2023,T&S UK - Accommodation,Science Group,Corporate Travel Management (North) Ltd,99938508,63.00,T&S UK - Accommodation
BEIS,UKRI - BBSRC,06/04/2023,T&S UK - Accommodation,Science Group,Corporate Travel Management (North) Ltd,99938508,0.80,T&S UK - Accommodation
BEIS,UKRI - BBSRC,06/04/2023,T&S UK - Accommodation,Science Group,Corporate Travel Management (North) Ltd,99938508,0.80,T&S UK - Accommodation
BEIS,UKRI - BBSRC,06/04/2023,T&S UK - Accommodation,Science Group,Corporate Travel Management (North) Ltd,99938508,0.80,T&S UK - Accommodation
BEIS,UKRI - BBSRC,06/04/2023,T&S UK - Accommodation,Science Group,Corporate Travel Management (North) Ltd,99938508,220.43,T&S UK - Accommodation
BEIS,UKRI - BBSRC,06/04/2023,T&S UK - Accommodation,Science Group,Corporate Travel Management (North) Ltd,99938508,0.16,T&S UK - Accommodation
BEIS,UKRI - BBSRC,06/04/2023,T&S UK - Accommodation,Science Group,Corporate Travel Management (North) Ltd,99938508,1.12,T&S UK - Accommodation
BEIS,UKRI - BBSRC,06/04/2023,T&S UK - Accommodation,Science Group – Admin Function,Corporate Travel Management (North) Ltd,99938508,2.00,T&S UK - Accommodation
BEIS,UKRI - BBSRC,06/04/2023,T&S UK - Accommodation,Science Group – Admin Function,Corporate Travel Management (North) Ltd,99938508,87.29,T&S UK - Accommodation
BEIS,UKRI - BBSRC,06/04/2023,T&S UK - Accommodation,Science Group – Admin Function,Corporate Travel Management (North) Ltd,99938508,2.00,T&S UK - Accommodation
BEIS,UKRI - BBSRC,06/04/2023,T&S UK - Accommodation,Science Group – Admin Function,Corporate Travel Management (North) Ltd,99938508,87.29,T&S UK - Accommodation
BEIS,UKRI - BBSRC,06/04/2023,T&S UK - Accommodation,Science Group – Admin Function,Corporate Travel Management (North) Ltd,99938508,2.00,T&S UK - Accommodation
BEIS,UKRI - BBSRC,06/04/2023,T&S UK - Accommodation,Science Group – Admin Function,Corporate Travel Management (North) Ltd,99938508,87.29,T&S UK - Accommodation
BEIS,UKRI - BBSRC,06/04/2023,T&S UK - Accommodation,Science Group – Admin Function,Corporate Travel Management (North) Ltd,99938508,0.80,T&S UK - Accommodation
BEIS,UKRI - BBSRC,06/04/2023,T&S UK - Accommodation,Science Group – Admin Function,Corporate Travel Management (North) Ltd,99938508,1.20,T&S UK - Accommodation
BEIS,UKRI - BBSRC,06/04/2023,T&S UK - Accommodation,Science Group – Admin Function,Corporate Travel Management (North) Ltd,99938508,0.16,T&S UK - Accommodation
BEIS,UKRI - BBSRC,06/04/2023,T&S UK - Flights,Innovation and Skills Group,Corporate Travel Management (North) Ltd,99938508,2.00,T&S UK - Flights
BEIS,UKRI - BBSRC,06/04/2023,T&S UK - Flights,Innovation and Skills Group,Corporate Travel Management (North) Ltd,99938508,232.00,T&S UK - Flights
BEIS,UKRI - BBSRC,06/04/2023,T&S UK - Public Transport,CE - Chief Executive,Corporate Travel Management (North) Ltd,99938508,-9.00,T&S UK - Public Transport
BEIS,UKRI - BBSRC,06/04/2023,T&S UK - Public Transport,CE - Chief Executive,Corporate Travel Management (North) Ltd,99938508,-9.00,T&S UK - Public Transport
BEIS,UKRI - BBSRC,06/04/2023,T&S UK - Public Transport,CIMG - Director,Corporate Travel Management (North) Ltd,99938508,10.00,T&S UK - Public Transport
BEIS,UKRI - BBSRC,06/04/2023,T&S UK - Public Transport,CIMG - Director,Corporate Travel Management (North) Ltd,99938508,-120.20,T&S UK - Public Transport
BEIS,UKRI - BBSRC,06/04/2023,T&S UK - Public Transport,Innovation and Skills Group,Corporate Travel Management (North) Ltd,99938508,5.00,T&S UK - Public Transport
BEIS,UKRI - BBSRC,06/04/2023,T&S UK - Public Transport,Innovation and Skills Group,Corporate Travel Management (North) Ltd,99938508,-168.60,T&S UK - Public Transport
BEIS,UKRI - BBSRC,06/04/2023,T&S UK - Public Transport,Innovation and Skills Group,Corporate Travel Management (North) Ltd,99938508,5.00,T&S UK - Public Transport
BEIS,UKRI - BBSRC,06/04/2023,T&S UK - Public Transport,Innovation and Skills Group,Corporate Travel Management (North) Ltd,99938508,-239.80,T&S UK - Public Transport
BEIS,UKRI - BBSRC,06/04/2023,T&S UK - Public Transport,Innovation and Skills Group,Corporate Travel Management (North) Ltd,99938508,-25.50,T&S UK - Public Transport
BEIS,UKRI - BBSRC,06/04/2023,T&S UK - Public Transport,Innovation and Skills Group,Corporate Travel Management (North) Ltd,99938508,2.50,T&S UK - Public Transport
BEIS,UKRI - BBSRC,06/04/2023,T&S UK - Public Transport,Innovation and Skills Group,Corporate Travel Management (North) Ltd,99938508,24.48,T&S UK - Public Transport
BEIS,UKRI - BBSRC,06/04/2023,T&S UK - Public Transport,Innovation and Skills Group,Corporate Travel Management (North) Ltd,99938508,5.00,T&S UK - Public Transport
BEIS,UKRI - BBSRC,06/04/2023,T&S UK - Public Transport,Innovation and Skills Group,Corporate Travel Management (North) Ltd,99938508,-58.10,T&S UK - Public Transport
BEIS,UKRI - BBSRC,06/04/2023,T&S UK - Public Transport,Innovation and Skills Group,Corporate Travel Management (North) Ltd,99938508,0.50,T&S UK - Public Transport
BEIS,UKRI - BBSRC,06/04/2023,T&S UK - Public Transport,Science Group,Corporate Travel Management (North) Ltd,99938508,5.00,T&S UK - Public Transport
BEIS,UKRI - BBSRC,06/04/2023,T&S UK - Public Transport,Science Group,Corporate Travel Management (North) Ltd,99938508,-53.70,T&S UK - Public Transport
BEIS,UKRI - BBSRC,06/04/2023,T&S UK - Public Transport,Science Group,Corporate Travel Management (North) Ltd,99938508,5.00,T&S UK - Public Transport
BEIS,UKRI - BBSRC,06/04/2023,T&S UK - Public Transport,Science Group,Corporate Travel Management (North) Ltd,99938508,-261.40,T&S UK - Public Transport
BEIS,UKRI - BBSRC,06/04/2023,T&S UK - Vehicle Hire,Innovation and Skills Group,Corporate Travel Management (North) Ltd,99938508,2.50,T&S UK - Vehicle Hire
BEIS,UKRI - BBSRC,06/04/2023,T&S UK - Vehicle Hire,Innovation and Skills Group,Corporate Travel Management (North) Ltd,99938508,18.26,T&S UK - Vehicle Hire
BEIS,UKRI - BBSRC,06/04/2023,T&S UK - Vehicle Hire,Innovation and Skills Group,Corporate Travel Management (North) Ltd,99938508,0.50,T&S UK - Vehicle Hire
BEIS,UKRI - BBSRC,06/04/2023,T&S UK - Vehicle Hire,Science Group,Corporate Travel Management (North) Ltd,99938508,2.50,T&S UK - Vehicle Hire
BEIS,UKRI - BBSRC,06/04/2023,T&S UK - Vehicle Hire,Science Group,Corporate Travel Management (North) Ltd,99938508,231.97,T&S UK - Vehicle Hire
BEIS,UKRI - BBSRC,06/04/2023,T&S UK - Vehicle Hire,Science Group,Corporate Travel Management (North) Ltd,99938508,0.50,T&S UK - Vehicle Hire
BEIS,UKRI - BBSRC,06/04/2023,Fees (Including College Members),Science Group – Admin Function,Unspecified,99938810,170.00,Fees (Including College Members)
BEIS,UKRI - BBSRC,06/04/2023,Non-staff travel and subsistance,Science Group - Delivery Function,Unspecified,99938811,33.00,Non-staff travel and subsistance
BEIS,UKRI - BBSRC,06/04/2023,Non-staff travel and subsistance,Science Group - Delivery Function,Unspecified,99938812,53.63,Non-staff travel and subsistance
BEIS,UKRI - BBSRC,06/04/2023,Non-staff travel and subsistance,Science Group - Delivery Function,Unspecified,99938813,138.70,Non-staff travel and subsistance
BEIS,UKRI - BBSRC,06/04/2023,T&S UK - Public Transport,CIMG - Programme Office,Unspecified,99939042,22.90,T&S UK - Public Transport
BEIS,UKRI - BBSRC,06/04/2023,T&S UK - Subsistence,CIMG - Programme Office,Unspecified,99939042,3.55,T&S UK - Subsistence
BEIS,UKRI - BBSRC,06/04/2023,T&S UK - Subsistence,CIMG - Programme Office,Unspecified,99939042,80.74,T&S UK - Subsistence
BEIS,UKRI - BBSRC,06/04/2023,T&S UK - Subsistence,CIMG - Programme Office,Unspecified,99939042,18.75,T&S UK - Subsistence
BEIS,UKRI - BBSRC,06/04/2023,T&S UK - Public Transport,Innovation and Skills Group,Unspecified,99939043,10.50,T&S UK - Public Transport
BEIS,UKRI - BBSRC,06/04/2023,T&S UK - Subsistence,Innovation and Skills Group,Unspecified,99939044,11.24,T&S UK - Subsistence
BEIS,UKRI - BBSRC,06/04/2023,T&S UK - Subsistence,Innovation and Skills Group,Unspecified,99939044,20.80,T&S UK - Subsistence
BEIS,UKRI - BBSRC,06/04/2023,T&S UK - Parking Tolls Congestion Charges,Innovation and Skills Group,Unspecified,99939045,9.40,T&S UK - Parking Tolls Congestion Charges
BEIS,UKRI - BBSRC,06/04/2023,T&S UK - Subsistence,Innovation and Skills Group,Unspecified,99939045,11.30,T&S UK - Subsistence
BEIS,UKRI - BBSRC,06/04/2023,T&S UK - Vehicle Hire,Innovation and Skills Group,Unspecified,99939045,13.28,T&S UK - Vehicle Hire
BEIS,UKRI - BBSRC,11/04/2023,Non-staff travel and subsistance,CE - Chief Executive,Unspecified,99938656,1527.76,Non-staff travel and subsistance
BEIS,UKRI - BBSRC,11/04/2023,Research Grant Expenditure,SPF W1 EMBL EBI,EMBL (European Molecular Biology Laboratory),99939134,79992.00,Research Grant Expenditure
BEIS,UKRI - BBSRC,11/04/2023,Research Institutes - Capital Grants: Minor Works,World Class Labs,The Pirbright Institute,99939283,4350.00,Research Institutes - Capital Grants: Minor Works
BEIS,UKRI - BBSRC,11/04/2023,T&S Overseas - Accommodation,CE - IRU,Clarity Travel Ltd t/a Clarity,99939429,339.86,T&S Overseas - Accommodation
BEIS,UKRI - BBSRC,11/04/2023,T&S Overseas - Flights,CE - Chief Executive,Clarity Travel Ltd t/a Clarity,99939429,1.00,T&S Overseas - Flights
BEIS,UKRI - BBSRC,11/04/2023,T&S Overseas - Flights,CE - Chief Executive,Clarity Travel Ltd t/a Clarity,99939429,230.22,T&S Overseas - Flights
BEIS,UKRI - BBSRC,11/04/2023,T&S Overseas - Flights,CE - Chief Executive,Clarity Travel Ltd t/a Clarity,99939429,1.00,T&S Overseas - Flights
BEIS,UKRI - BBSRC,11/04/2023,T&S Overseas - Flights,CE - Chief Executive,Clarity Travel Ltd t/a Clarity,99939429,168.00,T&S Overseas - Flights
BEIS,UKRI - BBSRC,11/04/2023,T&S Overseas - Flights,CE - IRU,Clarity Travel Ltd t/a Clarity,99939429,3.50,T&S Overseas - Flights
BEIS,UKRI - BBSRC,11/04/2023,T&S Overseas - Flights,CE - IRU,Clarity Travel Ltd t/a Clarity,99939429,61.30,T&S Overseas - Flights
BEIS,UKRI - BBSRC,11/04/2023,T&S Overseas - Flights,CE - IRU,Clarity Travel Ltd t/a Clarity,99939429,3.50,T&S Overseas - Flights
BEIS,UKRI - BBSRC,11/04/2023,T&S Overseas - Flights,CE - IRU,Clarity Travel Ltd t/a Clarity,99939429,72.00,T&S Overseas - Flights
BEIS,UKRI - BBSRC,11/04/2023,T&S Overseas - Flights,Science Group – Admin Function,Clarity Travel Ltd t/a Clarity,99939429,1.00,T&S Overseas - Flights
BEIS,UKRI - BBSRC,11/04/2023,T&S Overseas - Flights,Science Group – Admin Function,Clarity Travel Ltd t/a Clarity,99939429,179.00,T&S Overseas - Flights
BEIS,UKRI - BBSRC,11/04/2023,T&S Overseas - Public Transport,Science Group – Admin Function,Clarity Travel Ltd t/a Clarity,99939429,2.00,T&S Overseas - Public Transport
BEIS,UKRI - BBSRC,11/04/2023,T&S Overseas - Public Transport,Science Group – Admin Function,Clarity Travel Ltd t/a Clarity,99939429,54.00,T&S Overseas - Public Transport
BEIS,UKRI - BBSRC,11/04/2023,T&S UK - Accommodation,CE - IRU,Clarity Travel Ltd t/a Clarity,99939429,80.83,T&S UK - Accommodation
BEIS,UKRI - BBSRC,11/04/2023,T&S UK - Accommodation,CE - IRU,Clarity Travel Ltd t/a Clarity,99939429,16.17,T&S UK - Accommodation
BEIS,UKRI - BBSRC,11/04/2023,T&S UK - Accommodation,Innovation and Skills Group,Clarity Travel Ltd t/a Clarity,99939429,233.30,T&S UK - Accommodation
BEIS,UKRI - BBSRC,11/04/2023,T&S UK - Accommodation,Innovation and Skills Group,Clarity Travel Ltd t/a Clarity,99939429,175.82,T&S UK - Accommodation
BEIS,UKRI - BBSRC,11/04/2023,T&S UK - Accommodation,Innovation and Skills Group,Clarity Travel Ltd t/a Clarity,99939429,144.15,T&S UK - Accommodation
BEIS,UKRI - BBSRC,11/04/2023,T&S UK - Accommodation,Innovation and Skills Group,Clarity Travel Ltd t/a Clarity,99939429,144.15,T&S UK - Accommodation
BEIS,UKRI - BBSRC,11/04/2023,T&S UK - Accommodation,Innovation and Skills Group,Clarity Travel Ltd t/a Clarity,99939429,139.48,T&S UK - Accommodation
BEIS,UKRI - BBSRC,11/04/2023,T&S UK - Accommodation,Science Group,Clarity Travel Ltd t/a Clarity,99939429,250.00,T&S UK - Accommodation
BEIS,UKRI - BBSRC,11/04/2023,T&S UK - Accommodation,Science Group,Clarity Travel Ltd t/a Clarity,99939429,108.33,T&S UK - Accommodation
BEIS,UKRI - BBSRC,11/04/2023,T&S UK - Accommodation,Science Group,Clarity Travel Ltd t/a Clarity,99939429,99.58,T&S UK - Accommodation
BEIS,UKRI - BBSRC,11/04/2023,T&S UK - Accommodation,Science Group,Clarity Travel Ltd t/a Clarity,99939429,91.58,T&S UK - Accommodation
BEIS,UKRI - BBSRC,11/04/2023,T&S UK - Public Transport,CE - Chief Executive,Clarity Travel Ltd t/a Clarity,99939429,1.00,T&S UK - Public Transport
BEIS,UKRI - BBSRC,11/04/2023,T&S UK - Public Transport,CE - Chief Executive,Clarity Travel Ltd t/a Clarity,99939429,140.00,T&S UK - Public Transport
BEIS,UKRI - BBSRC,11/04/2023,T&S UK - Public Transport,CE - Chief Executive,Clarity Travel Ltd t/a Clarity,99939429,0.50,T&S UK - Public Transport
BEIS,UKRI - BBSRC,11/04/2023,T&S UK - Public Transport,CE - Chief Executive,Clarity Travel Ltd t/a Clarity,99939429,87.00,T&S UK - Public Transport
BEIS,UKRI - BBSRC,11/04/2023,T&S UK - Public Transport,CE - Chief Executive,Clarity Travel Ltd t/a Clarity,99939429,0.50,T&S UK - Public Transport
BEIS,UKRI - BBSRC,11/04/2023,T&S UK - Public Transport,CE - Chief Executive,Clarity Travel Ltd t/a Clarity,99939429,51.10,T&S UK - Public Transport
BEIS,UKRI - BBSRC,11/04/2023,T&S UK - Public Transport,CE - Chief Executive,Clarity Travel Ltd t/a Clarity,99939429,0.50,T&S UK - Public Transport
BEIS,UKRI - BBSRC,11/04/2023,T&S UK - Public Transport,CE - Chief Executive,Clarity Travel Ltd t/a Clarity,99939429,103.30,T&S UK - Public Transport
BEIS,UKRI - BBSRC,11/04/2023,T&S UK - Public Transport,CE - IRU,Clarity Travel Ltd t/a Clarity,99939429,0.50,T&S UK - Public Transport
BEIS,UKRI - BBSRC,11/04/2023,T&S UK - Public Transport,CE - IRU,Clarity Travel Ltd t/a Clarity,99939429,198.70,T&S UK - Public Transport
BEIS,UKRI - BBSRC,11/04/2023,T&S UK - Public Transport,CIMG - Director,Clarity Travel Ltd t/a Clarity,99939429,-78.40,T&S UK - Public Transport
BEIS,UKRI - BBSRC,11/04/2023,T&S UK - Public Transport,Innovation and Skills Group,Clarity Travel Ltd t/a Clarity,99939429,0.50,T&S UK - Public Transport
BEIS,UKRI - BBSRC,11/04/2023,T&S UK - Public Transport,Innovation and Skills Group,Clarity Travel Ltd t/a Clarity,99939429,50.20,T&S UK - Public Transport
BEIS,UKRI - BBSRC,11/04/2023,T&S UK - Public Transport,Innovation and Skills Group,Clarity Travel Ltd t/a Clarity,99939429,0.50,T&S UK - Public Transport
BEIS,UKRI - BBSRC,11/04/2023,T&S UK - Public Transport,Innovation and Skills Group,Clarity Travel Ltd t/a Clarity,99939429,120.40,T&S UK - Public Transport
BEIS,UKRI - BBSRC,11/04/2023,T&S UK - Public Transport,Innovation and Skills Group,Clarity Travel Ltd t/a Clarity,99939429,0.50,T&S UK - Public Transport
BEIS,UKRI - BBSRC,11/04/2023,T&S UK - Public Transport,Innovation and Skills Group,Clarity Travel Ltd t/a Clarity,99939429,50.20,T&S UK - Public Transport
BEIS,UKRI - BBSRC,11/04/2023,T&S UK - Public Transport,Innovation and Skills Group,Clarity Travel Ltd t/a Clarity,99939429,0.50,T&S UK - Public Transport
BEIS,UKRI - BBSRC,11/04/2023,T&S UK - Public Transport,Innovation and Skills Group,Clarity Travel Ltd t/a Clarity,99939429,56.25,T&S UK - Public Transport
BEIS,UKRI - BBSRC,11/04/2023,T&S UK - Public Transport,Innovation and Skills Group,Clarity Travel Ltd t/a Clarity,99939429,0.50,T&S UK - Public Transport
BEIS,UKRI - BBSRC,11/04/2023,T&S UK - Public Transport,Innovation and Skills Group,Clarity Travel Ltd t/a Clarity,99939429,183.40,T&S UK - Public Transport
BEIS,UKRI - BBSRC,11/04/2023,T&S UK - Public Transport,Innovation and Skills Group,Clarity Travel Ltd t/a Clarity,99939429,0.50,T&S UK - Public Transport
BEIS,UKRI - BBSRC,11/04/2023,T&S UK - Public Transport,Innovation and Skills Group,Clarity Travel Ltd t/a Clarity,99939429,167.00,T&S UK - Public Transport
BEIS,UKRI - BBSRC,11/04/2023,T&S UK - Public Transport,Innovation and Skills Group,Clarity Travel Ltd t/a Clarity,99939429,0.50,T&S UK - Public Transport
BEIS,UKRI - BBSRC,11/04/2023,T&S UK - Public Transport,Innovation and Skills Group,Clarity Travel Ltd t/a Clarity,99939429,214.60,T&S UK - Public Transport
BEIS,UKRI - BBSRC,11/04/2023,T&S UK - Public Transport,Innovation and Skills Group,Clarity Travel Ltd t/a Clarity,99939429,0.50,T&S UK - Public Transport
BEIS,UKRI - BBSRC,11/04/2023,T&S UK - Public Transport,Innovation and Skills Group,Clarity Travel Ltd t/a Clarity,99939429,112.00,T&S UK - Public Transport
BEIS,UKRI - BBSRC,11/04/2023,T&S UK - Public Transport,Science Group,Clarity Travel Ltd t/a Clarity,99939429,0.50,T&S UK - Public Transport
BEIS,UKRI - BBSRC,11/04/2023,T&S UK - Public Transport,Science Group,Clarity Travel Ltd t/a Clarity,99939429,89.20,T&S UK - Public Transport
BEIS,UKRI - BBSRC,11/04/2023,T&S UK - Public Transport,Science Group,Clarity Travel Ltd t/a Clarity,99939429,0.50,T&S UK - Public Transport
BEIS,UKRI - BBSRC,11/04/2023,T&S UK - Public Transport,Science Group,Clarity Travel Ltd t/a Clarity,99939429,44.90,T&S UK - Public Transport
BEIS,UKRI - BBSRC,11/04/2023,T&S UK - Public Transport,Science Group,Clarity Travel Ltd t/a Clarity,99939429,0.50,T&S UK - Public Transport
BEIS,UKRI - BBSRC,11/04/2023,T&S UK - Public Transport,Science Group,Clarity Travel Ltd t/a Clarity,99939429,195.20,T&S UK - Public Transport
BEIS,UKRI - BBSRC,11/04/2023,T&S UK - Public Transport,Science Group,Clarity Travel Ltd t/a Clarity,99939429,0.50,T&S UK - Public Transport
BEIS,UKRI - BBSRC,11/04/2023,T&S UK - Public Transport,Science Group,Clarity Travel Ltd t/a Clarity,99939429,495.70,T&S UK - Public Transport
BEIS,UKRI - BBSRC,11/04/2023,T&S UK - Public Transport,Science Group,Clarity Travel Ltd t/a Clarity,99939429,0.50,T&S UK - Public Transport
BEIS,UKRI - BBSRC,11/04/2023,T&S UK - Public Transport,Science Group,Clarity Travel Ltd t/a Clarity,99939429,98.80,T&S UK - Public Transport
BEIS,UKRI - BBSRC,11/04/2023,T&S UK - Public Transport,Science Group,Clarity Travel Ltd t/a Clarity,99939429,0.50,T&S UK - Public Transport
BEIS,UKRI - BBSRC,11/04/2023,T&S UK - Public Transport,Science Group,Clarity Travel Ltd t/a Clarity,99939429,110.20,T&S UK - Public Transport
BEIS,UKRI - BBSRC,11/04/2023,T&S UK - Public Transport,Science Group,Clarity Travel Ltd t/a Clarity,99939429,0.50,T&S UK - Public Transport
BEIS,UKRI - BBSRC,11/04/2023,T&S UK - Public Transport,Science Group,Clarity Travel Ltd t/a Clarity,99939429,168.20,T&S UK - Public Transport
BEIS,UKRI - BBSRC,11/04/2023,T&S UK - Public Transport,Science Group,Clarity Travel Ltd t/a Clarity,99939429,0.50,T&S UK - Public Transport
BEIS,UKRI - BBSRC,11/04/2023,T&S UK - Public Transport,Science Group,Clarity Travel Ltd t/a Clarity,99939429,166.20,T&S UK - Public Transport
BEIS,UKRI - BBSRC,11/04/2023,T&S UK - Public Transport,Science Group,Clarity Travel Ltd t/a Clarity,99939429,0.50,T&S UK - Public Transport
BEIS,UKRI - BBSRC,11/04/2023,T&S UK - Public Transport,Science Group,Clarity Travel Ltd t/a Clarity,99939429,239.70,T&S UK - Public Transport
BEIS,UKRI - BBSRC,11/04/2023,T&S UK - Public Transport,Science Group,Clarity Travel Ltd t/a Clarity,99939429,0.50,T&S UK - Public Transport
BEIS,UKRI - BBSRC,11/04/2023,T&S UK - Public Transport,Science Group,Clarity Travel Ltd t/a Clarity,99939429,241.60,T&S UK - Public Transport
BEIS,UKRI - BBSRC,11/04/2023,T&S UK - Public Transport,Science Group,Clarity Travel Ltd t/a Clarity,99939429,0.50,T&S UK - Public Transport
BEIS,UKRI - BBSRC,11/04/2023,T&S UK - Public Transport,Science Group,Clarity Travel Ltd t/a Clarity,99939429,168.20,T&S UK - Public Transport
BEIS,UKRI - BBSRC,12/04/2023,Research Institutes - Capital Grants: Minor Works,Rothamsted Research,Rothamsted Research Ltd,99929359,39096.00,Research Institutes - Capital Grants: Minor Works
BEIS,UKRI - BBSRC,12/04/2023,Unspecified,Balance Sheet,HM Revenue & Customs,99936410,2361.36,PAYE Payable Salaries
BEIS,UKRI - BBSRC,12/04/2023,Unspecified,FG - Accounts & Business Planning,HM Revenue & Customs,99936411,35.00,Apprenticeship Levy
BEIS,UKRI - BBSRC,12/04/2023,Unspecified,Balance Sheet,HM Revenue & Customs,99936438,76399.93,PAYE Payable Salaries
BEIS,UKRI - BBSRC,12/04/2023,Unspecified,Balance Sheet,HM Revenue & Customs,99936439,5447.00,Student Loans
BEIS,UKRI - BBSRC,12/04/2023,Unspecified,Balance Sheet,HM Revenue & Customs,99936440,94180.62,NI Payable Salaries
BEIS,UKRI - BBSRC,12/04/2023,Unspecified,FG - Accounts & Business Planning,HM Revenue & Customs,99936441,2602.00,Apprenticeship Levy
BEIS,UKRI - BBSRC,12/04/2023,Non-staff travel and subsistance,Science Group - Delivery Function,Unspecified,99939105,1309.33,Non-staff travel and subsistance
BEIS,UKRI - BBSRC,12/04/2023,T&S UK - Subsistence,Innovation and Skills Group,Unspecified,99940293,54.15,T&S UK - Subsistence
BEIS,UKRI - BBSRC,12/04/2023,T&S UK - Subsistence,Innovation and Skills Group,Unspecified,99940294,7.50,T&S UK - Subsistence
BEIS,UKRI - BBSRC,12/04/2023,Non-staff travel and subsistance,Science Group – Admin Function,Unspecified,99940821,184.20,Non-staff travel and subsistance
BEIS,UKRI - BBSRC,12/04/2023,Unspecified,Science Group – Admin Function,Unspecified,99940822,170.00,Council & Committee Honoraria
BEIS,UKRI - BBSRC,12/04/2023,Unspecified,Science Group – Admin Function,Unspecified,99940823,230.00,Council & Committee Honoraria
BEIS,UKRI - BBSRC,12/04/2023,Unspecified,Science Group – Admin Function,Unspecified,99940824,460.00,Council & Committee Honoraria
BEIS,UKRI - BBSRC,12/04/2023,Unspecified,Science Group – Admin Function,Unspecified,99940825,340.00,Council & Committee Honoraria
BEIS,UKRI - BBSRC,12/04/2023,Unspecified,Science Group – Admin Function,Unspecified,99940826,340.00,Council & Committee Honoraria
BEIS,UKRI - BBSRC,12/04/2023,Unspecified,Science Group – Admin Function,Unspecified,99940827,340.00,Council & Committee Honoraria
BEIS,UKRI - BBSRC,12/04/2023,Unspecified,Science Group – Admin Function,Unspecified,99940828,340.00,Council & Committee Honoraria
BEIS,UKRI - BBSRC,12/04/2023,Unspecified,Science Group – Admin Function,Unspecified,99940829,170.00,Council & Committee Honoraria
BEIS,UKRI - BBSRC,12/04/2023,Unspecified,Science Group – Admin Function,Unspecified,99940830,170.00,Council & Committee Honoraria
BEIS,UKRI - BBSRC,12/04/2023,Unspecified,Science Group – Admin Function,Unspecified,99940831,340.00,Council & Committee Honoraria
BEIS,UKRI - BBSRC,12/04/2023,Unspecified,Science Group – Admin Function,Unspecified,99940832,360.00,Council & Committee Honoraria
BEIS,UKRI - BBSRC,12/04/2023,Unspecified,Science Group – Admin Function,Unspecified,99940833,340.00,Council & Committee Honoraria
BEIS,UKRI - BBSRC,12/04/2023,Unspecified,Science Group – Admin Function,Unspecified,99940834,340.00,Council & Committee Honoraria
BEIS,UKRI - BBSRC,12/04/2023,Unspecified,Science Group – Admin Function,Unspecified,99940835,340.00,Council & Committee Honoraria
BEIS,UKRI - BBSRC,12/04/2023,Unspecified,Science Group – Admin Function,Unspecified,99940836,170.00,Council & Committee Honoraria
BEIS,UKRI - BBSRC,12/04/2023,Unspecified,Science Group – Admin Function,Unspecified,99940837,340.00,Council & Committee Honoraria
BEIS,UKRI - BBSRC,12/04/2023,Non-staff travel and subsistance,Science Group – Admin Function,Unspecified,99940838,52.93,Non-staff travel and subsistance
BEIS,UKRI - BBSRC,12/04/2023,Unspecified,Science Group – Admin Function,Unspecified,99940839,340.00,Council & Committee Honoraria
BEIS,UKRI - BBSRC,12/04/2023,Unspecified,Science Group – Admin Function,Unspecified,99940840,170.00,Council & Committee Honoraria
BEIS,UKRI - BBSRC,12/04/2023,Unspecified,Science Group – Admin Function,Unspecified,99940841,170.00,Council & Committee Honoraria
BEIS,UKRI - BBSRC,12/04/2023,Unspecified,Science Group – Admin Function,Unspecified,99940842,340.00,Council & Committee Honoraria
BEIS,UKRI - BBSRC,12/04/2023,Unspecified,Science Group – Admin Function,Unspecified,99940843,460.00,Council & Committee Honoraria
BEIS,UKRI - BBSRC,12/04/2023,Unspecified,Science Group – Admin Function,Unspecified,99940844,340.00,Council & Committee Honoraria
BEIS,UKRI - BBSRC,12/04/2023,Unspecified,Science Group – Admin Function,Unspecified,99940845,340.00,Council & Committee Honoraria
BEIS,UKRI - BBSRC,12/04/2023,Unspecified,Science Group – Admin Function,Unspecified,99940846,340.00,Council & Committee Honoraria
BEIS,UKRI - BBSRC,12/04/2023,Unspecified,Science Group – Admin Function,Unspecified,99940847,170.00,Council & Committee Honoraria
BEIS,UKRI - BBSRC,12/04/2023,Unspecified,Science Group – Admin Function,Unspecified,99940848,340.00,Council & Committee Honoraria
BEIS,UKRI - BBSRC,12/04/2023,Unspecified,Science Group – Admin Function,Unspecified,99940849,460.00,Council & Committee Honoraria
BEIS,UKRI - BBSRC,12/04/2023,Non-staff travel and subsistance,Science Group - Delivery Function,Unspecified,99940850,41.86,Non-staff travel and subsistance
BEIS,UKRI - BBSRC,12/04/2023,Unspecified,Science Group – Admin Function,Unspecified,99940851,170.00,Council & Committee Honoraria
BEIS,UKRI - BBSRC,12/04/2023,Unspecified,Science Group - Delivery Function,Unspecified,99940852,170.00,Council & Committee Honoraria
BEIS,UKRI - BBSRC,12/04/2023,Unspecified,Science Group - Delivery Function,Unspecified,99940853,170.00,Council & Committee Honoraria
BEIS,UKRI - BBSRC,12/04/2023,Unspecified,Science Group – Admin Function,Unspecified,99940854,340.00,Council & Committee Honoraria
BEIS,UKRI - BBSRC,12/04/2023,Unspecified,Science Group – Admin Function,Unspecified,99940855,340.00,Council & Committee Honoraria
BEIS,UKRI - BBSRC,12/04/2023,Non-staff travel and subsistance,Science Group - Delivery Function,Unspecified,99940856,29.50,Non-staff travel and subsistance
BEIS,UKRI - BBSRC,12/04/2023,Unspecified,Science Group - Delivery Function,Unspecified,99940857,230.00,Council & Committee Honoraria
BEIS,UKRI - BBSRC,12/04/2023,Unspecified,Science Group – Admin Function,Unspecified,99940858,170.00,Council & Committee Honoraria
BEIS,UKRI - BBSRC,12/04/2023,Unspecified,Science Group – Admin Function,Unspecified,99940859,170.00,Council & Committee Honoraria
BEIS,UKRI - BBSRC,12/04/2023,Unspecified,Science Group – Admin Function,Unspecified,99940860,340.00,Council & Committee Honoraria
BEIS,UKRI - BBSRC,12/04/2023,Unspecified,Science Group – Admin Function,Unspecified,99940861,340.00,Council & Committee Honoraria
BEIS,UKRI - BBSRC,12/04/2023,Unspecified,Science Group – Admin Function,Unspecified,99940862,340.00,Council & Committee Honoraria
BEIS,UKRI - BBSRC,12/04/2023,Unspecified,Science Group – Admin Function,Unspecified,99940863,340.00,Council & Committee Honoraria
BEIS,UKRI - BBSRC,13/04/2023,Union Deductions,Balance Sheet,PCS Union,99936442,46.38,Union Deductions
BEIS,UKRI - BBSRC,13/04/2023,Voluntary Deductions,Balance Sheet,Swindon Office Sports and Social Club,99936443,42.00,Voluntary Deductions
BEIS,UKRI - BBSRC,13/04/2023,Unspecified,Balance Sheet,Unspecified,99936444,782.78,Ees Pension Deductions - JSS
BEIS,UKRI - BBSRC,13/04/2023,Unspecified,Balance Sheet,Unspecified,99936445,2372.07,Ers Pension Deductions - JSS
BEIS,UKRI - BBSRC,13/04/2023,Unspecified,Balance Sheet,Scottish Widows Life Assurance,99936446,447.16,Partnership Pension Deductions
BEIS,UKRI - BBSRC,13/04/2023,Unspecified,Balance Sheet,Scottish Widows Life Assurance,99936447,10.00,Other Pension Deductions
BEIS,UKRI - BBSRC,13/04/2023,Unspecified,Balance Sheet,Cabinet Office RM Shared Services,99936448,13.30,Ers Pension Deductions - JSS
BEIS,UKRI - BBSRC,13/04/2023,Unspecified,Balance Sheet,Cabinet Office RM Shared Services,99936449,11950.61,Ees Pension Deductions - MyCSP
BEIS,UKRI - BBSRC,13/04/2023,Unspecified,Balance Sheet,Cabinet Office RM Shared Services,99936450,59081.47,Ers Pension Deductions - MyCSP
BEIS,UKRI - BBSRC,13/04/2023,Nursery Deductions,Balance Sheet,UKRI - Engineering & Physical Sciences Research Council,99936451,931.00,Nursery Deductions
BEIS,UKRI - BBSRC,13/04/2023,Unspecified,Balance Sheet,Unspecified,99936452,298.64,Ees Pension Deductions - MRC
BEIS,UKRI - BBSRC,13/04/2023,Unspecified,Balance Sheet,Unspecified,99936453,735.12,Ers Pension Deductions - MRC
BEIS,UKRI - BBSRC,13/04/2023,Non-staff travel and subsistance,Science Group – Admin Function,Unspecified,99940476,202.10,Non-staff travel and subsistance
BEIS,UKRI - BBSRC,13/04/2023,Unspecified,Science Group – Admin Function,Unspecified,99940477,170.00,Council & Committee Honoraria
BEIS,UKRI - BBSRC,13/04/2023,Unspecified,Science Group – Admin Function,Unspecified,99940478,340.00,Council & Committee Honoraria
BEIS,UKRI - BBSRC,13/04/2023,Unspecified,Science Group – Admin Function,Unspecified,99940479,170.00,Council & Committee Honoraria
BEIS,UKRI - BBSRC,13/04/2023,Unspecified,Science Group – Admin Function,Unspecified,99940480,170.00,Council & Committee Honoraria
BEIS,UKRI - BBSRC,13/04/2023,Unspecified,Science Group – Admin Function,Unspecified,99940481,340.00,Council & Committee Honoraria
BEIS,UKRI - BBSRC,13/04/2023,Unspecified,Science Group – Admin Function,Unspecified,99940482,340.00,Council & Committee Honoraria
BEIS,UKRI - BBSRC,13/04/2023,Unspecified,Science Group – Admin Function,Unspecified,99940483,340.00,Council & Committee Honoraria
BEIS,UKRI - BBSRC,13/04/2023,Unspecified,Science Group – Admin Function,Unspecified,99940484,340.00,Council & Committee Honoraria
BEIS,UKRI - BBSRC,13/04/2023,Unspecified,Science Group – Admin Function,Unspecified,99940485,340.00,Council & Committee Honoraria
BEIS,UKRI - BBSRC,13/04/2023,Unspecified,Science Group – Admin Function,Unspecified,99940486,170.00,Council & Committee Honoraria
BEIS,UKRI - BBSRC,13/04/2023,Unspecified,Science Group – Admin Function,Unspecified,99940487,340.00,Council & Committee Honoraria
BEIS,UKRI - BBSRC,13/04/2023,Unspecified,Science Group – Admin Function,Unspecified,99940488,340.00,Council & Committee Honoraria
BEIS,UKRI - BBSRC,13/04/2023,Unspecified,Science Group – Admin Function,Unspecified,99940489,340.00,Council & Committee Honoraria
BEIS,UKRI - BBSRC,13/04/2023,Unspecified,Science Group – Admin Function,Unspecified,99940490,340.00,Council & Committee Honoraria
BEIS,UKRI - BBSRC,13/04/2023,Unspecified,Science Group – Admin Function,Unspecified,99940491,170.00,Council & Committee Honoraria
BEIS,UKRI - BBSRC,13/04/2023,Unspecified,Science Group - Delivery Function,Unspecified,99940492,170.00,Council & Committee Honoraria
BEIS,UKRI - BBSRC,13/04/2023,Non-staff travel and subsistance,Science Group – Admin Function,Unspecified,99940493,249.14,Non-staff travel and subsistance
BEIS,UKRI - BBSRC,13/04/2023,Unspecified,Science Group – Admin Function,Unspecified,99940494,170.00,Council & Committee Honoraria
BEIS,UKRI - BBSRC,13/04/2023,Unspecified,Science Group – Admin Function,Unspecified,99940495,340.00,Council & Committee Honoraria
BEIS,UKRI - BBSRC,13/04/2023,Unspecified,Science Group – Admin Function,Unspecified,99940496,340.00,Council & Committee Honoraria
BEIS,UKRI - BBSRC,13/04/2023,T&S UK - Public Transport,Science Group,Unspecified,99940681,11.20,T&S UK - Public Transport
BEIS,UKRI - BBSRC,14/04/2023,Unspecified,Science Group – Admin Function,Unspecified,99942096,230.00,Council & Committee Honoraria
BEIS,UKRI - BBSRC,14/04/2023,Unspecified,Science Group – Admin Function,Unspecified,99942097,340.00,Council & Committee Honoraria
BEIS,UKRI - BBSRC,14/04/2023,Unspecified,Science Group – Admin Function,Unspecified,99942098,340.00,Council & Committee Honoraria
BEIS,UKRI - BBSRC,14/04/2023,Unspecified,Science Group – Admin Function,Unspecified,99942099,170.00,Council & Committee Honoraria
BEIS,UKRI - BBSRC,14/04/2023,Unspecified,Science Group – Admin Function,Unspecified,99942100,340.00,Council & Committee Honoraria
BEIS,UKRI - BBSRC,14/04/2023,Unspecified,Science Group – Admin Function,Unspecified,99942101,170.00,Council & Committee Honoraria
BEIS,UKRI - BBSRC,14/04/2023,Unspecified,Science Group – Admin Function,Unspecified,99942102,340.00,Council & Committee Honoraria
BEIS,UKRI - BBSRC,14/04/2023,Unspecified,Science Group – Admin Function,Unspecified,99942103,340.00,Council & Committee Honoraria
BEIS,UKRI - BBSRC,14/04/2023,Unspecified,Science Group – Admin Function,Unspecified,99942104,170.00,Council & Committee Honoraria
BEIS,UKRI - BBSRC,14/04/2023,Unspecified,Science Group – Admin Function,Unspecified,99942105,170.00,Council & Committee Honoraria
BEIS,UKRI - BBSRC,14/04/2023,Unspecified,Science Group – Admin Function,Unspecified,99942106,340.00,Council & Committee Honoraria
BEIS,UKRI - BBSRC,14/04/2023,Unspecified,Science Group – Admin Function,Unspecified,99942107,170.00,Council & Committee Honoraria
BEIS,UKRI - BBSRC,14/04/2023,Unspecified,Science Group – Admin Function,Unspecified,99942108,340.00,Council & Committee Honoraria
BEIS,UKRI - BBSRC,14/04/2023,Unspecified,Science Group – Admin Function,Unspecified,99942109,170.00,Council & Committee Honoraria
BEIS,UKRI - BBSRC,14/04/2023,Unspecified,Science Group – Admin Function,Unspecified,99942110,170.00,Council & Committee Honoraria
BEIS,UKRI - BBSRC,14/04/2023,Unspecified,Science Group – Admin Function,Unspecified,99942111,340.00,Council & Committee Honoraria
BEIS,UKRI - BBSRC,14/04/2023,Unspecified,Science Group – Admin Function,Unspecified,99942112,340.00,Council & Committee Honoraria
BEIS,UKRI - BBSRC,14/04/2023,Unspecified,Science Group – Admin Function,Unspecified,99942113,340.00,Council & Committee Honoraria
BEIS,UKRI - BBSRC,14/04/2023,Unspecified,Science Group – Admin Function,Unspecified,99942114,340.00,Council & Committee Honoraria
BEIS,UKRI - BBSRC,14/04/2023,Unspecified,Science Group – Admin Function,Unspecified,99942115,340.00,Council & Committee Honoraria
BEIS,UKRI - BBSRC,14/04/2023,Unspecified,Science Group – Admin Function,Unspecified,99942116,340.00,Council & Committee Honoraria
BEIS,UKRI - BBSRC,14/04/2023,Unspecified,Science Group – Admin Function,Unspecified,99942117,340.00,Council & Committee Honoraria
BEIS,UKRI - BBSRC,14/04/2023,Unspecified,Science Group – Admin Function,Unspecified,99942118,170.00,Council & Committee Honoraria
BEIS,UKRI - BBSRC,14/04/2023,Unspecified,Science Group – Admin Function,Unspecified,99942119,170.00,Council & Committee Honoraria
BEIS,UKRI - BBSRC,14/04/2023,Unspecified,Science Group – Admin Function,Unspecified,99942120,340.00,Council & Committee Honoraria
BEIS,UKRI - BBSRC,14/04/2023,Unspecified,Science Group – Admin Function,Unspecified,99942121,170.00,Council & Committee Honoraria
BEIS,UKRI - BBSRC,14/04/2023,Unspecified,Science Group – Admin Function,Unspecified,99942122,340.00,Council & Committee Honoraria
BEIS,UKRI - BBSRC,14/04/2023,Unspecified,Science Group – Admin Function,Unspecified,99942123,340.00,Council & Committee Honoraria
BEIS,UKRI - BBSRC,14/04/2023,Unspecified,Science Group – Admin Function,Unspecified,99942124,340.00,Council & Committee Honoraria
BEIS,UKRI - BBSRC,14/04/2023,Unspecified,Science Group – Admin Function,Unspecified,99942125,230.00,Council & Committee Honoraria
BEIS,UKRI - BBSRC,14/04/2023,Unspecified,Science Group – Admin Function,Unspecified,99942126,170.00,Council & Committee Honoraria
BEIS,UKRI - BBSRC,14/04/2023,Unspecified,Science Group – Admin Function,Unspecified,99942127,170.00,Council & Committee Honoraria
BEIS,UKRI - BBSRC,14/04/2023,Unspecified,FG - Estates,Womble Bond Dickinson LLP,99942236,120.60,Legal & Professional Services
BEIS,UKRI - BBSRC,14/04/2023,T&S UK - Parking Tolls Congestion Charges,Science Group,Unspecified,99942276,24.80,T&S UK - Parking Tolls Congestion Charges
BEIS,UKRI - BBSRC,14/04/2023,T&S UK - Subsistence,Science Group,Unspecified,99942276,27.39,T&S UK - Subsistence
BEIS,UKRI - BBSRC,17/04/2023,Unspecified,Science Group – Admin Function,Unspecified,99943255,340.00,Council & Committee Honoraria
BEIS,UKRI - BBSRC,17/04/2023,Conferences & Seminars,Innovation and Skills Group CDSU,Calder Conference Ltd,99943260,553.00,Conferences & Seminars
BEIS,UKRI - BBSRC,17/04/2023,Research Institutes - Capital Grants: Minor Works,World Class Labs,Rothamsted Research Ltd,99943468,9466.79,Research Institutes - Capital Grants: Minor Works
BEIS,UKRI - BBSRC,18/04/2023,Research Institutes - Capital Grants: Minor Works,World Class Labs,Quadram Institute Bioscience,99930678,1117808.31,Research Institutes - Capital Grants: Minor Works
BEIS,UKRI - BBSRC,18/04/2023,Research Institutes - Capital Grants: Minor Works,World Class Labs,Earlham Institute,99936909,443904.14,Research Institutes - Capital Grants: Minor Works
BEIS,UKRI - BBSRC,18/04/2023,Research Institutes - Capital Grants: Equipment,World Class Labs,John Innes Centre,99938943,62337.00,Research Institutes - Capital Grants: Equipment
BEIS,UKRI - BBSRC,18/04/2023,Research Institutes - Capital Grants: Equipment,World Class Labs,Earlham Institute,99938950,14663.00,Research Institutes - Capital Grants: Equipment
BEIS,UKRI - BBSRC,18/04/2023,Research Institutes - Capital Grants: Equipment,World Class Labs,Earlham Institute,99938960,31474.62,Research Institutes - Capital Grants: Equipment
BEIS,UKRI - BBSRC,18/04/2023,Research Institutes - Capital Grants: Equipment,World Class Labs,Quadram Institute Bioscience,99938962,26587.00,Research Institutes - Capital Grants: Equipment
BEIS,UKRI - BBSRC,18/04/2023,Research Institutes - Competitive Strategic Grant,Research: Strategic National Capability,John Innes Centre,99939033,1214967.00,Research Institutes - Competitive Strategic Grant
BEIS,UKRI - BBSRC,18/04/2023,Research Institutes - Competitive Strategic Grant,Research: Strategic National Capability,Quadram Institute Bioscience,99939034,904637.00,Research Institutes - Competitive Strategic Grant
BEIS,UKRI - BBSRC,18/04/2023,Research Institutes - Competitive Strategic Grant,Research: Strategic National Capability,Earlham Institute,99939289,501863.00,Research Institutes - Competitive Strategic Grant
BEIS,UKRI - BBSRC,18/04/2023,Research Institutes - Competitive Strategic Grant,Research: Strategic National Capability,The Pirbright Institute,99940946,1463116.66,Research Institutes - Competitive Strategic Grant
BEIS,UKRI - BBSRC,18/04/2023,Research Institutes - Competitive Strategic Grant,Research: Strategic National Capability,Rothamsted Research Ltd,99940947,963516.59,Research Institutes - Competitive Strategic Grant
BEIS,UKRI - BBSRC,18/04/2023,Research Institutes - Capital Grants: Equipment,World Class Labs,Babraham Institute,99942048,31166.00,Research Institutes - Capital Grants: Equipment
BEIS,UKRI - BBSRC,18/04/2023,Research Institutes - Competitive Strategic Grant,Research: Strategic National Capability,Babraham Institute,99942223,966766.00,Research Institutes - Competitive Strategic Grant
BEIS,UKRI - BBSRC,18/04/2023,Research Institutes - Capital Grants: Equipment,World Class Labs,Aberystwyth University,99942514,6916.67,Research Institutes - Capital Grants: Equipment
BEIS,UKRI - BBSRC,18/04/2023,Research Institutes - Competitive Strategic Grant,Research: Strategic National Capability,Aberystwyth University,99942515,156866.67,Research Institutes - Competitive Strategic Grant
BEIS,UKRI - BBSRC,18/04/2023,Conferences & Seminars,Innovation and Skills Group,Rothamsted Enterprises Ltd,99943252,756.00,Conferences & Seminars
BEIS,UKRI - BBSRC,18/04/2023,Research Institutes - Capital Grants: Equipment,World Class Labs,Rothamsted Research Ltd,99943398,51333.33,Research Institutes - Capital Grants: Equipment
BEIS,UKRI - BBSRC,18/04/2023,Research Grant Expenditure,SPF W1 EMBL EBI,EMBL (European Molecular Biology Laboratory),99943820,10891.42,Research Grant Expenditure
BEIS,UKRI - BBSRC,18/04/2023,Research Grant Expenditure,SPF W1 EMBL EBI,EMBL (European Molecular Biology Laboratory),99943828,163744.82,Research Grant Expenditure
BEIS,UKRI - BBSRC,18/04/2023,T&S UK - Public Transport,Innovation and Skills Group,Unspecified,99944043,123.48,T&S UK - Public Transport
BEIS,UKRI - BBSRC,19/04/2023,Research Institutes - Capital Grants: Minor Works,World Class Labs,Rothamsted Research Ltd,99942973,43867.68,Research Institutes - Capital Grants: Minor Works
BEIS,UKRI - BBSRC,19/04/2023,Research Grant Expenditure,Research: Strategic,Rothamsted Research Ltd,99942975,3740.40,Research Grant Expenditure
BEIS,UKRI - BBSRC,19/04/2023,Non-staff travel and subsistance,Science Group – Admin Function,Unspecified,99944271,52.93,Non-staff travel and subsistance
BEIS,UKRI - BBSRC,19/04/2023,Unspecified,Science Group – Admin Function,Unspecified,99944272,230.00,Council & Committee Honoraria
BEIS,UKRI - BBSRC,19/04/2023,Unspecified,Science Group – Admin Function,Unspecified,99944273,230.00,Council & Committee Honoraria
BEIS,UKRI - BBSRC,19/04/2023,Unspecified,Science Group – Admin Function,Unspecified,99944274,340.00,Council & Committee Honoraria
BEIS,UKRI - BBSRC,19/04/2023,Unspecified,Science Group – Admin Function,Unspecified,99944275,340.00,Council & Committee Honoraria
BEIS,UKRI - BBSRC,19/04/2023,Unspecified,Science Group – Admin Function,Unspecified,99944276,340.00,Council & Committee Honoraria
BEIS,UKRI - BBSRC,19/04/2023,Unspecified,Science Group – Admin Function,Unspecified,99944277,340.00,Council & Committee Honoraria
BEIS,UKRI - BBSRC,19/04/2023,Unspecified,Science Group – Admin Function,Unspecified,99944278,340.00,Council & Committee Honoraria
BEIS,UKRI - BBSRC,19/04/2023,Unspecified,Science Group – Admin Function,Unspecified,99944279,340.00,Council & Committee Honoraria
BEIS,UKRI - BBSRC,19/04/2023,Unspecified,Science Group – Admin Function,Unspecified,99944280,340.00,Council & Committee Honoraria
BEIS,UKRI - BBSRC,19/04/2023,Unspecified,Science Group – Admin Function,Unspecified,99944281,340.00,Council & Committee Honoraria
BEIS,UKRI - BBSRC,19/04/2023,Unspecified,Science Group – Admin Function,Unspecified,99944282,170.00,Council & Committee Honoraria
BEIS,UKRI - BBSRC,19/04/2023,Unspecified,Science Group – Admin Function,Unspecified,99944283,340.00,Council & Committee Honoraria
BEIS,UKRI - BBSRC,19/04/2023,Non-staff travel and subsistance,Science Group – Admin Function,Unspecified,99944284,292.94,Non-staff travel and subsistance
BEIS,UKRI - BBSRC,19/04/2023,Unspecified,Science Group – Admin Function,Unspecified,99944285,170.00,Council & Committee Honoraria
BEIS,UKRI - BBSRC,19/04/2023,Unspecified,Science Group – Admin Function,Unspecified,99944286,170.00,Council & Committee Honoraria
BEIS,UKRI - BBSRC,19/04/2023,Unspecified,Science Group – Admin Function,Unspecified,99944287,170.00,Council & Committee Honoraria
BEIS,UKRI - BBSRC,19/04/2023,Unspecified,Science Group – Admin Function,Unspecified,99944288,340.00,Council & Committee Honoraria
BEIS,UKRI - BBSRC,19/04/2023,Unspecified,Science Group – Admin Function,Unspecified,99944289,170.00,Council & Committee Honoraria
BEIS,UKRI - BBSRC,19/04/2023,Unspecified,Science Group – Admin Function,Unspecified,99944290,170.00,Council & Committee Honoraria
BEIS,UKRI - BBSRC,19/04/2023,Research Grant Expenditure,SPF W1 EMBL EBI,EMBL (European Molecular Biology Laboratory),99944345,12996.47,Research Grant Expenditure
BEIS,UKRI - BBSRC,19/04/2023,Research Grant Expenditure,SPF W1 EMBL EBI,EMBL (European Molecular Biology Laboratory),99944398,600.00,Research Grant Expenditure
BEIS,UKRI - BBSRC,19/04/2023,Unspecified,Science Group – Admin Function,Unspecified,99945025,340.00,Council & Committee Honoraria
BEIS,UKRI - BBSRC,19/04/2023,Unspecified,Science Group – Admin Function,Unspecified,99945026,340.00,Council & Committee Honoraria
BEIS,UKRI - BBSRC,19/04/2023,Unspecified,Science Group – Admin Function,Unspecified,99945027,340.00,Council & Committee Honoraria
BEIS,UKRI - BBSRC,19/04/2023,Unspecified,Science Group – Admin Function,Unspecified,99945028,340.00,Council & Committee Honoraria
BEIS,UKRI - BBSRC,19/04/2023,Unspecified,Science Group – Admin Function,Unspecified,99945029,340.00,Council & Committee Honoraria
BEIS,UKRI - BBSRC,19/04/2023,Unspecified,Science Group – Admin Function,Unspecified,99945030,340.00,Council & Committee Honoraria
BEIS,UKRI - BBSRC,19/04/2023,Unspecified,Science Group – Admin Function,Unspecified,99945031,170.00,Council & Committee Honoraria
BEIS,UKRI - BBSRC,19/04/2023,Unspecified,Science Group – Admin Function,Unspecified,99945032,170.00,Council & Committee Honoraria
BEIS,UKRI - BBSRC,19/04/2023,Unspecified,Science Group – Admin Function,Unspecified,99945033,340.00,Council & Committee Honoraria
BEIS,UKRI - BBSRC,19/04/2023,Unspecified,Science Group – Admin Function,Unspecified,99945034,170.00,Council & Committee Honoraria
BEIS,UKRI - BBSRC,19/04/2023,Unspecified,Science Group – Admin Function,Unspecified,99945035,170.00,Council & Committee Honoraria
BEIS,UKRI - BBSRC,19/04/2023,Unspecified,Science Group – Admin Function,Unspecified,99945036,340.00,Council & Committee Honoraria
BEIS,UKRI - BBSRC,19/04/2023,Unspecified,Science Group – Admin Function,Unspecified,99945037,340.00,Council & Committee Honoraria
BEIS,UKRI - BBSRC,19/04/2023,Health & Safety (inc. Medicals & Opticians),Science Group,Unspecified,99945275,100.00,Health & Safety (inc. Medicals & Opticians)
BEIS,UKRI - BBSRC,20/04/2023,Conferences & Seminars,Science Group,Calder Conference Ltd,99944567,2428.70,Conferences & Seminars
BEIS,UKRI - BBSRC,20/04/2023,T&S Overseas - Accommodation,CE - Chief Executive,Clarity Travel Ltd t/a Clarity,99944578,247.20,T&S Overseas - Accommodation
BEIS,UKRI - BBSRC,20/04/2023,T&S Overseas - Accommodation,CE - IRU,Clarity Travel Ltd t/a Clarity,99944578,355.18,T&S Overseas - Accommodation
BEIS,UKRI - BBSRC,20/04/2023,T&S Overseas - Accommodation,CE - IRU,Clarity Travel Ltd t/a Clarity,99944578,105.28,T&S Overseas - Accommodation
BEIS,UKRI - BBSRC,20/04/2023,T&S Overseas - Accommodation,Science Group – Admin Function,Clarity Travel Ltd t/a Clarity,99944578,519.66,T&S Overseas - Accommodation
BEIS,UKRI - BBSRC,20/04/2023,T&S Overseas - Flights,CE - Chief Executive,Clarity Travel Ltd t/a Clarity,99944578,1.00,T&S Overseas - Flights
BEIS,UKRI - BBSRC,20/04/2023,T&S Overseas - Flights,CE - Chief Executive,Clarity Travel Ltd t/a Clarity,99944578,159.00,T&S Overseas - Flights
BEIS,UKRI - BBSRC,20/04/2023,T&S Overseas - Flights,CE - IRU,Clarity Travel Ltd t/a Clarity,99944578,1.00,T&S Overseas - Flights
BEIS,UKRI - BBSRC,20/04/2023,T&S Overseas - Flights,CE - IRU,Clarity Travel Ltd t/a Clarity,99944578,159.00,T&S Overseas - Flights
BEIS,UKRI - BBSRC,20/04/2023,T&S Overseas - Flights,CE - IRU,Clarity Travel Ltd t/a Clarity,99944578,1.00,T&S Overseas - Flights
BEIS,UKRI - BBSRC,20/04/2023,T&S Overseas - Flights,CE - IRU,Clarity Travel Ltd t/a Clarity,99944578,134.00,T&S Overseas - Flights
BEIS,UKRI - BBSRC,20/04/2023,T&S Overseas - Flights,CE - IRU,Clarity Travel Ltd t/a Clarity,99944578,2.00,T&S Overseas - Flights
BEIS,UKRI - BBSRC,20/04/2023,T&S Overseas - Flights,CE - IRU,Clarity Travel Ltd t/a Clarity,99944578,2312.11,T&S Overseas - Flights
BEIS,UKRI - BBSRC,20/04/2023,T&S Overseas - Flights,CE - IRU,Clarity Travel Ltd t/a Clarity,99944578,1.00,T&S Overseas - Flights
BEIS,UKRI - BBSRC,20/04/2023,T&S Overseas - Flights,CE - IRU,Clarity Travel Ltd t/a Clarity,99944578,301.27,T&S Overseas - Flights
BEIS,UKRI - BBSRC,20/04/2023,T&S UK - Accommodation,CE - Chief Executive,Clarity Travel Ltd t/a Clarity,99944578,148.75,T&S UK - Accommodation
BEIS,UKRI - BBSRC,20/04/2023,T&S UK - Accommodation,CE - Chief Executive,Clarity Travel Ltd t/a Clarity,99944578,29.76,T&S UK - Accommodation
BEIS,UKRI - BBSRC,20/04/2023,T&S UK - Accommodation,Science Group,Clarity Travel Ltd t/a Clarity,99944578,88.15,T&S UK - Accommodation
BEIS,UKRI - BBSRC,20/04/2023,T&S UK - Accommodation,Science Group,Clarity Travel Ltd t/a Clarity,99944578,39.57,T&S UK - Accommodation
BEIS,UKRI - BBSRC,20/04/2023,T&S UK - Accommodation,Science Group,Clarity Travel Ltd t/a Clarity,99944578,25.54,T&S UK - Accommodation
BEIS,UKRI - BBSRC,20/04/2023,T&S UK - Flights,Innovation and Skills Group,Clarity Travel Ltd t/a Clarity,99944578,1.00,T&S UK - Flights
BEIS,UKRI - BBSRC,20/04/2023,T&S UK - Flights,Innovation and Skills Group,Clarity Travel Ltd t/a Clarity,99944578,235.98,T&S UK - Flights
BEIS,UKRI - BBSRC,20/04/2023,T&S UK - Flights,Innovation and Skills Group,Clarity Travel Ltd t/a Clarity,99944578,1.00,T&S UK - Flights
BEIS,UKRI - BBSRC,20/04/2023,T&S UK - Flights,Innovation and Skills Group,Clarity Travel Ltd t/a Clarity,99944578,69.48,T&S UK - Flights
BEIS,UKRI - BBSRC,20/04/2023,T&S UK - Public Transport,CE - CPS,Clarity Travel Ltd t/a Clarity,99944578,0.50,T&S UK - Public Transport
BEIS,UKRI - BBSRC,20/04/2023,T&S UK - Public Transport,CE - CPS,Clarity Travel Ltd t/a Clarity,99944578,168.20,T&S UK - Public Transport
BEIS,UKRI - BBSRC,20/04/2023,T&S UK - Public Transport,CE - CPS,Clarity Travel Ltd t/a Clarity,99944578,1.00,T&S UK - Public Transport
BEIS,UKRI - BBSRC,20/04/2023,T&S UK - Public Transport,CE - CPS,Clarity Travel Ltd t/a Clarity,99944578,36.50,T&S UK - Public Transport
BEIS,UKRI - BBSRC,20/04/2023,T&S UK - Public Transport,CE - CPS,Clarity Travel Ltd t/a Clarity,99944578,83.10,T&S UK - Public Transport
BEIS,UKRI - BBSRC,20/04/2023,T&S UK - Public Transport,CE - CPS,Clarity Travel Ltd t/a Clarity,99944578,0.50,T&S UK - Public Transport
BEIS,UKRI - BBSRC,20/04/2023,T&S UK - Public Transport,CE - CPS,Clarity Travel Ltd t/a Clarity,99944578,166.20,T&S UK - Public Transport
BEIS,UKRI - BBSRC,20/04/2023,T&S UK - Public Transport,CE - Chief Executive,Clarity Travel Ltd t/a Clarity,99944578,1.00,T&S UK - Public Transport
BEIS,UKRI - BBSRC,20/04/2023,T&S UK - Public Transport,CE - Chief Executive,Clarity Travel Ltd t/a Clarity,99944578,48.70,T&S UK - Public Transport
BEIS,UKRI - BBSRC,20/04/2023,T&S UK - Public Transport,CE - Chief Executive,Clarity Travel Ltd t/a Clarity,99944578,83.10,T&S UK - Public Transport
BEIS,UKRI - BBSRC,20/04/2023,T&S UK - Public Transport,CE - Chief Executive,Clarity Travel Ltd t/a Clarity,99944578,0.50,T&S UK - Public Transport
BEIS,UKRI - BBSRC,20/04/2023,T&S UK - Public Transport,CE - Chief Executive,Clarity Travel Ltd t/a Clarity,99944578,31.60,T&S UK - Public Transport
BEIS,UKRI - BBSRC,20/04/2023,T&S UK - Public Transport,CE - Chief Executive,Clarity Travel Ltd t/a Clarity,99944578,0.50,T&S UK - Public Transport
BEIS,UKRI - BBSRC,20/04/2023,T&S UK - Public Transport,CE - Chief Executive,Clarity Travel Ltd t/a Clarity,99944578,41.10,T&S UK - Public Transport
BEIS,UKRI - BBSRC,20/04/2023,T&S UK - Public Transport,CE - Chief Executive,Clarity Travel Ltd t/a Clarity,99944578,0.50,T&S UK - Public Transport
BEIS,UKRI - BBSRC,20/04/2023,T&S UK - Public Transport,CE - Chief Executive,Clarity Travel Ltd t/a Clarity,99944578,101.10,T&S UK - Public Transport
BEIS,UKRI - BBSRC,20/04/2023,T&S UK - Public Transport,CE - Chief Executive,Clarity Travel Ltd t/a Clarity,99944578,0.50,T&S UK - Public Transport
BEIS,UKRI - BBSRC,20/04/2023,T&S UK - Public Transport,CE - Chief Executive,Clarity Travel Ltd t/a Clarity,99944578,68.50,T&S UK - Public Transport
BEIS,UKRI - BBSRC,20/04/2023,T&S UK - Public Transport,CE - Chief Executive,Clarity Travel Ltd t/a Clarity,99944578,1.00,T&S UK - Public Transport
BEIS,UKRI - BBSRC,20/04/2023,T&S UK - Public Transport,CE - Chief Executive,Clarity Travel Ltd t/a Clarity,99944578,77.20,T&S UK - Public Transport
BEIS,UKRI - BBSRC,20/04/2023,T&S UK - Public Transport,CE - Chief Executive,Clarity Travel Ltd t/a Clarity,99944578,48.30,T&S UK - Public Transport
BEIS,UKRI - BBSRC,20/04/2023,T&S UK - Public Transport,CE - Chief Executive,Clarity Travel Ltd t/a Clarity,99944578,0.50,T&S UK - Public Transport
BEIS,UKRI - BBSRC,20/04/2023,T&S UK - Public Transport,CE - Chief Executive,Clarity Travel Ltd t/a Clarity,99944578,83.10,T&S UK - Public Transport
BEIS,UKRI - BBSRC,20/04/2023,T&S UK - Public Transport,CE - Chief Executive,Clarity Travel Ltd t/a Clarity,99944578,0.50,T&S UK - Public Transport
BEIS,UKRI - BBSRC,20/04/2023,T&S UK - Public Transport,CE - Chief Executive,Clarity Travel Ltd t/a Clarity,99944578,83.10,T&S UK - Public Transport
BEIS,UKRI - BBSRC,20/04/2023,T&S UK - Public Transport,CE - Chief Executive,Clarity Travel Ltd t/a Clarity,99944578,0.50,T&S UK - Public Transport
BEIS,UKRI - BBSRC,20/04/2023,T&S UK - Public Transport,CE - Chief Executive,Clarity Travel Ltd t/a Clarity,99944578,55.20,T&S UK - Public Transport
BEIS,UKRI - BBSRC,20/04/2023,T&S UK - Public Transport,CE - Chief Executive,Clarity Travel Ltd t/a Clarity,99944578,0.50,T&S UK - Public Transport
BEIS,UKRI - BBSRC,20/04/2023,T&S UK - Public Transport,CE - Chief Executive,Clarity Travel Ltd t/a Clarity,99944578,51.10,T&S UK - Public Transport
BEIS,UKRI - BBSRC,20/04/2023,T&S UK - Public Transport,CE - Chief Executive,Clarity Travel Ltd t/a Clarity,99944578,0.50,T&S UK - Public Transport
BEIS,UKRI - BBSRC,20/04/2023,T&S UK - Public Transport,CE - Chief Executive,Clarity Travel Ltd t/a Clarity,99944578,48.70,T&S UK - Public Transport
BEIS,UKRI - BBSRC,20/04/2023,T&S UK - Public Transport,CE - Chief Executive,Clarity Travel Ltd t/a Clarity,99944578,0.50,T&S UK - Public Transport
BEIS,UKRI - BBSRC,20/04/2023,T&S UK - Public Transport,CE - Chief Executive,Clarity Travel Ltd t/a Clarity,99944578,48.70,T&S UK - Public Transport
BEIS,UKRI - BBSRC,20/04/2023,T&S UK - Public Transport,CE - Chief Executive,Clarity Travel Ltd t/a Clarity,99944578,0.50,T&S UK - Public Transport
BEIS,UKRI - BBSRC,20/04/2023,T&S UK - Public Transport,CE - Chief Executive,Clarity Travel Ltd t/a Clarity,99944578,64.00,T&S UK - Public Transport
BEIS,UKRI - BBSRC,20/04/2023,T&S UK - Public Transport,CE - Chief Executive,Clarity Travel Ltd t/a Clarity,99944578,0.50,T&S UK - Public Transport
BEIS,UKRI - BBSRC,20/04/2023,T&S UK - Public Transport,CE - Chief Executive,Clarity Travel Ltd t/a Clarity,99944578,36.70,T&S UK - Public Transport
BEIS,UKRI - BBSRC,20/04/2023,T&S UK - Public Transport,CE - Chief Executive,Clarity Travel Ltd t/a Clarity,99944578,0.50,T&S UK - Public Transport
BEIS,UKRI - BBSRC,20/04/2023,T&S UK - Public Transport,CE - Chief Executive,Clarity Travel Ltd t/a Clarity,99944578,43.00,T&S UK - Public Transport
BEIS,UKRI - BBSRC,20/04/2023,T&S UK - Public Transport,CE - Chief Executive,Clarity Travel Ltd t/a Clarity,99944578,0.50,T&S UK - Public Transport
BEIS,UKRI - BBSRC,20/04/2023,T&S UK - Public Transport,CE - Chief Executive,Clarity Travel Ltd t/a Clarity,99944578,86.50,T&S UK - Public Transport
BEIS,UKRI - BBSRC,20/04/2023,T&S UK - Public Transport,CE - IRU,Clarity Travel Ltd t/a Clarity,99944578,0.50,T&S UK - Public Transport
BEIS,UKRI - BBSRC,20/04/2023,T&S UK - Public Transport,CE - IRU,Clarity Travel Ltd t/a Clarity,99944578,69.10,T&S UK - Public Transport
BEIS,UKRI - BBSRC,20/04/2023,T&S UK - Public Transport,CE - IRU,Clarity Travel Ltd t/a Clarity,99944578,0.50,T&S UK - Public Transport
BEIS,UKRI - BBSRC,20/04/2023,T&S UK - Public Transport,CE - IRU,Clarity Travel Ltd t/a Clarity,99944578,63.10,T&S UK - Public Transport
BEIS,UKRI - BBSRC,20/04/2023,T&S UK - Public Transport,CE - IRU,Clarity Travel Ltd t/a Clarity,99944578,0.50,T&S UK - Public Transport
BEIS,UKRI - BBSRC,20/04/2023,T&S UK - Public Transport,CE - IRU,Clarity Travel Ltd t/a Clarity,99944578,89.50,T&S UK - Public Transport
BEIS,UKRI - BBSRC,20/04/2023,T&S UK - Public Transport,CE - IRU,Clarity Travel Ltd t/a Clarity,99944578,0.50,T&S UK - Public Transport
BEIS,UKRI - BBSRC,20/04/2023,T&S UK - Public Transport,CE - IRU,Clarity Travel Ltd t/a Clarity,99944578,49.40,T&S UK - Public Transport
BEIS,UKRI - BBSRC,20/04/2023,T&S UK - Public Transport,CE - IRU,Clarity Travel Ltd t/a Clarity,99944578,0.50,T&S UK - Public Transport
BEIS,UKRI - BBSRC,20/04/2023,T&S UK - Public Transport,CE - IRU,Clarity Travel Ltd t/a Clarity,99944578,83.80,T&S UK - Public Transport
BEIS,UKRI - BBSRC,20/04/2023,T&S UK - Public Transport,CE - IRU,Clarity Travel Ltd t/a Clarity,99944578,0.50,T&S UK - Public Transport
BEIS,UKRI - BBSRC,20/04/2023,T&S UK - Public Transport,CE - IRU,Clarity Travel Ltd t/a Clarity,99944578,99.00,T&S UK - Public Transport
BEIS,UKRI - BBSRC,20/04/2023,T&S UK - Public Transport,CIMG - Director,Clarity Travel Ltd t/a Clarity,99944578,0.50,T&S UK - Public Transport
BEIS,UKRI - BBSRC,20/04/2023,T&S UK - Public Transport,CIMG - Director,Clarity Travel Ltd t/a Clarity,99944578,137.80,T&S UK - Public Transport
BEIS,UKRI - BBSRC,20/04/2023,T&S UK - Public Transport,CIMG - Director,Clarity Travel Ltd t/a Clarity,99944578,0.50,T&S UK - Public Transport
BEIS,UKRI - BBSRC,20/04/2023,T&S UK - Public Transport,CIMG - Director,Clarity Travel Ltd t/a Clarity,99944578,104.70,T&S UK - Public Transport
BEIS,UKRI - BBSRC,20/04/2023,T&S UK - Public Transport,CIMG - Director,Clarity Travel Ltd t/a Clarity,99944578,1.00,T&S UK - Public Transport
BEIS,UKRI - BBSRC,20/04/2023,T&S UK - Public Transport,CIMG - Director,Clarity Travel Ltd t/a Clarity,99944578,83.50,T&S UK - Public Transport
BEIS,UKRI - BBSRC,20/04/2023,T&S UK - Public Transport,CIMG - Director,Clarity Travel Ltd t/a Clarity,99944578,49.10,T&S UK - Public Transport
BEIS,UKRI - BBSRC,20/04/2023,T&S UK - Public Transport,CIMG - Director,Clarity Travel Ltd t/a Clarity,99944578,1.00,T&S UK - Public Transport
BEIS,UKRI - BBSRC,20/04/2023,T&S UK - Public Transport,CIMG - Director,Clarity Travel Ltd t/a Clarity,99944578,83.50,T&S UK - Public Transport
BEIS,UKRI - BBSRC,20/04/2023,T&S UK - Public Transport,CIMG - Director,Clarity Travel Ltd t/a Clarity,99944578,49.10,T&S UK - Public Transport
BEIS,UKRI - BBSRC,20/04/2023,T&S UK - Public Transport,CIMG - Director,Clarity Travel Ltd t/a Clarity,99944578,0.50,T&S UK - Public Transport
BEIS,UKRI - BBSRC,20/04/2023,T&S UK - Public Transport,CIMG - Director,Clarity Travel Ltd t/a Clarity,99944578,109.65,T&S UK - Public Transport
BEIS,UKRI - BBSRC,20/04/2023,T&S UK - Public Transport,CIMG - Director,Clarity Travel Ltd t/a Clarity,99944578,0.50,T&S UK - Public Transport
BEIS,UKRI - BBSRC,20/04/2023,T&S UK - Public Transport,CIMG - Director,Clarity Travel Ltd t/a Clarity,99944578,24.05,T&S UK - Public Transport
BEIS,UKRI - BBSRC,20/04/2023,T&S UK - Public Transport,CIMG - Director,Clarity Travel Ltd t/a Clarity,99944578,0.50,T&S UK - Public Transport
BEIS,UKRI - BBSRC,20/04/2023,T&S UK - Public Transport,CIMG - Director,Clarity Travel Ltd t/a Clarity,99944578,54.80,T&S UK - Public Transport
BEIS,UKRI - BBSRC,20/04/2023,T&S UK - Public Transport,Innovation and Skills Group,Clarity Travel Ltd t/a Clarity,99944578,0.50,T&S UK - Public Transport
BEIS,UKRI - BBSRC,20/04/2023,T&S UK - Public Transport,Innovation and Skills Group,Clarity Travel Ltd t/a Clarity,99944578,12.50,T&S UK - Public Transport
BEIS,UKRI - BBSRC,20/04/2023,T&S UK - Public Transport,Innovation and Skills Group,Clarity Travel Ltd t/a Clarity,99944578,4.00,T&S UK - Public Transport
BEIS,UKRI - BBSRC,20/04/2023,T&S UK - Public Transport,Innovation and Skills Group,Clarity Travel Ltd t/a Clarity,99944578,20.30,T&S UK - Public Transport
BEIS,UKRI - BBSRC,20/04/2023,T&S UK - Public Transport,Innovation and Skills Group,Clarity Travel Ltd t/a Clarity,99944578,22.75,T&S UK - Public Transport
BEIS,UKRI - BBSRC,20/04/2023,T&S UK - Public Transport,Innovation and Skills Group,Clarity Travel Ltd t/a Clarity,99944578,2.00,T&S UK - Public Transport
BEIS,UKRI - BBSRC,20/04/2023,T&S UK - Public Transport,Innovation and Skills Group,Clarity Travel Ltd t/a Clarity,99944578,20.30,T&S UK - Public Transport
